Workbook

Sheet Inicio (hidden)

Sheet SolCotizacion
A1: SOLICITUD DE COTIZACIÓN
A2: Acuerdo Marco de Transporte de Pasajeros II
A3: Version: 16 Fecha: 12/01/2024
A4: Información de la Entidad Compradora
A6: Nombre de la Entidad | F6: Universidad Distrital Francisco Jose de Caldas | T6: NIT | AA6: 8999992307
A8: Dirección de la Entidad | F8: Cl. 13 #31-75 | T8: Correo electrónico | AA8: vicerrecadmin@udistrital.edu.co
A10: Ubicación | F10: Dpto | H10: BOGOTA | M10: Mcpio | O10: BOGOTA, D.C. | T10: Teléfono de contacto | AA10: 6013239300
A12: Nombre funcionario comprador | F12: Eduard Arnulfo Pinilla Rivera | T12: Número de solicitud de Información (RFI) | AA12: 167155
A14: Especificaciones de la Solicitud de Cotización
A16: Modalidad | D16: Vehículos con motor eléctrico o híbrido | I16: Zona | L16: 11 | Q16: Segmento | T16: Empresarial | Y16: Nivel de Servicio | AB16: 1 | AG16: Peajes | AJ16: 12300
A18: Paquete de Servicios
B20: Cantidad de filas:
A24: Item | B24: Código | E24: Vehículo | N24: Unidad de tiempo | T24: Cantidad de tiempo | W24: Cantidad de vehículos | Z24: Número pasajeros | AC24: Descripción detallada del lugar de partida y destino
A25: 1 | B25: EL-Z11-EM-N1-V5-MU | E25: Campero/camioneta | N25: Mes Zona Urbana | T25: 7 | W25: 1 | Z25: 1 | AC25: FACULTAD DE ARTES ASAB: Carrera 13 No. 14 – 69 ACADEMIA LUIS A. CALVO – ALAC: Carrera 9 # 52 – 52 ADUANILLA DE PAIBA: Calle 13 # 31 -75 SÓTANOS: Carrera 8 calle 13 RESIDENCIA: Carrera 4 No. 16-75 SEDE AUTONOMA: Carrera 6 No. 10-72 SECRETARÍA DE CULTURA: Carrera 8 calle 10 IDARTES: Carrera 8 calle 12 GOBERNACIÓN DE CUNDINAMARCA: Avenida el Dorado Carrera 51 MINISTERIO DE CULTURA: Calle 9 Carrera 9 OCASIONALES: ADUANILLA DE PAIBA: Calle 13 # 31 -75 FACULTAD DE INGENIERÍA: Carrera 8 # 40-62 / Carrera 7 No. 40B - 53 FACULTAD DE CIENCIAS Y EDUCACIÓN: Carrera 3 No. 26A – 40 FACULTAD CIENCIAS MATEMATICAS Y NATURALES Carrera 4A # 26D - 54 MACARENA A: Carrera 3 No. 26A - 40 MACARENA B: Carrera 4 No. 26 B - 54 FACULTAD MEDIO AMBIENTE Y RECURSOS NATURALES: Carrera 5 Este No 15-82 FACULTAD TECNOLÓGICA: Cl. 68D Bis A Sur N.º 49F - 70 Candelaria La Nueva IV Etapa SEDE BOSA PORVENIR: Calle 52 Sur # 93D – 97 AEROPUERTO MINISTERIO DE CULTURA MINISTERIO DE EDUCACION UNIVERSIDAD NACIONAL UNIVERSIDAD PEDAGOGICA Lunes: Residencia – Artes ASAB- ALAC Paiba – Residencia Martes: Residencia - Artes ASAB - Paiba- ALAC - Residencia Miércoles: Residencia – Artes ASAB- ALAC Paiba - Residencia Jueves: Residencia – Artes ASAB- ALAC – Paiba - Residencia Viernes: Residencia – Artes ASAB- ALAC - Paiba – Residencia
A26: 2 | B26: EL-Z11-EM-N1-V5-MU | E26: Campero/camioneta | N26: Mes Zona Urbana | T26: 7 | W26: 1 | Z26: 1 | AC26: FACULTAD CIENCIAS DE LA SALUD: SEDE BOSA PORVENIR: Calle 52 Sur # 93D – 97 ADUANILLA DE PAIBA: Calle 13 # 31 -75 RESIDENCIA: Carrera 53 # 123-34 Edificio Biela - Barrio Batán OCASIONALES: FACULTAD DE INGENIERÍA: Carrera 8 # 40-62 / Carrera 7 No. 40B - 53 FACULTAD DE CIENCIAS Y EDUCACIÓN: Carrera 3 No. 26A – 40 FACULTAD CIENCIAS MATEMATICAS Y NATURALES Carrera 4A # 26D - 54 MACARENA A: Carrera 3 No. 26A - 40 MACARENA B: Carrera 4 No. 26 B - 54 FACULTAD TECNOLÓGICA: Cl. 68D Bis A Sur N.º 49F - 70 Candelaria La Nueva IV Etapa FACULTAD DE ARTES ASAB: Carrera 13 No. 14 – 69 Lunes: Residencia - Sede Bosa El Porvenir - Residencia Martes: Residencia - Aduanilla de Paiba - Residencia Miércoles: Residencia - Sede Bosa El Porvenir - Residencia Jueves: Residencia - Sede Bosa El Porvenir - Residencia Viernes: Residencia - Aduanilla de Paiba - Residencia
A27: 3 | B27: EL-Z11-EM-N1-V5-MU | E27: Campero/camioneta | N27: Mes Zona Urbana | T27: 7 | W27: 1 | Z27: 1 | AC27: DECANO FACULTAD CIENCIAS MATEMÁTICAS Y NATURALES FACULTAD CIENCIAS MATEMÁTICAS Y NATURALES: Carrera 4 # 26 D - 31 SEDE CANDELARIA: Calle 13 # 4 – 31 ADUANILLA DE PAIBA: Calle 13 # 31 -75 RESIDENCIA: Carrera 27 # 45ª - 16 OCASIONALES: FACULTAD DE INGENIERÍA: Carrera 8 # 40-62 / Carrera 7 No. 40B - 53 FACULTAD DE CIENCIAS Y EDUCACIÓN: Carrera 3 No. 26A – 40 FACULTAD CIENCIAS MATEMATICAS Y NATURALES Carrera 4A # 26D - 54 MACARENA A: Carrera 3 No. 26A - 40 MACARENA B: Carrera 4 No. 26 B - 54 FACULTAD TECNOLÓGICA: Cl. 68D Bis A Sur N.º 49F - 70 Candelaria La Nueva IV Etapa FACULTAD DE ARTES ASAB: Carrera 13 No. 14 – 69 Aeropuerto Lunes: Residencia - Carrera 4 # 26 D – 31 - Residencia Martes: Residencia - Aduanilla de Paiba - Residencia Miércoles: Residencia - Carrera 4 # 26 D – 31 - Calle 13 # 4 – 31- Residencia Jueves: Residencia - Carrera 4 # 26 D – 31 - Residencia Viernes: Residencia - Carrera 4 # 26 D – 31 - Calle 13 # 4 – 31- Residencia
A28: 4 | B28: EL-Z11-EM-N1-V5-MR | E28: Campero/camioneta | N28: Mes Zona Rural | T28: 8 | W28: 1 | Z28: 1 | AC28: FACULTAD MEDIO AMBIENTE Y RECURSOS NATURALES (Sede Vivero): Carrera 5 Este No 15-82 SEDE BOSA PORVENIR: Calle 52 Sur # 93D – 97 ADUANILLA DE PAIBA: Calle 13 # 31 -75 RESIDENCIA: Vereda La Toma Finca Mi Potrerito, La Calera Cundinamarca a 3km del casco urbano OCASIONALES: FACULTAD DE INGENIERÍA: Carrera 8 # 40-62 / Carrera 7 No. 40B - 53 FACULTAD DE CIENCIAS Y EDUCACIÓN: Carrera 3 No. 26A – 40 FACULTAD CIENCIAS MATEMATICAS Y NATURALES Carrera 4A # 26D - 54 MACARENA A: Carrera 3 No. 26A - 40 MACARENA B: Carrera 4 No. 26 B - 54 FACULTAD TECNOLÓGICA: Cl. 68D Bis A Sur N.º 49F - 70 Candelaria La Nueva IV Etapa FACULTAD DE ARTES ASAB: Carrera 13 No. 14 – 69 Aeropuerto Lunes: La Calera - Sede El vivero - La Calera Martes: La Calera - Aduanilla de Paiba - La Calera Miércoles: La Calera - Sede Bosa El Porvenir - La Calera Jueves: La Calera - Sede El vivero - La Calera Viernes: Calera - Sede El vivero - Sede Paiba - La Calera
A29: 1. Si requiere agregue o elimine filas
A31: Gravámenes adicionales (Estampillas)
A32: Si los hay, indique los gravámenes adicionales (estampilllas) a los que está sujeta la Orden de Compra. Son gravámenes adiconales por ejemplo; estampillas y demás impuestos territoriales. Los impuestos como ICA y retención en la fuente NO son gravámenes adicionales.
A34: No. | B34: Descripción | S34: % Gravámen
A35: 1 | B35: Estampilla Universidad Distrital Francisco Jose de Caldas 50 años | S35: 0.011
A36: 2 | B36: Estampilla Pro-cultura | S36: 0.005
A37: 3 | B37: Estampilla Adulto Mayor | S37: 0.02
L38: Total Gravámenes adicionales | S38: =ROUND(SUM(S35:S37),4) -> 0.036
D39: Filas a agregar o eliminar Gravámenes:

Sheet ResumenCotizacion
A1: RESUMEN DE COTIZACIÓN
A2: =+SolCotizacion!A2 -> Acuerdo Marco de Transporte de Pasajeros II
A3: =+SolCotizacion!A3 -> Version: 16 Fecha: 12/01/2024
A4: Información de la Entidad Compradora
A6: Nombre de la Entidad | F6: Universidad Distrital Francisco Jose de Caldas | R6: NIT | W6: 8999992307 | AI6: Funcionario Comprador | AN6: Eduard Arnulfo Pinilla Rivera
A8: Dirección de la Entidad | F8: Cl. 13 #31-75 | R8: Ubicación | W8: BOGOTA - BOGOTA, D.C. | AI8: Teléfono | AN8: 6013239300
A10: Número RFI | F10: 167155 | R10: Correo | W10: vicerrecadmin@udistrital.edu.co
A12: Resumen de Solicitud de Cotización
A14: Modalidad | D14: Vehículos con motor eléctrico o híbrido | I14: Zona | L14: 11 | Q14: Segmento | T14: Empresarial | Y14: Nivel de Servicio | AB14: 1 | AG14: Peajes | AJ14: 12300
A16: Especificaciones de la Solicitud de Cotización
A18: Item | B18: Código | E18: Vehículo | J18: Unidad de tiempo | N18: Cantidad de tiempo | Q18: Contidad de vehículos | T18: Número pasajeros | W18: Descripción detallada del lugar de partida y destino | AE18: Valor Unitario | AJ18: Valor Unitario + gravámen | AO18: Valor X Capacidad | AT18: Precio Total
A19: 1 | B19: EL-Z11-EM-N1-V5-MU | E19: Campero/camioneta | J19: Mes Zona Urbana | N19: 7 | Q19: 1 | T19: 1 | W19: FACULTAD DE ARTES ASAB: Carrera 13 No. 14 – 69 ACADEMIA LUIS A. CALVO – ALAC: Carrera 9 # 52 – 52 ADUANILLA DE PAIBA: Calle 13 # 31 -75 SÓTANOS: Carrera 8 calle 13 RESIDENCIA: Carrera 4 No. 16-75 SEDE AUTONOMA: Carrera 6 No. 10-72 SECRETARÍA DE CULTURA: Carrera 8 calle 10 IDARTES: Carrera 8 calle 12 GOBERNACIÓN DE CUNDINAMARCA: Avenida el Dorado Carrera 51 MINISTERIO DE CULTURA: Calle 9 Carrera 9 OCASIONALES: ADUANILLA DE PAIBA: Calle 13 # 31 -75 FACULTAD DE INGENIERÍA: Carrera 8 # 40-62 / Carrera 7 No. 40B - 53 FACULTAD DE CIENCIAS Y EDUCACIÓN: Carrera 3 No. 26A – 40 FACULTAD CIENCIAS MATEMATICAS Y NATURALES Carrera 4A # 26D - 54 MACARENA A: Carrera 3 No. 26A - 40 MACARENA B: Carrera 4 No. 26 B - 54 FACULTAD MEDIO AMBIENTE Y RECURSOS NATURALES: Carrera 5 Este No 15-82 FACULTAD TECNOLÓGICA: Cl. 68D Bis A Sur N.º 49F - 70 Candelaria La Nueva IV Etapa SEDE BOSA PORVENIR: Calle 52 Sur # 93D – 97 AEROPUERTO MINISTERIO DE CULTURA MINISTERIO DE EDUCACION UNIVERSIDAD NACIONAL UNIVERSIDAD PEDAGOGICA Lunes: Residencia – Artes ASAB- ALAC Paiba – Residencia Martes: Residencia - Artes ASAB - Paiba- ALAC - Residencia Miércoles: Residencia – Artes ASAB- ALAC Paiba - Residencia Jueves: Residencia – Artes ASAB- ALAC – Paiba - Residencia Viernes: Residencia – Artes ASAB- ALAC - Paiba – Residencia | AE19: 11994454.03 | AJ19: =ROUND((11994454.03/(1-0.036)),2) -> 12442379.7 | AO19: =AJ19*N19 -> 87096657.9 | AT19: =AO19*Q19 -> 87096657.9
A20: 2 | B20: EL-Z11-EM-N1-V5-MU | E20: Campero/camioneta | J20: Mes Zona Urbana | N20: 7 | Q20: 1 | T20: 1 | W20: FACULTAD CIENCIAS DE LA SALUD: SEDE BOSA PORVENIR: Calle 52 Sur # 93D – 97 ADUANILLA DE PAIBA: Calle 13 # 31 -75 RESIDENCIA: Carrera 53 # 123-34 Edificio Biela - Barrio Batán OCASIONALES: FACULTAD DE INGENIERÍA: Carrera 8 # 40-62 / Carrera 7 No. 40B - 53 FACULTAD DE CIENCIAS Y EDUCACIÓN: Carrera 3 No. 26A – 40 FACULTAD CIENCIAS MATEMATICAS Y NATURALES Carrera 4A # 26D - 54 MACARENA A: Carrera 3 No. 26A - 40 MACARENA B: Carrera 4 No. 26 B - 54 FACULTAD TECNOLÓGICA: Cl. 68D Bis A Sur N.º 49F - 70 Candelaria La Nueva IV Etapa FACULTAD DE ARTES ASAB: Carrera 13 No. 14 – 69 Lunes: Residencia - Sede Bosa El Porvenir - Residencia Martes: Residencia - Aduanilla de Paiba - Residencia Miércoles: Residencia - Sede Bosa El Porvenir - Residencia Jueves: Residencia - Sede Bosa El Porvenir - Residencia Viernes: Residencia - Aduanilla de Paiba - Residencia | AE20: 11994454.03 | AJ20: =ROUND((11994454.03/(1-0.036)),2) -> 12442379.7 | AO20: =AJ20*N20 -> 87096657.9 | AT20: =AO20*Q20 -> 87096657.9
A21: 3 | B21: EL-Z11-EM-N1-V5-MU | E21: Campero/camioneta | J21: Mes Zona Urbana | N21: 7 | Q21: 1 | T21: 1 | W21: DECANO FACULTAD CIENCIAS MATEMÁTICAS Y NATURALES FACULTAD CIENCIAS MATEMÁTICAS Y NATURALES: Carrera 4 # 26 D - 31 SEDE CANDELARIA: Calle 13 # 4 – 31 ADUANILLA DE PAIBA: Calle 13 # 31 -75 RESIDENCIA: Carrera 27 # 45ª - 16 OCASIONALES: FACULTAD DE INGENIERÍA: Carrera 8 # 40-62 / Carrera 7 No. 40B - 53 FACULTAD DE CIENCIAS Y EDUCACIÓN: Carrera 3 No. 26A – 40 FACULTAD CIENCIAS MATEMATICAS Y NATURALES Carrera 4A # 26D - 54 MACARENA A: Carrera 3 No. 26A - 40 MACARENA B: Carrera 4 No. 26 B - 54 FACULTAD TECNOLÓGICA: Cl. 68D Bis A Sur N.º 49F - 70 Candelaria La Nueva IV Etapa FACULTAD DE ARTES ASAB: Carrera 13 No. 14 – 69 Aeropuerto Lunes: Residencia - Carrera 4 # 26 D – 31 - Residencia Martes: Residencia - Aduanilla de Paiba - Residencia Miércoles: Residencia - Carrera 4 # 26 D – 31 - Calle 13 # 4 – 31- Residencia Jueves: Residencia - Carrera 4 # 26 D – 31 - Residencia Viernes: Residencia - Carrera 4 # 26 D – 31 - Calle 13 # 4 – 31- Residencia | AE21: 11994454.03 | AJ21: =ROUND((11994454.03/(1-0.036)),2) -> 12442379.7 | AO21: =AJ21*N21 -> 87096657.9 | AT21: =AO21*Q21 -> 87096657.9
A22: 4 | B22: EL-Z11-EM-N1-V5-MR | E22: Campero/camioneta | J22: Mes Zona Rural | N22: 8 | Q22: 1 | T22: 1 | W22: FACULTAD MEDIO AMBIENTE Y RECURSOS NATURALES (Sede Vivero): Carrera 5 Este No 15-82 SEDE BOSA PORVENIR: Calle 52 Sur # 93D – 97 ADUANILLA DE PAIBA: Calle 13 # 31 -75 RESIDENCIA: Vereda La Toma Finca Mi Potrerito, La Calera Cundinamarca a 3km del casco urbano OCASIONALES: FACULTAD DE INGENIERÍA: Carrera 8 # 40-62 / Carrera 7 No. 40B - 53 FACULTAD DE CIENCIAS Y EDUCACIÓN: Carrera 3 No. 26A – 40 FACULTAD CIENCIAS MATEMATICAS Y NATURALES Carrera 4A # 26D - 54 MACARENA A: Carrera 3 No. 26A - 40 MACARENA B: Carrera 4 No. 26 B - 54 FACULTAD TECNOLÓGICA: Cl. 68D Bis A Sur N.º 49F - 70 Candelaria La Nueva IV Etapa FACULTAD DE ARTES ASAB: Carrera 13 No. 14 – 69 Aeropuerto Lunes: La Calera - Sede El vivero - La Calera Martes: La Calera - Aduanilla de Paiba - La Calera Miércoles: La Calera - Sede Bosa El Porvenir - La Calera Jueves: La Calera - Sede El vivero - La Calera Viernes: Calera - Sede El vivero - Sede Paiba - La Calera | AE22: 13193899.44 | AJ22: =ROUND((13193899.44/(1-0.036)),2) -> 13686617.68 | AO22: =AJ22*N22 -> 109492941.4 | AT22: =AO22*Q22 -> 109492941.4
AP23: Sub Total: | AT23: =SUM(AT19:AY22) -> 370782915.1
AP24: Peajes: | AT24: =$AJ$14 -> 12300
AP25: Valor Total: | AT25: =SUM(AT23:AY24) -> 370795215.1
A27: Gravámenes adicionales (Estampillas)
A28: Si los hay, indique los gravámenes adicionales (estampilllas) a los que está sujeta la Orden de Compra. Son gravámenes adiconales por ejemplo; estampillas y demás impuestos territoriales. Los impuestos como ICA y retención en la fuente NO son gravámenes adicionales.
A30: No. | B30: Descripción | S30: % Gravámen
A31: 1 | B31: Estampilla Universidad Distrital Francisco Jose de Caldas 50 años | S31: 0.011
A32: 2 | B32: Estampilla Pro-cultura | S32: 0.005
A33: 3 | B33: Estampilla Adulto Mayor | S33: 0.02
L34: Total Gravámenes adicionales | S34: =SUM(S31:X33) -> 0.036

Sheet ListasApoyo (hidden)
A1: DEPARTAMENTO | C1: AMAZONAS | D1: ANTIOQUIA | E1: ARAUCA | F1: ATLANTICO | G1: BOGOTA | H1: BOLIVAR | I1: BOYACA | J1: CALDAS | K1: CAQUETA | L1: CASANARE | M1: CAUCA | N1: CESAR | O1: CHOCO | P1: CORDOBA | Q1: CUNDINAMARCA | R1: GUAINIA | S1: GUAVIARE | T1: HUILA | U1: LAGUAJIRA | V1: MAGDALENA | W1: META | X1: N.DESANTANDER | Y1: NARIÑO | Z1: PUTUMAYO | AA1: QUINDIO | AB1: RISARALDA | AC1: SANANDRES | AD1: SANTANDER | AE1: SUCRE | AF1: TOLIMA | AG1: VALLEDELCAUCA | AH1: VAUPES | AI1: VICHADA | AQ1: Item | AR1: codigo | AS1: min
A2: AMAZONAS | C2: EL ENCANTO | D2: ABEJORRAL | E2: ARAUCA | F2: BARANOA | G2: BOGOTA, D.C. | H2: ACHI | I2: ALMEIDA | J2: AGUADAS | K2: ALBANIA | L2: AGUAZUL | M2: ALMAGUER | N2: AGUACHICA | O2: ACANDI | P2: AYAPEL | Q2: AGUA DE DIOS | R2: BARRANCO MINAS | S2: CALAMAR | T2: ACEVEDO | U2: ALBANIA | V2: ALGARROBO | W2: ACACIAS | X2: ABREGO | Y2: ALBAN | Z2: COLON | AA2: ARMENIA | AB2: APIA | AC2: PROVIDENCIA | AD2: AGUADA | AE2: BUENAVISTA | AF2: ALPUJARRA | AG2: ALCALA | AH2: CARURU | AI2: CUMARIBO
A3: ANTIOQUIA | C3: LA CHORRERA | D3: ABRIAQUI | E3: ARAUQUITA | F3: BARRANQUILLA | H3: ALTOS DEL ROSARIO | I3: AQUITANIA | J3: ANSERMA | K3: BELEN DE LOS ANDAQUIES | L3: CHAMEZA | M3: ARGELIA | N3: AGUSTIN CODAZZI | O3: ALTO BAUDO | P3: BUENAVISTA | Q3: ALBAN | R3: CACAHUAL | S3: EL RETORNO | T3: AGRADO | U3: BARRANCAS | V3: ARACATACA | W3: BARRANCA DE UPIA | X3: ARBOLEDAS | Y3: ALDANA | Z3: LEGUIZAMO | AA3: BUENAVISTA | AB3: BALBOA | AC3: SAN ANDRES | AD3: ALBANIA | AE3: CAIMITO | AF3: ALVARADO | AG3: ANDALUCIA | AH3: MITU | AI3: LA PRIMAVERA
A4: ARAUCA | C4: LA PEDRERA | D4: ALEJANDRIA | E4: CRAVO NORTE | F4: CAMPO DE LA CRUZ | H4: ARENAL | I4: ARCABUCO | J4: ARANZAZU | K4: CARTAGENA DEL CHAIRA | L4: HATO COROZAL | M4: BALBOA | N4: ASTREA | O4: ATRATO | P4: CANALETE | Q4: ANAPOIMA | R4: INIRIDA | S4: MIRAFLORES | T4: AIPE | U4: DIBULLA | V4: ARIGUANI | W4: CABUYARO | X4: BOCHALEMA | Y4: ANCUYA | Z4: MOCOA | AA4: CALARCA | AB4: BELEN DE UMBRIA | AD4: ARATOCA | AE4: CHALAN | AF4: AMBALEMA | AG4: ANSERMANUEVO | AH4: PACOA | AI4: PUERTO CARREÑO
A5: ATLANTICO | C5: LA VICTORIA | D5: AMAGA | E5: FORTUL | F5: CANDELARIA | H5: ARJONA | I5: BELEN | J5: BELALCAZAR | K5: CURILLO | L5: LA SALINA | M5: BOLIVAR | N5: BECERRIL | O5: BAGADO | P5: CERETE | Q5: ANOLAIMA | R5: LA GUADALUPE | S5: SAN JOSE DEL GUAVIARE | T5: ALGECIRAS | U5: DISTRACCION | V5: CERRO SAN ANTONIO | W5: CASTILLA LA NUEVA | X5: BUCARASICA | Y5: ARBOLEDA | Z5: ORITO | AA5: CIRCASIA | AB5: DOSQUEBRADAS | AD5: BARBOSA | AE5: COLOSO | AF5: ANZOATEGUI | AG5: ARGELIA | AH5: PAPUNAUA | AI5: SANTA ROSALIA
A6: BOGOTA | C6: LETICIA | D6: AMALFI | E6: PUERTO RONDON | F6: GALAPA | H6: ARROYOHONDO | I6: BERBEO | J6: CHINCHINA | K6: EL DONCELLO | L6: MANI | M6: BUENOS AIRES | N6: BOSCONIA | O6: BAHIA SOLANO | P6: CHIMA | Q6: APULO | R6: MAPIRIPANA | T6: ALTAMIRA | U6: EL MOLINO | V6: CHIBOLO | W6: CUBARRAL | X6: CACHIRA | Y6: BARBACOAS | Z6: PUERTO ASIS | AA6: CORDOBA | AB6: GUATICA | AD6: BARICHARA | AE6: COROZAL | AF6: ARMERO | AG6: BOLIVAR | AH6: TARAIRA
A7: BOLIVAR | C7: MIRITI - PARANA | D7: ANDES | E7: SARAVENA | F7: JUAN DE ACOSTA | H7: BARRANCO DE LOBA | I7: BETEITIVA | J7: FILADELFIA | K7: EL PAUJIL | L7: MONTERREY | M7: CAJIBIO | N7: CHIMICHAGUA | O7: BAJO BAUDO | P7: CHINU | Q7: ARBELAEZ | R7: MORICHAL | T7: BARAYA | U7: FONSECA | V7: CIENAGA | W7: CUMARAL | X7: CACOTA | Y7: BELEN | Z7: PUERTO CAICEDO | AA7: FILANDIA | AB7: LA CELIA | AD7: BARRANCABERMEJA | AE7: COVEÑAS | AF7: ATACO | AG7: BUENAVENTURA | AH7: YAVARATE
A8: BOYACA | C8: PUERTO ALEGRIA | D8: ANGELOPOLIS | E8: TAME | F8: LURUACO | H8: CALAMAR | I8: BOAVITA | J8: LA DORADA | K8: FLORENCIA | L8: NUNCHIA | M8: CALDONO | N8: CHIRIGUANA | O8: BOJAYA | P8: CIENAGA DE ORO | Q8: BELTRAN | R8: PANA PANA | T8: CAMPOALEGRE | U8: HATONUEVO | V8: CONCORDIA | W8: EL CALVARIO | X8: CHINACOTA | Y8: BUESACO | Z8: PUERTO GUZMAN | AA8: GENOVA | AB8: LA VIRGINIA | AD8: BETULIA | AE8: EL ROBLE | AF8: CAJAMARCA | AG8: BUGALAGRANDE
A9: CALDAS | C9: PUERTO ARICA | D9: ANGOSTURA | F9: MALAMBO | H9: CANTAGALLO | I9: BOYACA | J9: LA MERCED | K9: LA MONTAÑITA | L9: OROCUE | M9: CALOTO | N9: CURUMANI | O9: CARMEN DEL DARIEN | P9: COTORRA | Q9: BITUIMA | R9: PUERTO COLOMBIA | T9: COLOMBIA | U9: LA JAGUA DEL PILAR | V9: EL BANCO | W9: EL CASTILLO | X9: CHITAGA | Y9: CHACHAGsI | Z9: SAN FRANCISCO | AA9: LA TEBAIDA | AB9: MARSELLA | AD9: BOLIVAR | AE9: GALERAS | AF9: CARMEN DE APICALA | AG9: CAICEDONIA
A10: CAQUETA | C10: PUERTO NARIÑO | D10: ANORI | F10: MANATI | H10: CARTAGENA | I10: BRICEÑO | J10: MANIZALES | K10: MILAN | L10: PAZ DE ARIPORO | M10: CORINTO | N10: EL COPEY | O10: CERTEGUI | P10: LA APARTADA | Q10: BOJACA | R10: SAN FELIPE | T10: ELIAS | U10: MAICAO | V10: EL PIÑON | W10: EL DORADO | X10: CONVENCION | Y10: COLON | Z10: SAN MIGUEL | AA10: MONTENEGRO | AB10: MISTRATO | AD10: BUCARAMANGA | AE10: GUARANDA | AF10: CASABIANCA | AG10: CALI
A11: CASANARE | C11: PUERTO SANTANDER | D11: ANZA | F11: PALMAR DE VARELA | H11: CICUCO | I11: BUENAVISTA | J11: MANZANARES | K11: MORELIA | L11: PORE | M11: EL TAMBO | N11: EL PASO | O11: CONDOTO | P11: LORICA | Q11: CABRERA | T11: GARZON | U11: MANAURE | V11: EL RETEN | W11: FUENTE DE ORO | X11: CUCUTA | Y11: CONSACA | Z11: SANTIAGO | AA11: PIJAO | AB11: PEREIRA | AD11: CABRERA | AE11: LA UNION | AF11: CHAPARRAL | AG11: CALIMA
A12: CAUCA | C12: TARAPACA | D12: APARTADO | F12: PIOJO | H12: CLEMENCIA | I12: BUSBANZA | J12: MARMATO | K12: PUERTO RICO | L12: RECETOR | M12: FLORENCIA | N12: GAMARRA | O12: EL CANTON DEL SAN PABLO | P12: LOS CORDOBAS | Q12: CACHIPAY | T12: GIGANTE | U12: RIOHACHA | V12: FUNDACION | W12: GRANADA | X12: CUCUTILLA | Y12: CONTADERO | Z12: SIBUNDOY | AA12: QUIMBAYA | AB12: PUEBLO RICO | AD12: CALIFORNIA | AE12: LOS PALMITOS | AF12: COELLO | AG12: CANDELARIA
A13: CESAR | D13: ARBOLETES | F13: POLONUEVO | H13: CORDOBA | I13: CALDAS | J13: MARQUETALIA | K13: SAN JOSE DEL FRAGUA | L13: SABANALARGA | M13: GUACHENE | N13: GONZALEZ | O13: EL CARMEN DE ATRATO | P13: MOMIL | Q13: CAJICA | T13: GUADALUPE | U13: SAN JUAN DEL CESAR | V13: GUAMAL | W13: GUAMAL | X13: DURANIA | Y13: CORDOBA | Z13: VALLE DEL GUAMUEZ | AA13: SALENTO | AB13: QUINCHIA | AD13: CAPITANEJO | AE13: MAJAGUAL | AF13: COYAIMA | AG13: CARTAGO
A14: CHOCO | D14: ARGELIA | F14: PONEDERA | H14: EL CARMEN DE BOLIVAR | I14: CAMPOHERMOSO | J14: MARULANDA | K14: SAN VICENTE DEL CAGUAN | L14: SACAMA | M14: GUAPI | N14: LA GLORIA | O14: EL LITORAL DEL SAN JUAN | P14: MONTELIBANO | Q14: CAPARRAPI | T14: HOBO | U14: URIBIA | V14: NUEVA GRANADA | W14: LA MACARENA | X14: EL CARMEN | Y14: CUASPUD | Z14: VILLAGARZON | AB14: SANTA ROSA DE CABAL | AD14: CARCASI | AE14: MORROA | AF14: CUNDAY | AG14: DAGUA
A15: CORDOBA | D15: ARMENIA | F15: PUERTO COLOMBIA | H15: EL GUAMO | I15: CERINZA | J15: NEIRA | K15: SOLANO | L15: SAN LUIS DE PALENQUE | M15: INZA | N15: LA JAGUA DE IBIRICO | O15: ISTMINA | P15: MONTERIA | Q15: CAQUEZA | T15: IQUIRA | U15: URUMITA | V15: PEDRAZA | W15: LEJANIAS | X15: EL TARRA | Y15: CUMBAL | AB15: SANTUARIO | AD15: CEPITA | AE15: OVEJAS | AF15: DOLORES | AG15: EL AGUILA
A16: CUNDINAMARCA | D16: BARBOSA | F16: REPELON | H16: EL PEÑON | I16: CHINAVITA | J16: NORCASIA | K16: SOLITA | L16: TAMARA | M16: JAMBALO | N16: LA PAZ | O16: JURADO | P16: MOÑITOS | Q16: CARMEN DE CARUPA | T16: ISNOS | U16: VILLANUEVA | V16: PIJIÑO DEL CARMEN | W16: MAPIRIPAN | X16: EL ZULIA | Y16: CUMBITARA | AD16: CERRITO | AE16: PALMITO | AF16: ESPINAL | AG16: EL CAIRO
A17: GUAINIA | D17: BELLO | F17: SABANAGRANDE | H17: HATILLO DE LOBA | I17: CHIQUINQUIRA | J17: PACORA | K17: VALPARAISO | L17: TAURAMENA | M17: LA SIERRA | N17: MANAURE | O17: LLORO | P17: PLANETA RICA | Q17: CHAGUANI | T17: LA ARGENTINA | V17: PIVIJAY | W17: MESETAS | X17: GRAMALOTE | Y17: EL CHARCO | AD17: CHARALA | AE17: SAMPUES | AF17: FALAN | AG17: EL CERRITO
A18: GUAVIARE | D18: BELMIRA | F18: SABANALARGA | H18: MAGANGUE | I18: CHIQUIZA | J18: PALESTINA | L18: TRINIDAD | M18: LA VEGA | N18: PAILITAS | O18: MEDIO ATRATO | P18: PUEBLO NUEVO | Q18: CHIA | T18: LA PLATA | V18: PLATO | W18: PUERTO CONCORDIA | X18: HACARI | Y18: EL PEÑOL | AD18: CHARTA | AE18: SAN BENITO ABAD | AF18: FLANDES | AG18: EL DOVIO
A19: HUILA | D19: BETANIA | F19: SANTA LUCIA | H19: MAHATES | I19: CHISCAS | J19: PENSILVANIA | L19: VILLANUEVA | M19: LOPEZ | N19: PELAYA | O19: MEDIO BAUDO | P19: PUERTO ESCONDIDO | Q19: CHIPAQUE | T19: NATAGA | V19: PUEBLOVIEJO | W19: PUERTO GAITAN | X19: HERRAN | Y19: EL ROSARIO | AD19: CHIMA | AE19: SAN JUAN DE BETULIA | AF19: FRESNO | AG19: FLORIDA
A20: LA GUAJIRA | D20: BETULIA | F20: SANTO TOMAS | H20: MARGARITA | I20: CHITA | J20: RIOSUCIO | L20: YOPAL | M20: MERCADERES | N20: PUEBLO BELLO | O20: MEDIO SAN JUAN | P20: PUERTO LIBERTADOR | Q20: CHOACHI | T20: NEIVA | V20: REMOLINO | W20: PUERTO LLERAS | X20: LA ESPERANZA | Y20: EL TABLON DE GOMEZ | AD20: CHIPATA | AE20: SAN LUIS DE SINCE | AF20: GUAMO | AG20: GINEBRA
A21: MAGDALENA | D21: BRICEÑO | F21: SOLEDAD | H21: MARIA LA BAJA | I21: CHITARAQUE | J21: RISARALDA | M21: MIRANDA | N21: RIO DE ORO | O21: NOVITA | P21: PURISIMA | Q21: CHOCONTA | T21: OPORAPA | V21: SABANAS DE SAN ANGEL | W21: PUERTO LOPEZ | X21: LA PLAYA | Y21: EL TAMBO | AD21: CIMITARRA | AE21: SAN MARCOS | AF21: HERVEO | AG21: GUACARI
A22: META | D22: BURITICA | F22: SUAN | H22: MOMPOS | I22: CHIVATA | J22: SALAMINA | M22: MORALES | N22: SAN ALBERTO | O22: NUQUI | P22: SAHAGUN | Q22: COGUA | T22: PAICOL | V22: SALAMINA | W22: PUERTO RICO | X22: LABATECA | Y22: FRANCISCO PIZARRO | AD22: CONCEPCION | AE22: SAN ONOFRE | AF22: HONDA | AG22: GUADALAJARA DE BUGA
A23: N. DE SANTANDER | D23: CACERES | F23: TUBARA | H23: MONTECRISTO | I23: CHIVOR | J23: SAMANA | M23: PADILLA | N23: SAN DIEGO | O23: QUIBDO | P23: SAN ANDRES SOTAVENTO | Q23: COTA | T23: PALERMO | V23: SAN SEBASTIAN DE BUENAVISTA | W23: RESTREPO | X23: LOS PATIOS | Y23: FUNES | AD23: CONFINES | AE23: SAN PEDRO | AF23: IBAGUE | AG23: JAMUNDI
A24: NARIÑO | D24: CAICEDO | F24: USIACURI | H24: MORALES | I24: CIENEGA | J24: SAN JOSE | M24: PAEZ | N24: SAN MARTIN | O24: RIO IRO | P24: SAN ANTERO | Q24: CUCUNUBA | T24: PALESTINA | V24: SAN ZENON | W24: SAN CARLOS DE GUAROA | X24: LOURDES | Y24: GUACHUCAL | AD24: CONTRATACION | AE24: SANTIAGO DE TOLU | AF24: ICONONZO | AG24: LA CUMBRE
A25: PUTUMAYO | D25: CALDAS | H25: NOROSI | I25: COMBITA | J25: SUPIA | M25: PATIA | N25: TAMALAMEQUE | O25: RIO QUITO | P25: SAN BERNARDO DEL VIENTO | Q25: EL COLEGIO | T25: PITAL | V25: SANTA ANA | W25: SAN JUAN DE ARAMA | X25: MUTISCUA | Y25: GUAITARILLA | AD25: COROMORO | AE25: SINCELEJO | AF25: LERIDA | AG25: LA UNION
A26: QUINDIO | D26: CAMPAMENTO | H26: PINILLOS | I26: COPER | J26: VICTORIA | M26: PIAMONTE | N26: VALLEDUPAR | O26: RIOSUCIO | P26: SAN CARLOS | Q26: EL PEÑON | T26: PITALITO | V26: SANTA BARBARA DE PINTO | W26: SAN JUANITO | X26: OCAÑA | Y26: GUALMATAN | AD26: CURITI | AE26: SUCRE | AF26: LIBANO | AG26: LA VICTORIA
A27: RISARALDA | D27: CAÑASGORDAS | H27: REGIDOR | I27: CORRALES | J27: VILLAMARIA | M27: PIENDAMO | O27: SAN JOSE DEL PALMAR | P27: SAN PELAYO | Q27: EL ROSAL | T27: RIVERA | V27: SANTA MARTA | W27: SAN MARTIN | X27: PAMPLONA | Y27: ILES | AD27: EL CARMEN DE CHUCURI | AE27: TOLU VIEJO | AF27: MARIQUITA | AG27: OBANDO
A28: SAN ANDRES | D28: CARACOLI | H28: RIO VIEJO | I28: COVARACHIA | J28: VITERBO | M28: POPAYAN | O28: SIPI | P28: TIERRALTA | Q28: FACATATIVA | T28: SALADOBLANCO | V28: SITIONUEVO | W28: URIBE | X28: PAMPLONITA | Y28: IMUES | AD28: EL GUACAMAYO | AF28: MELGAR | AG28: PALMIRA
A29: SANTANDER | D29: CARAMANTA | H29: SAN CRISTOBAL | I29: CUBARA | M29: PUERTO TEJADA | O29: TADO | P29: VALENCIA | Q29: FOMEQUE | T29: SAN AGUSTIN | V29: TENERIFE | W29: VILLAVICENCIO | X29: PUERTO SANTANDER | Y29: IPIALES | AD29: EL PEÑON | AF29: MURILLO | AG29: PRADERA
A30: SUCRE | D30: CAREPA | H30: SAN ESTANISLAO | I30: CUCAITA | M30: PURACE | O30: UNGUIA | P30: SAN JOSE DE URE | Q30: FOSCA | T30: SANTA MARIA | V30: ZAPAYAN | W30: VISTAHERMOSA | X30: RAGONVALIA | Y30: LA CRUZ | AD30: EL PLAYON | AF30: NATAGAIMA | AG30: RESTREPO
A31: TOLIMA | D31: CAROLINA | H31: SAN FERNANDO | I31: CUITIVA | M31: ROSAS | O31: UNION PANAMERICANA | P31: TUCHIN | Q31: FUNZA | T31: SUAZA | V31: ZONA BANANERA | X31: SALAZAR | Y31: LA FLORIDA | AD31: ENCINO | AF31: ORTEGA | AG31: RIOFRIO
A32: VALLE DEL CAUCA | D32: CAUCASIA | H32: SAN JACINTO | I32: DUITAMA | M32: SAN SEBASTIAN | Q32: FUQUENE | T32: TARQUI | X32: SAN CALIXTO | Y32: LA LLANADA | AD32: ENCISO | AF32: PALOCABILDO | AG32: ROLDANILLO
A33: VAUPES | D33: CHIGORODO | H33: SAN JACINTO DEL CAUCA | I33: EL COCUY | M33: SANTA ROSA | Q33: FUSAGASUGA | T33: TELLO | X33: SAN CAYETANO | Y33: LA TOLA | AD33: FLORIAN | AF33: PIEDRAS | AG33: SAN PEDRO
A34: VICHADA | D34: CISNEROS | H34: SAN JUAN NEPOMUCENO | I34: EL ESPINO | M34: SANTANDER DE QUILICHAO | Q34: GACHALA | T34: TERUEL | X34: SANTIAGO | Y34: LA UNION | AD34: FLORIDABLANCA | AF34: PLANADAS | AG34: SEVILLA
D35: CIUDAD BOLIVAR | H35: SAN MARTIN DE LOBA | I35: FIRAVITOBA | M35: SILVIA | Q35: GACHANCIPA | T35: TESALIA | X35: SARDINATA | Y35: LEIVA | AD35: GALAN | AF35: PRADO | AG35: TORO
D36: COCORNA | H36: SAN PABLO | I36: FLORESTA | M36: SOTARA | Q36: GACHETA | T36: TIMANA | X36: SILOS | Y36: LINARES | AD36: GAMBITA | AF36: PURIFICACION | AG36: TRUJILLO
D37: CONCEPCION | H37: SANTA CATALINA | I37: GACHANTIVA | M37: SUAREZ | Q37: GAMA | T37: VILLAVIEJA | X37: TEORAMA | Y37: LOS ANDES | AD37: GIRON | AF37: RIOBLANCO | AG37: TULUA
D38: CONCORDIA | H38: SANTA ROSA | I38: GAMEZA | M38: SUCRE | Q38: GIRARDOT | T38: YAGUARA | X38: TIBU | Y38: MAGsI | AD38: GsEPSA | AF38: RONCESVALLES | AG38: ULLOA
D39: COPACABANA | H39: SANTA ROSA DEL SUR | I39: GARAGOA | M39: TIMBIO | Q39: GRANADA | X39: TOLEDO | Y39: MALLAMA | AD39: GUACA | AF39: ROVIRA | AG39: VERSALLES
D40: DABEIBA | H40: SIMITI | I40: GsICAN | M40: TIMBIQUI | Q40: GUACHETA | X40: VILLA CARO | Y40: MOSQUERA | AD40: GUADALUPE | AF40: SALDAÑA | AG40: VIJES
D41: DON MATIAS | H41: SOPLAVIENTO | I41: GUACAMAYAS | M41: TORIBIO | Q41: GUADUAS | X41: VILLA DEL ROSARIO | Y41: NARIÑO | AD41: GUAPOTA | AF41: SAN ANTONIO | AG41: YOTOCO
D42: EBEJICO | H42: TALAIGUA NUEVO | I42: GUATEQUE | M42: TOTORO | Q42: GUASCA | Y42: OLAYA HERRERA | AD42: GUAVATA | AF42: SAN LUIS | AG42: YUMBO
D43: EL BAGRE | H43: TIQUISIO | I43: GUAYATA | M43: VILLA RICA | Q43: GUATAQUI | Y43: OSPINA | AD43: HATO | AF43: SANTA ISABEL | AG43: ZARZAL
D44: EL CARMEN DE VIBORAL | H44: TURBACO | I44: IZA | Q44: GUATAVITA | Y44: PASTO | AD44: JESUS MARIA | AF44: SUAREZ
D45: EL SANTUARIO | H45: TURBANA | I45: JENESANO | Q45: GUAYABAL DE SIQUIMA | Y45: POLICARPA | AD45: JORDAN | AF45: VALLE DE SAN JUAN
D46: ENTRERRIOS | H46: VILLANUEVA | I46: JERICO | Q46: GUAYABETAL | Y46: POTOSI | AD46: LA BELLEZA | AF46: VENADILLO
D47: ENVIGADO | H47: ZAMBRANO | I47: LA CAPILLA | Q47: GUTIERREZ | Y47: PROVIDENCIA | AD47: LA PAZ | AF47: VILLAHERMOSA
D48: FREDONIA | I48: LA UVITA | Q48: JERUSALEN | Y48: PUERRES | AD48: LANDAZURI | AF48: VILLARRICA
D49: FRONTINO | I49: LA VICTORIA | Q49: JUNIN | Y49: PUPIALES | AD49: LEBRIJA
D50: GIRALDO | I50: LABRANZAGRANDE | Q50: LA CALERA | Y50: RICAURTE | AD50: LOS SANTOS
D51: GIRARDOTA | I51: MACANAL | Q51: LA MESA | Y51: ROBERTO PAYAN | AD51: MACARAVITA
D52: GOMEZ PLATA | I52: MARIPI | Q52: LA PALMA | Y52: SAMANIEGO | AD52: MALAGA
D53: GRANADA | I53: MIRAFLORES | Q53: LA PEÑA | Y53: SAN ANDRES DE TUMACO | AD53: MATANZA
D54: GUADALUPE | I54: MONGUA | Q54: LA VEGA | Y54: SAN BERNARDO | AD54: MOGOTES
D55: GUARNE | I55: MONGUI | Q55: LENGUAZAQUE | Y55: SAN LORENZO | AD55: MOLAGAVITA
D56: GUATAPE | I56: MONIQUIRA | Q56: MACHETA | Y56: SAN PABLO | AD56: OCAMONTE
D57: HELICONIA | I57: MOTAVITA | Q57: MADRID | Y57: SAN PEDRO DE CARTAGO | AD57: OIBA
D58: HISPANIA | I58: MUZO | Q58: MANTA | Y58: SANDONA | AD58: ONZAGA
D59: ITAGUI | I59: NOBSA | Q59: MEDINA | Y59: SANTA BARBARA | AD59: PALMAR
D60: ITUANGO | I60: NUEVO COLON | Q60: MOSQUERA | Y60: SANTACRUZ | AD60: PALMAS DEL SOCORRO
D61: JARDIN | I61: OICATA | Q61: NARIÑO | Y61: SAPUYES | AD61: PARAMO
D62: JERICO | I62: OTANCHE | Q62: NEMOCON | Y62: TAMINANGO | AD62: PIEDECUESTA
D63: LA CEJA | I63: PACHAVITA | Q63: NILO | Y63: TANGUA | AD63: PINCHOTE
D64: LA ESTRELLA | I64: PAEZ | Q64: NIMAIMA | Y64: TUQUERRES | AD64: PUENTE NACIONAL
D65: LA PINTADA | I65: PAIPA | Q65: NOCAIMA | Y65: YACUANQUER | AD65: PUERTO PARRA
D66: LA UNION | I66: PAJARITO | Q66: PACHO | AD66: PUERTO WILCHES
D67: LIBORINA | I67: PANQUEBA | Q67: PAIME | AD67: RIONEGRO
D68: MACEO | I68: PAUNA | Q68: PANDI | AD68: SABANA DE TORRES
D69: MARINILLA | I69: PAYA | Q69: PARATEBUENO | AD69: SAN ANDRES
D70: MEDELLIN | I70: PAZ DE RIO | Q70: PASCA | AD70: SAN BENITO
D71: MONTEBELLO | I71: PESCA | Q71: PUERTO SALGAR | AD71: SAN GIL
D72: MURINDO | I72: PISBA | Q72: PULI | AD72: SAN JOAQUIN
D73: MUTATA | I73: PUERTO BOYACA | Q73: QUEBRADANEGRA | AD73: SAN JOSE DE MIRANDA
D74: NARIÑO | I74: QUIPAMA | Q74: QUETAME | AD74: SAN MIGUEL
D75: NECHI | I75: RAMIRIQUI | Q75: QUIPILE | AD75: SAN VICENTE DE CHUCURI
D76: NECOCLI | I76: RAQUIRA | Q76: RICAURTE | AD76: SANTA BARBARA
D77: OLAYA | I77: RONDON | Q77: SAN ANTONIO DEL TEQUENDAMA | AD77: SANTA HELENA DEL OPON
D78: PEÐOL | I78: SABOYA | Q78: SAN BERNARDO | AD78: SIMACOTA
D79: PEQUE | I79: SACHICA | Q79: SAN CAYETANO | AD79: SOCORRO
D80: PUEBLORRICO | I80: SAMACA | Q80: SAN FRANCISCO | AD80: SUAITA
D81: PUERTO BERRIO | I81: SAN EDUARDO | Q81: SAN JUAN DE RIO SECO | AD81: SUCRE
D82: PUERTO NARE | I82: SAN JOSE DE PARE | Q82: SASAIMA | AD82: SURATA
D83: PUERTO TRIUNFO | I83: SAN LUIS DE GACENO | Q83: SESQUILE | AD83: TONA
D84: REMEDIOS | I84: SAN MATEO | Q84: SIBATE | AD84: VALLE DE SAN JOSE
D85: RETIRO | I85: SAN MIGUEL DE SEMA | Q85: SILVANIA | AD85: VELEZ
D86: RIONEGRO | I86: SAN PABLO DE BORBUR | Q86: SIMIJACA | AD86: VETAS
D87: SABANALARGA | I87: SANTA MARIA | Q87: SOACHA | AD87: VILLANUEVA
D88: SABANETA | I88: SANTA ROSA DE VITERBO | Q88: SOPO | AD88: ZAPATOCA
D89: SALGAR | I89: SANTA SOFIA | Q89: SUBACHOQUE
D90: SAN ANDRES DE CUERQUIA | I90: SANTANA | Q90: SUESCA
D91: SAN CARLOS | I91: SATIVANORTE | Q91: SUPATA
D92: SAN FRANCISCO | I92: SATIVASUR | Q92: SUSA
D93: SAN JERONIMO | I93: SIACHOQUE | Q93: SUTATAUSA
D94: SAN JOSE DE LA MONTAÑA | I94: SOATA | Q94: TABIO
D95: SAN JUAN DE URABA | I95: SOCHA | Q95: TAUSA
D96: SAN LUIS | I96: SOCOTA | Q96: TENA
D97: SAN PEDRO | I97: SOGAMOSO | Q97: TENJO
D98: SAN PEDRO DE URABA | I98: SOMONDOCO | Q98: TIBACUY
D99: SAN RAFAEL | I99: SORA | Q99: TIBIRITA
D100: SAN ROQUE | I100: SORACA | Q100: TOCAIMA
D101: SAN VICENTE | I101: SOTAQUIRA | Q101: TOCANCIPA
D102: SANTA BARBARA | I102: SUSACON | Q102: TOPAIPI
D103: SANTA ROSA DE OSOS | I103: SUTAMARCHAN | Q103: UBALA
D104: SANTAFE DE ANTIOQUIA | I104: SUTATENZA | Q104: UBAQUE
D105: SANTO DOMINGO | I105: TASCO | Q105: UNE
D106: SEGOVIA | I106: TENZA | Q106: UTICA
D107: SONSON | I107: TIBANA | Q107: VENECIA
D108: SOPETRAN | I108: TIBASOSA | Q108: VERGARA
D109: TAMESIS | I109: TINJACA | Q109: VIANI
D110: TARAZA | I110: TIPACOQUE | Q110: VILLA DE SAN DIEGO DE UBATE
D111: TARSO | I111: TOCA | Q111: VILLAGOMEZ
D112: TITIRIBI | I112: TOGsI | Q112: VILLAPINZON
D113: TOLEDO | I113: TOPAGA | Q113: VILLETA
D114: TURBO | I114: TOTA | Q114: VIOTA
D115: URAMITA | I115: TUNJA | Q115: YACOPI
D116: URRAO | I116: TUNUNGUA | Q116: ZIPACON
D117: VALDIVIA | I117: TURMEQUE | Q117: ZIPAQUIRA
D118: VALPARAISO | I118: TUTA
D119: VEGACHI | I119: TUTAZA
D120: VENECIA | I120: UMBITA
D121: VIGIA DEL FUERTE | I121: VENTAQUEMADA
D122: YALI | I122: VILLA DE LEYVA
D123: YARUMAL | I123: VIRACACHA
D124: YOLOMBO | I124: ZETAQUIRA
D125: YONDO
D126: ZARAGOZA

Sheet Cotizacion
A1: COTIZACIÓN
A2: =+SolCotizacion!A2 -> Acuerdo Marco de Transporte de Pasajeros II
A3: =+SolCotizacion!A3 -> Version: 16 Fecha: 12/01/2024
A4: Información de la Entidad Compradora
A6: Nombre de la Entidad | F6: Universidad Distrital Francisco Jose de Caldas | R6: NIT | W6: 8999992307 | AI6: Funcionario Comprador | AN6: Eduard Arnulfo Pinilla Rivera
A8: Dirección de la Entidad | F8: Cl. 13 #31-75 | R8: Ubicación | W8: BOGOTA - BOGOTA, D.C. | AI8: Teléfono | AN8: 6013239300
A10: Número RFI | F10: 167155 | R10: Correo | W10: vicerrecadmin@udistrital.edu.co
A12: Resumen de Solicitud de Cotización
A14: Modalidad | D14: Vehículos con motor eléctrico o híbrido | I14: Zona | L14: 11 | Q14: Segmento | T14: Empresarial | Y14: Nivel de Servicio | AB14: 1 | AG14: Peajes | AJ14: 12300 | AP14: SELECCIONE PROVEEDOR
AP15: UNIÓN TEMPORAL MOVICOL
A16: Especificaciones de la Solicitud de Cotización
A18: Item | B18: Código | E18: Vehículo | J18: Unidad de tiempo | N18: Cantidad de tiempo | Q18: Contidad de vehículos | T18: Número pasajeros | W18: Descripción detallada del lugar de partida y destino | AF18: Valor Unitario | AK18: Valor Unitario + gravámen | AP18: Valor X Capacidad | AU18: Descuento | AX18: Valor Unitario con descuento | BB18: Valor X capacidad | BF18: Precio Total
A19: 1 | B19: EL-Z11-EM-N1-V5-MU | E19: Campero/camioneta | J19: Mes Zona Urbana | N19: 7 | Q19: 1 | T19: 1 | W19: FACULTAD DE ARTES ASAB: Carrera 13 No. 14 – 69 ACADEMIA LUIS A. CALVO – ALAC: Carrera 9 # 52 – 52 ADUANILLA DE PAIBA: Calle 13 # 31 -75 SÓTANOS: Carrera 8 calle 13 RESIDENCIA: Carrera 4 No. 16-75 SEDE AUTONOMA: Carrera 6 No. 10-72 SECRETARÍA DE CULTURA: Carrera 8 calle 10 IDARTES: Carrera 8 calle 12 GOBERNACIÓN DE CUNDINAMARCA: Avenida el Dorado Carrera 51 MINISTERIO DE CULTURA: Calle 9 Carrera 9 OCASIONALES: ADUANILLA DE PAIBA: Calle 13 # 31 -75 FACULTAD DE INGENIERÍA: Carrera 8 # 40-62 / Carrera 7 No. 40B - 53 FACULTAD DE CIENCIAS Y EDUCACIÓN: Carrera 3 No. 26A – 40 FACULTAD CIENCIAS MATEMATICAS Y NATURALES Carrera 4A # 26D - 54 MACARENA A: Carrera 3 No. 26A - 40 MACARENA B: Carrera 4 No. 26 B - 54 FACULTAD MEDIO AMBIENTE Y RECURSOS NATURALES: Carrera 5 Este No 15-82 FACULTAD TECNOLÓGICA: Cl. 68D Bis A Sur N.º 49F - 70 Candelaria La Nueva IV Etapa SEDE BOSA PORVENIR: Calle 52 Sur # 93D – 97 AEROPUERTO MINISTERIO DE CULTURA MINISTERIO DE EDUCACION UNIVERSIDAD NACIONAL UNIVERSIDAD PEDAGOGICA Lunes: Residencia – Artes ASAB- ALAC Paiba – Residencia Martes: Residencia - Artes ASAB - Paiba- ALAC - Residencia Miércoles: Residencia – Artes ASAB- ALAC Paiba - Residencia Jueves: Residencia – Artes ASAB- ALAC – Paiba - Residencia Viernes: Residencia – Artes ASAB- ALAC - Paiba – Residencia | AF19: 16931753.3 | AK19: =ROUND((16931753.3/(1-0.036)),2) -> 17564059.44 | AP19: =AK19*N19 -> 122948416.1 | AU19: 0 | AX19: =AK19*(1-AU19) -> 17564059.44 | BB19: =AX19*N19 -> 122948416.1 | BF19: =ROUND(BB19,2)*Q19 -> 122948416.1
A20: 2 | B20: EL-Z11-EM-N1-V5-MU | E20: Campero/camioneta | J20: Mes Zona Urbana | N20: 7 | Q20: 1 | T20: 1 | W20: FACULTAD CIENCIAS DE LA SALUD: SEDE BOSA PORVENIR: Calle 52 Sur # 93D – 97 ADUANILLA DE PAIBA: Calle 13 # 31 -75 RESIDENCIA: Carrera 53 # 123-34 Edificio Biela - Barrio Batán OCASIONALES: FACULTAD DE INGENIERÍA: Carrera 8 # 40-62 / Carrera 7 No. 40B - 53 FACULTAD DE CIENCIAS Y EDUCACIÓN: Carrera 3 No. 26A – 40 FACULTAD CIENCIAS MATEMATICAS Y NATURALES Carrera 4A # 26D - 54 MACARENA A: Carrera 3 No. 26A - 40 MACARENA B: Carrera 4 No. 26 B - 54 FACULTAD TECNOLÓGICA: Cl. 68D Bis A Sur N.º 49F - 70 Candelaria La Nueva IV Etapa FACULTAD DE ARTES ASAB: Carrera 13 No. 14 – 69 Lunes: Residencia - Sede Bosa El Porvenir - Residencia Martes: Residencia - Aduanilla de Paiba - Residencia Miércoles: Residencia - Sede Bosa El Porvenir - Residencia Jueves: Residencia - Sede Bosa El Porvenir - Residencia Viernes: Residencia - Aduanilla de Paiba - Residencia | AF20: 16931753.3 | AK20: =ROUND((16931753.3/(1-0.036)),2) -> 17564059.44 | AP20: =AK20*N20 -> 122948416.1 | AU20: 0 | AX20: =AK20*(1-AU20) -> 17564059.44 | BB20: =AX20*N20 -> 122948416.1 | BF20: =ROUND(BB20,2)*Q20 -> 122948416.1
A21: 3 | B21: EL-Z11-EM-N1-V5-MU | E21: Campero/camioneta | J21: Mes Zona Urbana | N21: 7 | Q21: 1 | T21: 1 | W21: DECANO FACULTAD CIENCIAS MATEMÁTICAS Y NATURALES FACULTAD CIENCIAS MATEMÁTICAS Y NATURALES: Carrera 4 # 26 D - 31 SEDE CANDELARIA: Calle 13 # 4 – 31 ADUANILLA DE PAIBA: Calle 13 # 31 -75 RESIDENCIA: Carrera 27 # 45ª - 16 OCASIONALES: FACULTAD DE INGENIERÍA: Carrera 8 # 40-62 / Carrera 7 No. 40B - 53 FACULTAD DE CIENCIAS Y EDUCACIÓN: Carrera 3 No. 26A – 40 FACULTAD CIENCIAS MATEMATICAS Y NATURALES Carrera 4A # 26D - 54 MACARENA A: Carrera 3 No. 26A - 40 MACARENA B: Carrera 4 No. 26 B - 54 FACULTAD TECNOLÓGICA: Cl. 68D Bis A Sur N.º 49F - 70 Candelaria La Nueva IV Etapa FACULTAD DE ARTES ASAB: Carrera 13 No. 14 – 69 Aeropuerto Lunes: Residencia - Carrera 4 # 26 D – 31 - Residencia Martes: Residencia - Aduanilla de Paiba - Residencia Miércoles: Residencia - Carrera 4 # 26 D – 31 - Calle 13 # 4 – 31- Residencia Jueves: Residencia - Carrera 4 # 26 D – 31 - Residencia Viernes: Residencia - Carrera 4 # 26 D – 31 - Calle 13 # 4 – 31- Residencia | AF21: 16931753.3 | AK21: =ROUND((16931753.3/(1-0.036)),2) -> 17564059.44 | AP21: =AK21*N21 -> 122948416.1 | AU21: 0 | AX21: =AK21*(1-AU21) -> 17564059.44 | BB21: =AX21*N21 -> 122948416.1 | BF21: =ROUND(BB21,2)*Q21 -> 122948416.1
A22: 4 | B22: EL-Z11-EM-N1-V5-MR | E22: Campero/camioneta | J22: Mes Zona Rural | N22: 8 | Q22: 1 | T22: 1 | W22: FACULTAD MEDIO AMBIENTE Y RECURSOS NATURALES (Sede Vivero): Carrera 5 Este No 15-82 SEDE BOSA PORVENIR: Calle 52 Sur # 93D – 97 ADUANILLA DE PAIBA: Calle 13 # 31 -75 RESIDENCIA: Vereda La Toma Finca Mi Potrerito, La Calera Cundinamarca a 3km del casco urbano OCASIONALES: FACULTAD DE INGENIERÍA: Carrera 8 # 40-62 / Carrera 7 No. 40B - 53 FACULTAD DE CIENCIAS Y EDUCACIÓN: Carrera 3 No. 26A – 40 FACULTAD CIENCIAS MATEMATICAS Y NATURALES Carrera 4A # 26D - 54 MACARENA A: Carrera 3 No. 26A - 40 MACARENA B: Carrera 4 No. 26 B - 54 FACULTAD TECNOLÓGICA: Cl. 68D Bis A Sur N.º 49F - 70 Candelaria La Nueva IV Etapa FACULTAD DE ARTES ASAB: Carrera 13 No. 14 – 69 Aeropuerto Lunes: La Calera - Sede El vivero - La Calera Martes: La Calera - Aduanilla de Paiba - La Calera Miércoles: La Calera - Sede Bosa El Porvenir - La Calera Jueves: La Calera - Sede El vivero - La Calera Viernes: Calera - Sede El vivero - Sede Paiba - La Calera | AF22: 29686273.74 | AK22: =ROUND((29686273.74/(1-0.036)),2) -> 30794889.77 | AP22: =AK22*N22 -> 246359118.2 | AU22: 0 | AX22: =AK22*(1-AU22) -> 30794889.77 | BB22: =AX22*N22 -> 246359118.2 | BF22: =ROUND(BB22,2)*Q22 -> 246359118.2
BB23: Sub Total | BF23: =SUM(BF19:BJ22) -> 615204366.4
BB24: Peajes | BF24: =$AJ$14 -> 12300
BB25: Valor Total | BF25: =SUM(BF23:BJ24) -> 615216666.4
A27: Gravámenes adicionales (Estampillas)
A28: Si los hay, indique los gravámenes adicionales (estampilllas) a los que está sujeta la Orden de Compra. Son gravámenes adiconales por ejemplo; estampillas y demás impuestos territoriales. Los impuestos como ICA y retención en la fuente NO son gravámenes adicionales.
A30: No. | B30: Descripción | S30: % Gravámen
A31: 1 | B31: Estampilla Universidad Distrital Francisco Jose de Caldas 50 años | S31: 0.011
A32: 2 | B32: Estampilla Pro-cultura | S32: 0.005
A33: 3 | B33: Estampilla Adulto Mayor | S33: 0.02
L34: Total Gravámenes adicionales | S34: =SUM(S31:X33) -> 0.036
D36: 1

Sheet CSV (hidden)
A1: Tipo | B1: Cantidad | C1: CÃ³digo de unidad de medida* | D1: Precio base | E1: Divisa | F1: DescripciÃ³n | G1: MercancÃ­a
A2: item | B2: 1 | C2: Mes Zona Urbana | D2: "87096657,9" | E2: COP | F2: "tra02--VehÃ­culos con motor elÃ©ctrico o hÃ­brido - Zn: 11 - Seg: Empresarial - Nivel: 1 - Servicio: Campero/camioneta - Und Tiempo: Mes Zona Urbana - Cant Tiempo: 7 - Pasajeros: 1"
A3: item | B3: 1 | C3: Mes Zona Urbana | D3: "87096657,9" | E3: COP | F3: "tra02--VehÃ­culos con motor elÃ©ctrico o hÃ­brido - Zn: 11 - Seg: Empresarial - Nivel: 1 - Servicio: Campero/camioneta - Und Tiempo: Mes Zona Urbana - Cant Tiempo: 7 - Pasajeros: 1"
A4: item | B4: 1 | C4: Mes Zona Urbana | D4: "87096657,9" | E4: COP | F4: "tra02--VehÃ­culos con motor elÃ©ctrico o hÃ­brido - Zn: 11 - Seg: Empresarial - Nivel: 1 - Servicio: Campero/camioneta - Und Tiempo: Mes Zona Urbana - Cant Tiempo: 7 - Pasajeros: 1"
A5: item | B5: 1 | C5: Mes Zona Rural | D5: "109492941,44" | E5: COP | F5: "tra02--VehÃ­culos con motor elÃ©ctrico o hÃ­brido - Zn: 11 - Seg: Empresarial - Nivel: 1 - Servicio: Campero/camioneta - Und Tiempo: Mes Zona Rural - Cant Tiempo: 8 - Pasajeros: 1"
A6: item | B6: 1 | C6: Und | D6: "12300,00" | E6: COP | F6: "tra02--Peajes"

Sheet Valores (hidden)
A1: item | B1: min | C1: codigo | D1: UNION TEMPORAL MEGA ALIANZA | E1: GRUPO EMPRESARIAL JHS SAS | F1: UT BUS-ING | G1: UNION TEMPORAL TRANSPORTES MARCO 2022 | H1: TRANSPORTES CSC S.A.S - EN REORGANIZACIÓN | I1: UT ALIANZA BT | J1: UT KOE 2023 | K1: UNION TEMPORAL LCT-2022 | L1: UNIÓN TEMPORAL VET 2023 | M1: UNION TEMPORAL ANDINO 2022 | N1: ZIDCAR SAS | O1: Consorcio Transportes CCE 2 | P1: EMPRESA COLOMBIANA DE SERVICIOS ESPECIALES Y TURISMO SOCIEDAD POR ACCIONES SIMPLIFICADA | Q1: UT AMP 2022 | R1: UNIÓN TEMPORAL MOVICOL | S1: UT TAM ESPECIALES | T1: UNIÓN TEMPORAL ALIANZA TRANSNACIONAL | U1: UNION TEMPORAL G7 | V1: UNION TEMPORAL VIAJANDO POR COLOMBIA | W1: UNION TEMPORAL AG COLOMBIA
A2: 1 | B2: =MIN(C2:C2) -> 0 | C2: EL-Z11-EM-N1-V5-MU | D2: 15549207.91 | E2: 32734723.04 | F2: 17181773.16 | G2: 16015684.49 | H2: 11937232.83 | I2: 19197123.68 | J2: 15490598.68 | K2: 16931753.3 | L2: 17462281.57 | M2: 17609023.43 | N2: 20800658.92 | O2: 14434319.68 | P2: 34540776.72 | Q2: 12868132.5 | R2: 16931753.3 | S2: 11994454.03 | T2: 18513179.05 | U2: 17055955.61 | V2: 33628719.61 | W2: 14387662.55
A3: 2 | B3: =MIN(C3:C3) -> 0 | C3: EL-Z11-EM-N1-V5-MU | D3: 15549207.91 | E3: 32734723.04 | F3: 17181773.16 | G3: 16015684.49 | H3: 11937232.83 | I3: 19197123.68 | J3: 15490598.68 | K3: 16931753.3 | L3: 17462281.57 | M3: 17609023.43 | N3: 20800658.92 | O3: 14434319.68 | P3: 34540776.72 | Q3: 12868132.5 | R3: 16931753.3 | S3: 11994454.03 | T3: 18513179.05 | U3: 17055955.61 | V3: 33628719.61 | W3: 14387662.55
A4: 3 | B4: =MIN(C4:C4) -> 0 | C4: EL-Z11-EM-N1-V5-MU | D4: 15549207.91 | E4: 32734723.04 | F4: 17181773.16 | G4: 16015684.49 | H4: 11937232.83 | I4: 19197123.68 | J4: 15490598.68 | K4: 16931753.3 | L4: 17462281.57 | M4: 17609023.43 | N4: 20800658.92 | O4: 14434319.68 | P4: 34540776.72 | Q4: 12868132.5 | R4: 16931753.3 | S4: 11994454.03 | T4: 18513179.05 | U4: 17055955.61 | V4: 33628719.61 | W4: 14387662.55
A5: 4 | B5: =MIN(C5:C5) -> 0 | C5: EL-Z11-EM-N1-V5-MR | D5: 19342017.73 | E5: 34427898.37 | F5: 25804682.1 | G5: 19922277.94 | H5: 14435656.81 | I5: 29686273.74 | J5: 19363248.35 | K5: 20318103.96 | L5: 22700966.04 | M5: 24889677.35 | N5: 31200988.39 | O5: 16599467.64 | P5: 41448932.07 | Q5: 14798352.38 | R5: 29686273.74 | S5: 13193899.44 | T5: 28056001 | U5: 25607637.87 | V5: 36283618.53 | W5: 17474894.59
A6: Total | B6: =MIN($D6:$AS6) -> 49177261.53 | C6: Codigo | D6: =IF(D7=$A5,SUM(D2:D5),"V") -> 65989641.46 | E6: 132632067.5 | F6: 77350001.58 | G6: 67969331.41 | H6: 50247355.3 | I6: 87277644.78 | J6: 65835044.39 | K6: 71113363.86 | L6: 75087810.75 | M6: 77716747.64 | N6: 93602965.15 | O6: 59902426.68 | P6: 145071262.2 | Q6: 53402749.88 | R6: 80481533.64 | S6: 49177261.53 | T6: 83595538.15 | U6: 76775504.7 | V6: 137169777.4 | W6: 60637882.24
D7: =COUNTA(D2:D5) -> 4 | E7: 4 | F7: 4 | G7: 4 | H7: 4 | I7: 4 | J7: 4 | K7: 4 | L7: 4 | M7: 4 | N7: 4 | O7: 4 | P7: 4 | Q7: 4 | R7: 4 | S7: 4 | T7: 4 | U7: 4 | V7: 4 | W7: 4

Sheet ListasAutomaticas (hidden)
A1: Proveedores | B1: 1Modalidad | C1: 1Zona | D1: 1Segmento | E1: 1ListaServicio | F1: 1Vehiculo | G1: 1UniTiempo | J1: 2UniTiempo | M1: 3UniTiempo | P1: 4UniTiempo | S1: 5UniTiempo | V1: 6UniTiempo | Y1: 7UniTiempo | AB1: 8UniTiempo | AE1: 9UniTiempo | AH1: 10UniTiempo | AK1: 11UniTiempo | AN1: 12UniTiempo | AQ1: 13UniTiempo | AT1: 14UniTiempo | AW1: 15UniTiempo | AZ1: 16UniTiempo | BC1: 17UniTiempo | BF1: 18UniTiempo | BI1: 19UniTiempo | BL1: 20UniTiempo | BO1: 21UniTiempo | BR1: 22UniTiempo | BU1: 23UniTiempo | BX1: 24UniTiempo | CA1: 25UniTiempo | CD1: 26UniTiempo | CG1: 27UniTiempo | CJ1: 28UniTiempo | CM1: 29UniTiempo | CP1: 30UniTiempo | CS1: 31UniTiempo | CV1: 32UniTiempo | CY1: 33UniTiempo | DB1: 34UniTiempo | DE1: 35UniTiempo | DH1: 36UniTiempo | DK1: 37UniTiempo | DN1: 38UniTiempo | DQ1: 39UniTiempo | DT1: 40UniTiempo | DW1: 41UniTiempo | DZ1: 42UniTiempo | EC1: 43UniTiempo | EF1: 44UniTiempo | EI1: 45UniTiempo | EL1: 46UniTiempo | EO1: 47UniTiempo | ER1: 48UniTiempo | EU1: 49UniTiempo | EX1: 50UniTiempo | FA1: 51UniTiempo | FD1: 52UniTiempo | FG1: 53UniTiempo | FJ1: 54UniTiempo | FM1: 55UniTiempo | FP1: 56UniTiempo | FS1: 57UniTiempo | FV1: 58UniTiempo | FY1: 59UniTiempo | GB1: 60UniTiempo | GE1: 61UniTiempo | GH1: 62UniTiempo | GK1: 63UniTiempo | GN1: 64UniTiempo | GQ1: 65UniTiempo | GT1: 66UniTiempo | GW1: 67UniTiempo | GZ1: 68UniTiempo | HC1: 69UniTiempo | HF1: 70UniTiempo | HI1: 71UniTiempo | HL1: 72UniTiempo | HO1: 73UniTiempo | HR1: 74UniTiempo | HU1: 75UniTiempo | HX1: 76UniTiempo | IA1: 77UniTiempo | ID1: 78UniTiempo | IG1: 79UniTiempo | IJ1: 80UniTiempo | IM1: 81UniTiempo | IP1: 82UniTiempo | IS1: 83UniTiempo | IV1: 84UniTiempo | IY1: 85UniTiempo | JB1: 86UniTiempo | JE1: 87UniTiempo | JH1: 88UniTiempo | JK1: 89UniTiempo | JN1: 90UniTiempo | JQ1: 91UniTiempo | JT1: 92UniTiempo | JW1: 93UniTiempo | JZ1: 94UniTiempo | KC1: 95UniTiempo | KF1: 96UniTiempo | KI1: 97UniTiempo | KL1: 98UniTiempo | KO1: 99UniTiempo | KR1: 100UniTiempo | KU1: 101UniTiempo | KX1: 102UniTiempo | LA1: 103UniTiempo | LD1: 104UniTiempo | LG1: 105UniTiempo | LJ1: 106UniTiempo | LM1: 107UniTiempo | LP1: 108UniTiempo | LS1: 109UniTiempo | LV1: 110UniTiempo | LY1: 111UniTiempo | MB1: 112UniTiempo | ME1: 113UniTiempo | MH1: 114UniTiempo | MK1: 115UniTiempo | MN1: 116UniTiempo | MQ1: 117UniTiempo | MT1: 118UniTiempo | MW1: 119UniTiempo | MZ1: 120UniTiempo | NC1: 121UniTiempo | NF1: 122UniTiempo | NI1: 123UniTiempo | NL1: 124UniTiempo | NO1: 125UniTiempo | NR1: 126UniTiempo | NU1: 127UniTiempo | NX1: 128UniTiempo | OA1: 129UniTiempo | OD1: 130UniTiempo | OG1: 131UniTiempo | OJ1: 132UniTiempo | OM1: 133UniTiempo | OP1: 134UniTiempo | OS1: 135UniTiempo | OV1: 136UniTiempo | OY1: 137UniTiempo | PB1: 138UniTiempo | PE1: 139UniTiempo | PH1: 140UniTiempo | PK1: 141UniTiempo | PN1: 142UniTiempo | PQ1: 143UniTiempo | PT1: 144UniTiempo | PW1: 145UniTiempo | PZ1: 146UniTiempo | QC1: 147UniTiempo | QF1: 148UniTiempo | QI1: 149UniTiempo | QL1: 150UniTiempo | QO1: 151UniTiempo | SQ1: 169UniTiempo | WC1: 199UniTiempo | WL1: 202UniTiempo
A2: UNION TEMPORAL MEGA ALIANZA | B2: Vehículos con motor de combustión interna | C2: 1 | D2: Empresarial | E2: 1 | F2: Automóvil | G2: Día Zona Dificil Acceso | J2: Día Zona Dificil Acceso | M2: Día Zona Dificil Acceso | P2: Día Zona Dificil Acceso | S2: Adicional por hora en día dominical o festivo | V2: Adicional por hora en día dominical o festivo | Y2: Día Zona Dificil Acceso | AB2: Adicional por hora en día dominical o festivo | AE2: Adicional por hora en día dominical o festivo | AH2: Día Zona Dificil Acceso | AK2: Adicional por hora en día dominical o festivo | AN2: Adicional por hora en día dominical o festivo | AQ2: Adicional por hora en día dominical o festivo | AT2: Adicional por hora en día dominical o festivo | AW2: Día Zona Dificil Acceso | AZ2: Adicional por hora en día dominical o festivo | BC2: Adicional por hora en día dominical o festivo | BF2: Adicional por hora en día dominical o festivo | BI2: Adicional por hora en día dominical o festivo | BL2: Adicional por hora en día dominical o festivo | BO2: Adicional por hora en día dominical o festivo | BR2: Adicional por hora en día dominical o festivo | BU2: Adicional por hora en día dominical o festivo | BX2: Adicional por hora en día dominical o festivo | CA2: Adicional por hora en día dominical o festivo | CD2: Adicional por hora en día dominical o festivo | CG2: Adicional por hora en día dominical o festivo | CJ2: Adicional por hora en día dominical o festivo | CM2: Adicional por hora en día dominical o festivo | CP2: Adicional por hora en día dominical o festivo | CS2: Adicional por hora en día dominical o festivo | CV2: Adicional por hora en día dominical o festivo | CY2: Adicional por hora en día dominical o festivo | DB2: Adicional por hora en día dominical o festivo | DE2: Adicional por hora en día dominical o festivo | DH2: Adicional por hora en día dominical o festivo | DK2: Adicional por hora en día dominical o festivo | DN2: Adicional por hora en día dominical o festivo | DQ2: Adicional por hora en día dominical o festivo | DT2: Adicional por hora en día dominical o festivo | DW2: Adicional por hora en día dominical o festivo | DZ2: Adicional por hora en día dominical o festivo | EC2: Adicional por hora en día dominical o festivo | EF2: Adicional por hora en día dominical o festivo | EI2: Adicional por hora en día dominical o festivo | EL2: Adicional por hora en día dominical o festivo | EO2: Adicional por hora en día dominical o festivo | ER2: Adicional por hora en día dominical o festivo | EU2: Adicional por hora en día dominical o festivo | EX2: Adicional por hora en día dominical o festivo | FA2: Adicional por hora en día dominical o festivo | FD2: Adicional por hora en día dominical o festivo | FG2: Adicional por hora en día dominical o festivo | FJ2: Adicional por hora en día dominical o festivo | FM2: Adicional por hora en día dominical o festivo | FP2: Adicional por hora en día dominical o festivo | FS2: Adicional por hora en día dominical o festivo | FV2: Adicional por hora en día dominical o festivo | FY2: Adicional por hora en día dominical o festivo | GB2: Adicional por hora en día dominical o festivo | GE2: Adicional por hora en día dominical o festivo | GH2: Adicional por hora en día dominical o festivo | GK2: Adicional por hora en día dominical o festivo | GN2: Adicional por hora en día dominical o festivo | GQ2: Adicional por hora en día dominical o festivo | GT2: Adicional por hora en día dominical o festivo | GW2: Adicional por hora en día dominical o festivo | GZ2: Adicional por hora en día dominical o festivo | HC2: Adicional por hora en día dominical o festivo | HF2: Adicional por hora en día dominical o festivo | HI2: Adicional por hora en día dominical o festivo | HL2: Adicional por hora en día dominical o festivo | HO2: Adicional por hora en día dominical o festivo | HR2: Adicional por hora en día dominical o festivo | HU2: Adicional por hora en día dominical o festivo | HX2: Adicional por hora en día dominical o festivo | IA2: Adicional por hora en día dominical o festivo | ID2: Adicional por hora en día dominical o festivo | IG2: Adicional por hora en día dominical o festivo | IJ2: Adicional por hora en día dominical o festivo | IM2: Adicional por hora en día dominical o festivo | IP2: Adicional por hora en día dominical o festivo | IS2: Adicional por hora en día dominical o festivo | IV2: Adicional por hora en día dominical o festivo | IY2: Adicional por hora en día dominical o festivo | JB2: Adicional por hora en día dominical o festivo | JE2: Adicional por hora en día dominical o festivo | JH2: Adicional por hora en día dominical o festivo | JK2: Adicional por hora en día dominical o festivo | JN2: Adicional por hora en día dominical o festivo | JQ2: Adicional por hora en día dominical o festivo | JT2: Adicional por hora en día dominical o festivo | JW2: Adicional por hora en día dominical o festivo | JZ2: Adicional por hora en día dominical o festivo | KC2: Adicional por hora en día dominical o festivo | KF2: Adicional por hora en día dominical o festivo | KI2: Adicional por hora en día dominical o festivo | KL2: Adicional por hora en día dominical o festivo | KO2: Adicional por hora en día dominical o festivo | KR2: Adicional por hora en día dominical o festivo | KU2: Adicional por hora en día dominical o festivo | KX2: Adicional por hora en día dominical o festivo | LA2: Adicional por hora en día dominical o festivo | LD2: Adicional por hora en día dominical o festivo | LG2: Adicional por hora en día dominical o festivo | LJ2: Adicional por hora en día dominical o festivo | LM2: Adicional por hora en día dominical o festivo | LP2: Adicional por hora en día dominical o festivo | LS2: Adicional por hora en día dominical o festivo | LV2: Adicional por hora en día dominical o festivo | LY2: Adicional por hora en día dominical o festivo | MB2: Adicional por hora en día dominical o festivo | ME2: Adicional por hora en día dominical o festivo | MH2: Adicional por hora en día dominical o festivo | MK2: Adicional por hora en día dominical o festivo | MN2: Adicional por hora en día dominical o festivo | MQ2: Adicional por hora en día dominical o festivo | MT2: Adicional por hora en día dominical o festivo | MW2: Adicional por hora en día dominical o festivo | MZ2: Adicional por hora en día dominical o festivo | NC2: Adicional por hora en día dominical o festivo | NF2: Adicional por hora en día dominical o festivo | NI2: Adicional por hora en día dominical o festivo | NL2: Adicional por hora en día dominical o festivo | NO2: Adicional por hora en día dominical o festivo | NR2: Adicional por hora en día dominical o festivo | NU2: Adicional por hora en día dominical o festivo | NX2: Adicional por hora en día dominical o festivo | OA2: Adicional por hora en día dominical o festivo | OD2: Adicional por hora en día dominical o festivo | OG2: Adicional por hora en día dominical o festivo | OJ2: Adicional por hora en día dominical o festivo | OM2: Adicional por hora en día dominical o festivo | OP2: Adicional por hora en día dominical o festivo | OS2: Adicional por hora en día dominical o festivo | OV2: Adicional por hora en día dominical o festivo | OY2: Adicional por hora en día dominical o festivo | PB2: Adicional por hora en día dominical o festivo | PE2: Adicional por hora en día dominical o festivo | PH2: Adicional por hora en día dominical o festivo | PK2: Adicional por hora en día dominical o festivo | PN2: Adicional por hora en día dominical o festivo | PQ2: Adicional por hora en día dominical o festivo | PT2: Adicional por hora en día dominical o festivo | PW2: Adicional por hora en día dominical o festivo | PZ2: Adicional por hora en día dominical o festivo | QC2: Adicional por hora en día dominical o festivo | QF2: Adicional por hora en día dominical o festivo | QI2: Adicional por hora en día dominical o festivo | QL2: Adicional por hora en día dominical o festivo | QO2: Adicional por hora en día dominical o festivo | SQ2: Adicional por hora en día dominical o festivo | WC2: Día Zona Dificil Acceso | WL2: Adicional por hora en día dominical o festivo
A3: GRUPO EMPRESARIAL JHS SAS | B3: Vehículos con motor eléctrico o híbrido | C3: 2 | D3: Escolar | E3: 2 | F3: Campero/camioneta | G3: Día Zona Rural | J3: Día Zona Rural | M3: Día Zona Rural | P3: Día Zona Rural | S3: Adicional por hora extra | V3: Adicional por hora extra | Y3: Día Zona Rural | AB3: Adicional por hora extra | AE3: Adicional por hora extra | AH3: Día Zona Rural | AK3: Adicional por hora extra | AN3: Adicional por hora extra | AQ3: Adicional por hora extra | AT3: Adicional por hora extra | AW3: Día Zona Rural | AZ3: Adicional por hora extra | BC3: Adicional por hora extra | BF3: Adicional por hora extra | BI3: Adicional por hora extra | BL3: Adicional por hora extra | BO3: Adicional por hora extra | BR3: Adicional por hora extra | BU3: Adicional por hora extra | BX3: Adicional por hora extra | CA3: Adicional por hora extra | CD3: Adicional por hora extra | CG3: Adicional por hora extra | CJ3: Adicional por hora extra | CM3: Adicional por hora extra | CP3: Adicional por hora extra | CS3: Adicional por hora extra | CV3: Adicional por hora extra | CY3: Adicional por hora extra | DB3: Adicional por hora extra | DE3: Adicional por hora extra | DH3: Adicional por hora extra | DK3: Adicional por hora extra | DN3: Adicional por hora extra | DQ3: Adicional por hora extra | DT3: Adicional por hora extra | DW3: Adicional por hora extra | DZ3: Adicional por hora extra | EC3: Adicional por hora extra | EF3: Adicional por hora extra | EI3: Adicional por hora extra | EL3: Adicional por hora extra | EO3: Adicional por hora extra | ER3: Adicional por hora extra | EU3: Adicional por hora extra | EX3: Adicional por hora extra | FA3: Adicional por hora extra | FD3: Adicional por hora extra | FG3: Adicional por hora extra | FJ3: Adicional por hora extra | FM3: Adicional por hora extra | FP3: Adicional por hora extra | FS3: Adicional por hora extra | FV3: Adicional por hora extra | FY3: Adicional por hora extra | GB3: Adicional por hora extra | GE3: Adicional por hora extra | GH3: Adicional por hora extra | GK3: Adicional por hora extra | GN3: Adicional por hora extra | GQ3: Adicional por hora extra | GT3: Adicional por hora extra | GW3: Adicional por hora extra | GZ3: Adicional por hora extra | HC3: Adicional por hora extra | HF3: Adicional por hora extra | HI3: Adicional por hora extra | HL3: Adicional por hora extra | HO3: Adicional por hora extra | HR3: Adicional por hora extra | HU3: Adicional por hora extra | HX3: Adicional por hora extra | IA3: Adicional por hora extra | ID3: Adicional por hora extra | IG3: Adicional por hora extra | IJ3: Adicional por hora extra | IM3: Adicional por hora extra | IP3: Adicional por hora extra | IS3: Adicional por hora extra | IV3: Adicional por hora extra | IY3: Adicional por hora extra | JB3: Adicional por hora extra | JE3: Adicional por hora extra | JH3: Adicional por hora extra | JK3: Adicional por hora extra | JN3: Adicional por hora extra | JQ3: Adicional por hora extra | JT3: Adicional por hora extra | JW3: Adicional por hora extra | JZ3: Adicional por hora extra | KC3: Adicional por hora extra | KF3: Adicional por hora extra | KI3: Adicional por hora extra | KL3: Adicional por hora extra | KO3: Adicional por hora extra | KR3: Adicional por hora extra | KU3: Adicional por hora extra | KX3: Adicional por hora extra | LA3: Adicional por hora extra | LD3: Adicional por hora extra | LG3: Adicional por hora extra | LJ3: Adicional por hora extra | LM3: Adicional por hora extra | LP3: Adicional por hora extra | LS3: Adicional por hora extra | LV3: Adicional por hora extra | LY3: Adicional por hora extra | MB3: Adicional por hora extra | ME3: Adicional por hora extra | MH3: Adicional por hora extra | MK3: Adicional por hora extra | MN3: Adicional por hora extra | MQ3: Adicional por hora extra | MT3: Adicional por hora extra | MW3: Adicional por hora extra | MZ3: Adicional por hora extra | NC3: Adicional por hora extra | NF3: Adicional por hora extra | NI3: Adicional por hora extra | NL3: Adicional por hora extra | NO3: Adicional por hora extra | NR3: Adicional por hora extra | NU3: Adicional por hora extra | NX3: Adicional por hora extra | OA3: Adicional por hora extra | OD3: Adicional por hora extra | OG3: Adicional por hora extra | OJ3: Adicional por hora extra | OM3: Adicional por hora extra | OP3: Adicional por hora extra | OS3: Adicional por hora extra | OV3: Adicional por hora extra | OY3: Adicional por hora extra | PB3: Adicional por hora extra | PE3: Adicional por hora extra | PH3: Adicional por hora extra | PK3: Adicional por hora extra | PN3: Adicional por hora extra | PQ3: Adicional por hora extra | PT3: Adicional por hora extra | PW3: Adicional por hora extra | PZ3: Adicional por hora extra | QC3: Adicional por hora extra | QF3: Adicional por hora extra | QI3: Adicional por hora extra | QL3: Adicional por hora extra | QO3: Adicional por hora extra | SQ3: Adicional por hora extra | WC3: Día Zona Rural | WL3: Adicional por hora extra
A4: UT BUS-ING | C4: 3 | D4: Grupo específico de usuarios | F4: Recargos | G4: Día Zona Urbana | J4: Día Zona Urbana | M4: Día Zona Urbana | P4: Día Zona Urbana | S4: Adicional por hora nocturna | V4: Adicional por hora nocturna | Y4: Día Zona Urbana | AB4: Adicional por hora nocturna | AE4: Adicional por hora nocturna | AH4: Día Zona Urbana | AK4: Adicional por hora nocturna | AN4: Adicional por hora nocturna | AQ4: Adicional por hora nocturna | AT4: Adicional por hora nocturna | AW4: Día Zona Urbana | AZ4: Adicional por hora nocturna | BC4: Adicional por hora nocturna | BF4: Adicional por hora nocturna | BI4: Adicional por hora nocturna | BL4: Adicional por hora nocturna | BO4: Adicional por hora nocturna | BR4: Adicional por hora nocturna | BU4: Adicional por hora nocturna | BX4: Adicional por hora nocturna | CA4: Adicional por hora nocturna | CD4: Adicional por hora nocturna | CG4: Adicional por hora nocturna | CJ4: Adicional por hora nocturna | CM4: Adicional por hora nocturna | CP4: Adicional por hora nocturna | CS4: Adicional por hora nocturna | CV4: Adicional por hora nocturna | CY4: Adicional por hora nocturna | DB4: Adicional por hora nocturna | DE4: Adicional por hora nocturna | DH4: Adicional por hora nocturna | DK4: Adicional por hora nocturna | DN4: Adicional por hora nocturna | DQ4: Adicional por hora nocturna | DT4: Adicional por hora nocturna | DW4: Adicional por hora nocturna | DZ4: Adicional por hora nocturna | EC4: Adicional por hora nocturna | EF4: Adicional por hora nocturna | EI4: Adicional por hora nocturna | EL4: Adicional por hora nocturna | EO4: Adicional por hora nocturna | ER4: Adicional por hora nocturna | EU4: Adicional por hora nocturna | EX4: Adicional por hora nocturna | FA4: Adicional por hora nocturna | FD4: Adicional por hora nocturna | FG4: Adicional por hora nocturna | FJ4: Adicional por hora nocturna | FM4: Adicional por hora nocturna | FP4: Adicional por hora nocturna | FS4: Adicional por hora nocturna | FV4: Adicional por hora nocturna | FY4: Adicional por hora nocturna | GB4: Adicional por hora nocturna | GE4: Adicional por hora nocturna | GH4: Adicional por hora nocturna | GK4: Adicional por hora nocturna | GN4: Adicional por hora nocturna | GQ4: Adicional por hora nocturna | GT4: Adicional por hora nocturna | GW4: Adicional por hora nocturna | GZ4: Adicional por hora nocturna | HC4: Adicional por hora nocturna | HF4: Adicional por hora nocturna | HI4: Adicional por hora nocturna | HL4: Adicional por hora nocturna | HO4: Adicional por hora nocturna | HR4: Adicional por hora nocturna | HU4: Adicional por hora nocturna | HX4: Adicional por hora nocturna | IA4: Adicional por hora nocturna | ID4: Adicional por hora nocturna | IG4: Adicional por hora nocturna | IJ4: Adicional por hora nocturna | IM4: Adicional por hora nocturna | IP4: Adicional por hora nocturna | IS4: Adicional por hora nocturna | IV4: Adicional por hora nocturna | IY4: Adicional por hora nocturna | JB4: Adicional por hora nocturna | JE4: Adicional por hora nocturna | JH4: Adicional por hora nocturna | JK4: Adicional por hora nocturna | JN4: Adicional por hora nocturna | JQ4: Adicional por hora nocturna | JT4: Adicional por hora nocturna | JW4: Adicional por hora nocturna | JZ4: Adicional por hora nocturna | KC4: Adicional por hora nocturna | KF4: Adicional por hora nocturna | KI4: Adicional por hora nocturna | KL4: Adicional por hora nocturna | KO4: Adicional por hora nocturna | KR4: Adicional por hora nocturna | KU4: Adicional por hora nocturna | KX4: Adicional por hora nocturna | LA4: Adicional por hora nocturna | LD4: Adicional por hora nocturna | LG4: Adicional por hora nocturna | LJ4: Adicional por hora nocturna | LM4: Adicional por hora nocturna | LP4: Adicional por hora nocturna | LS4: Adicional por hora nocturna | LV4: Adicional por hora nocturna | LY4: Adicional por hora nocturna | MB4: Adicional por hora nocturna | ME4: Adicional por hora nocturna | MH4: Adicional por hora nocturna | MK4: Adicional por hora nocturna | MN4: Adicional por hora nocturna | MQ4: Adicional por hora nocturna | MT4: Adicional por hora nocturna | MW4: Adicional por hora nocturna | MZ4: Adicional por hora nocturna | NC4: Adicional por hora nocturna | NF4: Adicional por hora nocturna | NI4: Adicional por hora nocturna | NL4: Adicional por hora nocturna | NO4: Adicional por hora nocturna | NR4: Adicional por hora nocturna | NU4: Adicional por hora nocturna | NX4: Adicional por hora nocturna | OA4: Adicional por hora nocturna | OD4: Adicional por hora nocturna | OG4: Adicional por hora nocturna | OJ4: Adicional por hora nocturna | OM4: Adicional por hora nocturna | OP4: Adicional por hora nocturna | OS4: Adicional por hora nocturna | OV4: Adicional por hora nocturna | OY4: Adicional por hora nocturna | PB4: Adicional por hora nocturna | PE4: Adicional por hora nocturna | PH4: Adicional por hora nocturna | PK4: Adicional por hora nocturna | PN4: Adicional por hora nocturna | PQ4: Adicional por hora nocturna | PT4: Adicional por hora nocturna | PW4: Adicional por hora nocturna | PZ4: Adicional por hora nocturna | QC4: Adicional por hora nocturna | QF4: Adicional por hora nocturna | QI4: Adicional por hora nocturna | QL4: Adicional por hora nocturna | QO4: Adicional por hora nocturna | SQ4: Adicional por hora nocturna | WC4: Día Zona Urbana | WL4: Adicional por hora nocturna
A5: UNION TEMPORAL TRANSPORTES MARCO 2022 | C5: 4 | D5: Salud | G5: Hora Zona Dificil Acceso | J5: Hora Zona Dificil Acceso | M5: Hora Zona Dificil Acceso | P5: Hora Zona Dificil Acceso | S5: Pernoctada | V5: Pernoctada | Y5: Hora Zona Dificil Acceso | AB5: Pernoctada | AE5: Pernoctada | AH5: Hora Zona Dificil Acceso | AK5: Pernoctada | AN5: Pernoctada | AQ5: Pernoctada | AT5: Pernoctada | AW5: Hora Zona Dificil Acceso | AZ5: Pernoctada | BC5: Pernoctada | BF5: Pernoctada | BI5: Pernoctada | BL5: Pernoctada | BO5: Pernoctada | BR5: Pernoctada | BU5: Pernoctada | BX5: Pernoctada | CA5: Pernoctada | CD5: Pernoctada | CG5: Pernoctada | CJ5: Pernoctada | CM5: Pernoctada | CP5: Pernoctada | CS5: Pernoctada | CV5: Pernoctada | CY5: Pernoctada | DB5: Pernoctada | DE5: Pernoctada | DH5: Pernoctada | DK5: Pernoctada | DN5: Pernoctada | DQ5: Pernoctada | DT5: Pernoctada | DW5: Pernoctada | DZ5: Pernoctada | EC5: Pernoctada | EF5: Pernoctada | EI5: Pernoctada | EL5: Pernoctada | EO5: Pernoctada | ER5: Pernoctada | EU5: Pernoctada | EX5: Pernoctada | FA5: Pernoctada | FD5: Pernoctada | FG5: Pernoctada | FJ5: Pernoctada | FM5: Pernoctada | FP5: Pernoctada | FS5: Pernoctada | FV5: Pernoctada | FY5: Pernoctada | GB5: Pernoctada | GE5: Pernoctada | GH5: Pernoctada | GK5: Pernoctada | GN5: Pernoctada | GQ5: Pernoctada | GT5: Pernoctada | GW5: Pernoctada | GZ5: Pernoctada | HC5: Pernoctada | HF5: Pernoctada | HI5: Pernoctada | HL5: Pernoctada | HO5: Pernoctada | HR5: Pernoctada | HU5: Pernoctada | HX5: Pernoctada | IA5: Pernoctada | ID5: Pernoctada | IG5: Pernoctada | IJ5: Pernoctada | IM5: Pernoctada | IP5: Pernoctada | IS5: Pernoctada | IV5: Pernoctada | IY5: Pernoctada | JB5: Pernoctada | JE5: Pernoctada | JH5: Pernoctada | JK5: Pernoctada | JN5: Pernoctada | JQ5: Pernoctada | JT5: Pernoctada | JW5: Pernoctada | JZ5: Pernoctada | KC5: Pernoctada | KF5: Pernoctada | KI5: Pernoctada | KL5: Pernoctada | KO5: Pernoctada | KR5: Pernoctada | KU5: Pernoctada | KX5: Pernoctada | LA5: Pernoctada | LD5: Pernoctada | LG5: Pernoctada | LJ5: Pernoctada | LM5: Pernoctada | LP5: Pernoctada | LS5: Pernoctada | LV5: Pernoctada | LY5: Pernoctada | MB5: Pernoctada | ME5: Pernoctada | MH5: Pernoctada | MK5: Pernoctada | MN5: Pernoctada | MQ5: Pernoctada | MT5: Pernoctada | MW5: Pernoctada | MZ5: Pernoctada | NC5: Pernoctada | NF5: Pernoctada | NI5: Pernoctada | NL5: Pernoctada | NO5: Pernoctada | NR5: Pernoctada | NU5: Pernoctada | NX5: Pernoctada | OA5: Pernoctada | OD5: Pernoctada | OG5: Pernoctada | OJ5: Pernoctada | OM5: Pernoctada | OP5: Pernoctada | OS5: Pernoctada | OV5: Pernoctada | OY5: Pernoctada | PB5: Pernoctada | PE5: Pernoctada | PH5: Pernoctada | PK5: Pernoctada | PN5: Pernoctada | PQ5: Pernoctada | PT5: Pernoctada | PW5: Pernoctada | PZ5: Pernoctada | QC5: Pernoctada | QF5: Pernoctada | QI5: Pernoctada | QL5: Pernoctada | QO5: Pernoctada | SQ5: Pernoctada | WC5: Hora Zona Dificil Acceso | WL5: Pernoctada
A6: TRANSPORTES CSC S.A.S - EN REORGANIZACIÓN | C6: 5 | G6: Hora Zona Rural | J6: Hora Zona Rural | M6: Hora Zona Rural | P6: Hora Zona Rural | Y6: Hora Zona Rural | AH6: Hora Zona Rural | AW6: Hora Zona Rural | WC6: Hora Zona Rural
A7: UT ALIANZA BT | C7: 6 | G7: Hora Zona Urbana | J7: Hora Zona Urbana | M7: Hora Zona Urbana | P7: Hora Zona Urbana | Y7: Hora Zona Urbana | AH7: Hora Zona Urbana | AW7: Hora Zona Urbana | WC7: Hora Zona Urbana
A8: UT KOE 2023 | C8: 7 | G8: Mes Zona Dificil Acceso | J8: Mes Zona Dificil Acceso | M8: Mes Zona Dificil Acceso | P8: Mes Zona Dificil Acceso | Y8: Mes Zona Dificil Acceso | AH8: Mes Zona Dificil Acceso | AW8: Mes Zona Dificil Acceso | WC8: Mes Zona Dificil Acceso
A9: UNION TEMPORAL LCT-2022 | C9: 8 | G9: Mes Zona Rural | J9: Mes Zona Rural | M9: Mes Zona Rural | P9: Mes Zona Rural | Y9: Mes Zona Rural | AH9: Mes Zona Rural | AW9: Mes Zona Rural | WC9: Mes Zona Rural
A10: UNIÓN TEMPORAL VET 2023 | C10: 9 | G10: Mes Zona Urbana | J10: Mes Zona Urbana | M10: Mes Zona Urbana | P10: Mes Zona Urbana | Y10: Mes Zona Urbana | AH10: Mes Zona Urbana | AW10: Mes Zona Urbana | WC10: Mes Zona Urbana
A11: UNION TEMPORAL ANDINO 2022 | C11: 10
A12: ZIDCAR SAS | C12: 11
A13: Consorcio Transportes CCE 2 | C13: 12
A14: EMPRESA COLOMBIANA DE SERVICIOS ESPECIALES Y TURISMO SOCIEDAD POR ACCIONES SIMPLIFICADA | C14: 13
A15: UT AMP 2022 | C15: 14
A16: UNIÓN TEMPORAL MOVICOL | C16: 15
A17: UT TAM ESPECIALES | C17: 16
A18: UNIÓN TEMPORAL ALIANZA TRANSNACIONAL | C18: 17
A19: UNION TEMPORAL G7 | C19: 18
A20: UNION TEMPORAL VIAJANDO POR COLOMBIA
A21: UNION TEMPORAL AG COLOMBIA

Sheet Catalogo (hidden)
A1: Concatenar | B1: Llave | C1: Modalidad | D1: Zona | E1: Segmento | F1: Nivel de servicio | G1: Vehículo | H1: Unidad | I1: UNION TEMPORAL MARCO CST | J1: UNION TEMPORAL MEGA ALIANZA | K1: COOPERATIVA DE TRANSPORTADORES DE PALERMO | L1: TURANDESEXPRESER2023 | M1: GRUPO EMPRESARIAL JHS SAS | N1: UT BUS-ING | O1: UNION TEMPORAL SRD TRANSPORTE PASAJERO DE COLOMBIA | P1: UT Q & S | Q1: UNION TEMPORAL TRANSPORTES MARCO 2022 | R1: TRANSPORTES CSC S.A.S - EN REORGANIZACIÓN | S1: UNION TEMPORAL RUTAS COLOMBIANAS | T1: TRANSPORTES CARVAJAL LTDA | U1: SOCIEDAD DE TRANSPORTES DEL CARIBE SAS | V1: UT ALIANZA BT | W1: UT KOE 2023 | X1: ALTE UT | Y1: UNION TEMPORAL LCT-2022 | Z1: UNIÓN TEMPORAL VET 2023 | AA1: UNION TEMPORAL ANDINO 2022 | AB1: AMERICAN TOUR | AC1: UNIÓN TRANSPORTADORA DE CONDUCTORES SAS | AD1: ESCOTRANSTOURS S.A.S | AE1: ZIDCAR SAS | AF1: Consorcio Transportes CCE 2 | AG1: EMPRESA COLOMBIANA DE SERVICIOS ESPECIALES Y TURISMO SOCIEDAD POR ACCIONES SIMPLIFICADA | AH1: LINEAS DE RECREACION NACIONAL ESCOLAR Y TURISMO S.A | AI1: UT AMP 2022 | AJ1: SINERGIA SP | AK1: UT TRANSPORTE CCE 2022-2023 | AL1: TRANSPORTES ESPECIALES LUCATOURS SAS | AM1: UNIÓN TEMPORAL MOVICOL | AN1: UT TAM ESPECIALES | AO1: UNIÓN TEMPORAL ALIANZA TRANSNACIONAL | AP1: Transporte Sensación S.A.S. | AQ1: UNION TEMPORAL G7 | AR1: TRANSPORTES ESPECIALES Y TURISTICOS DE COLOMBIA SAS | AS1: LINEAS TURISTICAS DEL PAEZ S.A.S | AT1: Asociacion de relacionistas y transportadores turisticos de la guajira | AU1: UNION TEMPORAL VIAJANDO POR COLOMBIA | AV1: SOCIEDAD PROMOTORA INTERNACIONAL DE TURISMO Y TRANSPORTE SERVICIO ESPECIAL ´´PROINTURES SAS´´ | AW1: UNION TEMPORAL AG COLOMBIA | AX1: TORARICA TOURS SAS | AY1: CONSORCIO CCE 2022 | AZ1: SERVITRANSTUR S.A.S | BA1: UNIÓN TEMPORAL BET
A2: =SUBSTITUTE(C2&D2&E2&F2&G2&H2," ","") -> Vehículosconmotordecombustióninterna1Empresarial1AutomóvilHoraZonaUrbana | B2: CI-Z1-EM-N1-V1-HU | C2: Vehículos con motor de combustión interna | D2: 1 | E2: Empresarial | F2: 1 | G2: Automóvil | H2: Hora Zona Urbana | I2: 176541.75 | J2: 73303.2 | M2: 112878.36 | N2: 72125.48 | O2: 67727.01 | P2: 97004.84 | Q2: 75502.07 | R2: 84658.77 | S2: 75914.08 | T2: 79014.85 | U2: 37346.71 | V2: 72006.46 | W2: 52302.83 | X2: 67727.01 | Y2: 78224.7 | Z2: 63494.07 | AA2: 135454.03 | AF2: 48537.69 | AG2: 110620.79 | AI2: 47747.54 | AM2: 68435.89 | AN2: 63494.07 | AO2: 70548.97 | AP2: 55434.1 | AQ2: 70696.84 | AT2: 74077.55 | AU2: 90302.68 | AW2: 55910.91
A3: =SUBSTITUTE(C3&D3&E3&F3&G3&H3," ","") -> Vehículosconmotordecombustióninterna1Empresarial1AutomóvilDíaZonaUrbana | B3: CI-Z1-EM-N1-V1-DU | C3: Vehículos con motor de combustión interna | D3: 1 | E3: Empresarial | F3: 1 | G3: Automóvil | H3: Día Zona Urbana | I3: 706166.99 | J3: 634370.71 | M3: 654694.46 | N3: 540941.07 | O3: 507952.6 | P3: 776038.69 | Q3: 653402 | R3: 455959.58 | S3: 577277.97 | T3: 564391.78 | U3: 412681.11 | V3: 538374.73 | W3: 437158 | X3: 507952.6 | Y3: 571164.48 | Z3: 444458.52 | AA3: 772087.95 | AF3: 338635.07 | AG3: 884966.31 | AI3: 355566.82 | AM3: 451513.42 | AN3: 462801.26 | AO3: 529117.29 | AP3: 556240.67 | AQ3: 530229.14 | AT3: 592620.4 | AU3: 564391.78 | AW3: 531147.97
A4: Vehículosconmotordecombustióninterna1Empresarial1AutomóvilMesZonaUrbana | B4: CI-Z1-EM-N1-V1-MU | C4: Vehículos con motor de combustión interna | D4: 1 | E4: Empresarial | F4: 1 | G4: Automóvil | H4: Mes Zona Urbana | I4: 11044244.04 | J4: 13307486.67 | M4: 10723443.75 | N4: 11900703.59 | O4: 11174957.18 | P4: 14109794.41 | Q4: 13706711.45 | R4: 9625585.23 | S4: 12700106.3 | T4: 11287835.53 | U4: 9078984.44 | V4: 11905613.13 | W4: 13114739.9 | X4: 11174957.18 | Y4: 12416619.08 | Z4: 11555921.62 | AA4: 14669671.06 | AF4: 9030268.42 | AG4: 15044427.2 | AI4: 7720879.5 | AM4: 11287835.53 | AN4: 9481781.85 | AO4: 11640580.39 | AP4: 11315131.03 | AQ4: 11665045.65 | AT4: 13037648.7 | AU4: 14109794.41 | AW4: 12747558.1
A5: Vehículosconmotordecombustióninterna1Empresarial1AutomóvilHoraZonaRural | B5: CI-Z1-EM-N1-V1-HR | C5: Vehículos con motor de combustión interna | D5: 1 | E5: Empresarial | F5: 1 | G5: Automóvil | H5: Hora Zona Rural | I5: 229504.27 | J5: 88979.75 | M5: 180605.37 | N5: 108199.37 | O5: 101590.52 | P5: 112878.36 | Q5: 91649.32 | R5: 84658.77 | S5: 113870.56 | T5: 110620.79 | U5: 42948.71 | V5: 106559.14 | W5: 54644.75 | X5: 91431.47 | Y5: 93869.64 | Z5: 92066.41 | AA5: 158029.7 | AF5: 55818.35 | AG5: 132744.95 | AI5: 62071.81 | AM5: 90302.68 | AN5: 76192.89 | AO5: 98768.56 | AP5: 64806.41 | AQ5: 106045.83 | AT5: 74077.55 | AU5: 135454.03 | AW5: 67092.64
A6: Vehículosconmotordecombustióninterna1Empresarial1AutomóvilDíaZonaRural | B6: CI-Z1-EM-N1-V1-DR | C6: Vehículos con motor de combustión interna | D6: 1 | E6: Empresarial | F6: 1 | G6: Automóvil | H6: Día Zona Rural | I6: 918017.09 | J6: 887511.71 | M6: 1128783.55 | N6: 811495.29 | O6: 761928.9 | P6: 892444.5 | Q6: 914137.46 | R6: 523797.33 | S6: 854027.48 | T6: 884966.31 | U6: 474583.28 | V6: 820114.87 | W6: 546447.5 | X6: 685736.01 | Y6: 685397.37 | Z6: 644464.86 | AA6: 926505.54 | AF6: 389430.33 | AG6: 1061959.57 | AI6: 462236.86 | AM6: 903026.84 | AN6: 509081.38 | AO6: 770394.77 | AP6: 653699.11 | AQ6: 784169.32 | AT6: 592620.4 | AU6: 846587.66 | AW6: 637377.79
A7: Vehículosconmotordecombustióninterna1Empresarial1AutomóvilMesZonaRural | B7: CI-Z1-EM-N1-V1-MR | C7: Vehículos con motor de combustión interna | D7: 1 | E7: Empresarial | F7: 1 | G7: Automóvil | H7: Mes Zona Rural | I7: 14357517.25 | J7: 17371818.59 | M7: 14674186.19 | N7: 17852896.47 | O7: 16762435.76 | P7: 16226263.58 | Q7: 17892973.45 | R7: 11754763.44 | S7: 19050159.45 | T7: 14109794.41 | U7: 10440832.11 | V7: 18037961.18 | W7: 16393424.87 | X7: 15086192.19 | Y7: 14899942.9 | Z7: 16756086.36 | AA7: 17603605.27 | AF7: 10384808.69 | AG7: 18053312.63 | AI7: 10037143.35 | AM7: 14674186.19 | AN7: 10429960.03 | AO7: 16948685.05 | AP7: 13682649.27 | AQ7: 17497569.6 | AT7: 13037648.7 | AU7: 18060536.85 | AW7: 16253136.53
A8: Vehículosconmotordecombustióninterna1Empresarial1AutomóvilHoraZonaDificilAcceso | B8: CI-Z1-EM-N1-V1-HDA | C8: Vehículos con motor de combustión interna | D8: 1 | E8: Empresarial | F8: 1 | G8: Automóvil | H8: Hora Zona Dificil Acceso | I8: 264812.62 | J8: 102327.62 | M8: 180605.37 | N8: 119043.86 | O8: 111749.57 | P8: 124166.19 | Q8: 105397.91 | R8: 214468.88 | S8: 125257.72 | T8: 132744.95 | U8: 57980.76 | V8: 118810.65 | W8: 68305.94 | X8: 91431.47 | Y8: 101692.11 | Z8: 105876.37 | AA8: 180605.37 | AF8: 61400.18 | AG8: 165931.18 | AI8: 80693.35 | AM8: 90302.68 | AN8: 83812.18 | AO8: 118522.27 | AP8: 69292.62 | AQ8: 116650.75 | AT8: 74077.55 | AU8: 270908.05 | AW8: 67092.64
A9: Vehículosconmotordecombustióninterna1Empresarial1AutomóvilDíaZonaDificilAcceso | B9: CI-Z1-EM-N1-V1-DDA | C9: Vehículos con motor de combustión interna | D9: 1 | E9: Empresarial | F9: 1 | G9: Automóvil | H9: Día Zona Dificil Acceso | I9: 1059250.49 | J9: 1020638.19 | M9: 1128783.55 | N9: 892828.93 | O9: 838121.79 | P9: 973575.81 | Q9: 1051257.57 | R9: 1467418.62 | S9: 939430.11 | T9: 1061959.57 | U9: 616958.26 | V9: 881874.54 | W9: 683059.37 | X9: 685736.01 | Y9: 742513.82 | Z9: 741134.59 | AA9: 1003714.34 | AF9: 428373.36 | AG9: 1327449.46 | AI9: 600907.92 | AM9: 903026.84 | AN9: 559989.52 | AO9: 885953.99 | AP9: 695300.84 | AQ9: 874878.37 | AT9: 592620.4 | AU9: 1467418.62 | AW9: 637377.79
A10: Vehículosconmotordecombustióninterna1Empresarial1AutomóvilMesZonaDificilAcceso | B10: CI-Z1-EM-N1-V1-MDA | C10: Vehículos con motor de combustión interna | D10: 1 | E10: Empresarial | F10: 1 | G10: Automóvil | H10: Mes Zona Dificil Acceso | I10: 16566366.06 | J10: 19977589.46 | M10: 15802969.74 | N10: 19642236.48 | O10: 18438679.34 | P10: 16931753.3 | Q10: 20576917.09 | R10: 15238577.97 | S10: 20955174.72 | T10: 16931753.3 | U10: 13573081.74 | V10: 19189320.4 | W10: 20491781.09 | X10: 15086192.19 | Y10: 16141604.81 | Z10: 19269499.31 | AA10: 19572429.54 | AF10: 11423289.56 | AG10: 22566640.79 | AI10: 13048286.36 | AM10: 14674186.19 | AN10: 11472956.03 | AO10: 19321500.96 | AP10: 14143913.79 | AQ10: 19213801.46 | AT10: 13037648.7 | AU10: 21446887.51 | AW10: 16253136.53
A11: Vehículosconmotordecombustióninterna1Empresarial1Busde30a40pasajerosHoraZonaUrbana | B11: CI-Z1-EM-N1-V2-HU | C11: Vehículos con motor de combustión interna | D11: 1 | E11: Empresarial | F11: 1 | G11: Bus de 30 a 40 pasajeros | H11: Hora Zona Urbana | I11: 441354.37 | J11: 377683.08 | M11: 440225.59 | N11: 492510.84 | O11: 474089.09 | P11: 282195.89 | Q11: 389013.8 | R11: 245352.08 | S11: 552906.4 | T11: 451513.42 | U11: 377239.46 | V11: 497793.55 | W11: 189711.52 | X11: 451513.42 | Y11: 409748.43 | Z11: 409184.04 | AA11: 434581.67 | AF11: 152611.54 | AG11: 335813.11 | AI11: 248332.38 | AM11: 485376.93 | AN11: 434299.47 | AO11: 482554.97 | AP11: 256397.81 | AQ11: 470872.06 | AT11: 98438.96 | AU11: 428937.75 | AW11: 186367.81
A12: Vehículosconmotordecombustióninterna1Empresarial1Busde30a40pasajerosDíaZonaUrbana | B12: CI-Z1-EM-N1-V2-DU | C12: Vehículos con motor de combustión interna | D12: 1 | E12: Empresarial | F12: 1 | G12: Bus de 30 a 40 pasajeros | H12: Día Zona Urbana | I12: 1765417.48 | J12: 2228699.75 | M12: 2821958.88 | N12: 1970043.36 | O12: 1896356.37 | P12: 2201127.93 | Q12: 2295560.83 | R12: 1675152.42 | S12: 2242441.41 | T12: 2257567.11 | U12: 1894370.84 | V12: 1960697.03 | W12: 792824.27 | X12: 1806053.68 | Y12: 1708650.95 | Z12: 2455104.23 | AA12: 2618777.84 | AF12: 1335350.94 | AG12: 2686504.86 | AI12: 873678.47 | AM12: 1918932.04 | AN12: 1580296.97 | AO12: 1930219.88 | AP12: 2159764.27 | AQ12: 1917013.11 | AT12: 787511.65 | AU12: 2596202.17 | AW12: 2236413.7
A13: Vehículosconmotordecombustióninterna1Empresarial1Busde30a40pasajerosMesZonaUrbana | B13: CI-Z1-EM-N1-V2-MU | C13: Vehículos con motor de combustión interna | D13: 1 | E13: Empresarial | F13: 1 | G13: Bus de 30 a 40 pasajeros | H13: Mes Zona Urbana | I13: 27610610.1 | J13: 25760330.68 | M13: 44022558.57 | N13: 29550650.39 | O13: 28445345.54 | P13: 33863506.59 | Q13: 26533141.05 | R13: 35221602.52 | S13: 33415695.58 | T13: 27090805.27 | U13: 28169853.95 | V13: 29562841.25 | W13: 23784728.07 | X13: 24833238.17 | Y13: 31960377.52 | Z13: 49102084.56 | AA13: 31425334.12 | AF13: 29377720.75 | AG13: 45670582.56 | AI13: 14629034.85 | AM13: 25962021.72 | AN13: 28219588.83 | AO13: 28953298.14 | AP13: 35777232.32 | AQ13: 29258069.7 | AT13: 17325256.27 | AU13: 29348372.38 | AW13: 29073378.13
A14: Vehículosconmotordecombustióninterna1Empresarial1Busde30a40pasajerosHoraZonaRural | B14: CI-Z1-EM-N1-V2-HR | C14: Vehículos con motor de combustión interna | D14: 1 | E14: Empresarial | F14: 1 | G14: Bus de 30 a 40 pasajeros | H14: Hora Zona Rural | I14: 573760.68 | J14: 402162.53 | M14: 733709.31 | N14: 738842.45 | O14: 711133.64 | P14: 327347.23 | Q14: 414227.44 | R14: 245352.08 | S14: 829360.17 | T14: 632118.79 | U14: 440615.69 | V14: 727642.1 | W14: 198206.07 | X14: 677270.13 | Y14: 491698.12 | Z14: 593316.86 | AA14: 440225.59 | AF14: 175503.27 | AG14: 402975.73 | AI14: 285582.24 | AM14: 665982.3 | AN14: 521159.37 | AO14: 675576.96 | AP14: 306199.97 | AQ14: 720276.79 | AT14: 98438.96 | AU14: 767572.82 | AW14: 223641.37
A15: Vehículosconmotordecombustióninterna1Empresarial1Busde30a40pasajerosDíaZonaRural | B15: CI-Z1-EM-N1-V2-DR | C15: Vehículos con motor de combustión interna | D15: 1 | E15: Empresarial | F15: 1 | G15: Bus de 30 a 40 pasajeros | H15: Día Zona Rural | I15: 2295042.72 | J15: 2464427.6 | M15: 3273472.3 | N15: 3694212.26 | O15: 3555668.19 | P15: 2531297.12 | Q15: 2538359.92 | R15: 1998405.93 | S15: 4146798.59 | T15: 2821958.88 | U15: 2203047.03 | V15: 3733451.6 | W15: 991030.34 | X15: 3386350.66 | Y15: 2050381.14 | Z15: 3559901.13 | AA15: 3011594.52 | AF15: 1535653.58 | AG15: 3223805.83 | AI15: 1135782.01 | AM15: 3781424.9 | AN15: 1738326.67 | AO15: 3715673.26 | AP15: 2560444.46 | AQ15: 3612558.88 | AT15: 787511.65 | AU15: 3273472.3 | AW15: 2683696.44
A16: Vehículosconmotordecombustióninterna1Empresarial1Busde30a40pasajerosMesZonaRural | B16: CI-Z1-EM-N1-V2-MR | C16: Vehículos con motor de combustión interna | D16: 1 | E16: Empresarial | F16: 1 | G16: Bus de 30 a 40 pasajeros | H16: Mes Zona Rural | I16: 35893793.13 | J16: 27846917.46 | M16: 49666476.33 | N16: 55413183.95 | O16: 53335022.88 | P16: 38943032.58 | Q16: 28682324.61 | R16: 43339584.32 | S16: 61819036.82 | T16: 33863506.59 | U16: 32870653.76 | V16: 57144667.37 | W16: 29730910.09 | X16: 50795259.89 | Y16: 38352453.03 | Z16: 71198022.61 | AA16: 33127539.72 | AF16: 33784378.86 | AG16: 54804699.07 | AI16: 19017745.3 | AM16: 39507424.36 | AN16: 31041547.71 | AO16: 55735098.91 | AP16: 43087122.46 | AQ16: 53741384.96 | AT16: 17325256.27 | AU16: 54181610.55 | AW16: 37571750.2
A17: Vehículosconmotordecombustióninterna1Empresarial1Busde30a40pasajerosHoraZonaDificilAcceso | B17: CI-Z1-EM-N1-V2-HDA | C17: Vehículos con motor de combustión interna | D17: 1 | E17: Empresarial | F17: 1 | G17: Bus de 30 a 40 pasajeros | H17: Hora Zona Dificil Acceso | I17: 662031.55 | J17: 410205.78 | M17: 733709.31 | N17: 812894.32 | O17: 782247 | P17: 338635.07 | Q17: 422511.59 | R17: 507952.6 | S17: 879121.46 | T17: 758542.55 | U17: 594831.19 | V17: 811301.89 | W17: 247757.58 | X17: 677270.13 | Y17: 532672.96 | Z17: 682314.38 | AA17: 474089.09 | AF17: 193053.59 | AG17: 503719.66 | AI17: 342698.69 | AM17: 665982.3 | AN17: 573275.3 | AO17: 810692.35 | AP17: 320497.27 | AQ17: 800126.93 | AT17: 98438.96 | AU17: 801436.32 | AW17: 223641.37
A18: Vehículosconmotordecombustióninterna1Empresarial1Busde30a40pasajerosDíaZonaDificilAcceso | B18: CI-Z1-EM-N1-V2-DDA | C18: Vehículos con motor de combustión interna | D18: 1 | E18: Empresarial | F18: 1 | G18: Bus de 30 a 40 pasajeros | H18: Día Zona Dificil Acceso | I18: 2648126.22 | J18: 2513716.16 | M18: 3273472.3 | N18: 4064471.61 | O18: 3911235.01 | P18: 2641353.51 | Q18: 2589128.09 | R18: 2991276.42 | S18: 4561477.55 | T18: 3386350.66 | U18: 2863961.14 | V18: 3781424.9 | W18: 1651717.23 | X18: 3386350.66 | Y18: 2221246.24 | Z18: 4093886.3 | AA18: 3273472.3 | AF18: 1689218.94 | AG18: 4029757.28 | AI18: 1476516.61 | AM18: 3781424.9 | AN18: 1912159.34 | AO18: 3715673.26 | AP18: 2699705.34 | AQ18: 3799485.44 | AT18: 787511.65 | AU18: 4402255.86 | AW18: 2683696.44
A19: Vehículosconmotordecombustióninterna1Empresarial1Busde30a40pasajerosMesZonaDificilAcceso | B19: CI-Z1-EM-N1-V2-MDA | C19: Vehículos con motor de combustión interna | D19: 1 | E19: Empresarial | F19: 1 | G19: Bus de 30 a 40 pasajeros | H19: Mes Zona Dificil Acceso | I19: 41415915.15 | J19: 28403855.81 | M19: 51924043.44 | N19: 60967074.17 | O19: 58668525.17 | P19: 40636207.91 | Q19: 29255971.29 | R19: 44022558.57 | S19: 68000940.73 | T19: 40636207.91 | U19: 42731849.89 | V19: 57144667.37 | W19: 49551516.82 | X19: 50795259.89 | Y19: 41548490.78 | Z19: 81877726 | AA19: 36008195.34 | AF19: 37162816.75 | AG19: 68505873.84 | AI19: 24723068.89 | AM19: 39507424.36 | AN19: 34145702.48 | AO19: 55735098.91 | AP19: 44721540.4 | AQ19: 56433533.74 | AT19: 17325256.27 | AU19: 64340662.52 | AW19: 37571750.2
A20: Vehículosconmotordecombustióninterna1Empresarial1Busde40a50pasajerosHoraZonaUrbana | B20: CI-Z1-EM-N1-V3-HU | C20: Vehículos con motor de combustión interna | D20: 1 | E20: Empresarial | F20: 1 | G20: Bus de 40 a 50 pasajeros | H20: Hora Zona Urbana | I20: 573760.68 | J20: 447871.97 | M20: 519240.43 | N20: 547234.27 | O20: 530528.27 | P20: 327347.23 | Q20: 461307.88 | R20: 285945.96 | S20: 585618.55 | T20: 451513.42 | U20: 440112.71 | V20: 553103.94 | W20: 237139.4 | X20: 507952.6 | Y20: 484248.14 | Z20: 451513.42 | AA20: 450384.64 | AF20: 206025.57 | AG20: 362678.16 | AI20: 248332.38 | AM20: 502308.68 | AN20: 485602.68 | AO20: 539558.54 | AP20: 339640.38 | AQ20: 541816.11 | AT20: 98438.96 | AU20: 485376.93 | AW20: 223641.37
A21: Vehículosconmotordecombustióninterna1Empresarial1Busde40a50pasajerosDíaZonaUrbana | B21: CI-Z1-EM-N1-V3-DU | C21: Vehículos con motor de combustión interna | D21: 1 | E21: Empresarial | F21: 1 | G21: Bus de 40 a 50 pasajeros | H21: Día Zona Urbana | I21: 2295042.72 | J21: 2748447.68 | M21: 3612107.37 | N21: 2188937.07 | O21: 2122113.08 | P21: 2567982.58 | Q21: 2830901.11 | R21: 2016421.31 | S21: 2359838.28 | T21: 2257567.11 | U21: 1970447.46 | V21: 2178552.26 | W21: 991030.34 | X21: 2031810.4 | Y21: 1843867.93 | Z21: 2709080.53 | AA21: 2934837.24 | AF21: 1802723.77 | AG21: 2901425.24 | AI21: 873678.47 | AM21: 2144688.75 | AN21: 1693175.33 | AO21: 2158234.15 | AP21: 2471923.45 | AQ21: 2156089.46 | AT21: 787511.65 | AU21: 2821958.88 | AW21: 2683696.44
A22: Vehículosconmotordecombustióninterna1Empresarial1Busde40a50pasajerosMesZonaUrbana | B22: CI-Z1-EM-N1-V3-MU | C22: Vehículos con motor de combustión interna | D22: 1 | E22: Empresarial | F22: 1 | G22: Bus de 40 a 50 pasajeros | H22: Mes Zona Urbana | I22: 35893793.13 | J22: 31101689.3 | M22: 48537692.78 | N22: 32834055.99 | O22: 31831696.2 | P22: 39507424.36 | Q22: 32034739.52 | R22: 42598108.98 | S22: 35153160.99 | T22: 27090805.27 | U22: 29957591.76 | V22: 32847601.39 | W22: 29730910.09 | X22: 27090805.27 | Y22: 35648113.39 | Z22: 54181610.55 | AA22: 35218046.86 | AF22: 39659923.02 | AG22: 49324229.16 | AI22: 14629034.85 | AM22: 29348372.38 | AN22: 31605939.49 | AO22: 32373512.3 | AP22: 41865723.67 | AQ22: 31391470.61 | AT22: 17325256.27 | AU22: 32734723.04 | AW22: 34888053.76
A23: Vehículosconmotordecombustióninterna1Empresarial1Busde40a50pasajerosHoraZonaRural | B23: CI-Z1-EM-N1-V3-HR | C23: Vehículos con motor de combustión interna | D23: 1 | E23: Empresarial | F23: 1 | G23: Bus de 40 a 50 pasajeros | H23: Hora Zona Rural | I23: 745888.88 | J23: 476900.7 | M23: 970753.86 | N23: 820936.06 | O23: 795792.4 | P23: 372498.57 | Q23: 491208.22 | R23: 285945.96 | S23: 878428.39 | T23: 632118.79 | U23: 465262 | V23: 808491.22 | W23: 247757.58 | X23: 846587.66 | Y23: 581097.77 | Z23: 654694.46 | AA23: 462801.26 | AF23: 236929.41 | AG23: 435213.79 | AI23: 285582.24 | AM23: 773216.73 | AN23: 582723.22 | AO23: 755381.95 | AP23: 402406.72 | AQ23: 812724.16 | AT23: 98438.96 | AU23: 824011.99 | AW23: 267692.15
A24: Vehículosconmotordecombustióninterna1Empresarial1Busde40a50pasajerosDíaZonaRural | B24: CI-Z1-EM-N1-V3-DR | C24: Vehículos con motor de combustión interna | D24: 1 | E24: Empresarial | F24: 1 | G24: Bus de 40 a 50 pasajeros | H24: Día Zona Rural | I24: 2983555.54 | J24: 3039148.88 | M24: 4402255.86 | N24: 4104680.29 | O24: 3978962.02 | P24: 2953179.97 | Q24: 3130323.36 | R24: 2441528.72 | S24: 4392139.7 | T24: 2821958.88 | U24: 2337690.08 | V24: 4148279.56 | W24: 1238787.92 | X24: 4232938.32 | Y24: 2212641.52 | Z24: 3928166.76 | AA24: 3375062.82 | AF24: 2073132.34 | AG24: 3481710.29 | AI24: 1135782.01 | AM24: 4402255.86 | AN24: 1862492.86 | AO24: 4154600.75 | AP24: 2933563.17 | AQ24: 4007746.01 | AT24: 787511.65 | AU24: 3950742.44 | AW24: 3220435.28
A25: Vehículosconmotordecombustióninterna1Empresarial1Busde40a50pasajerosMesZonaRural | B25: CI-Z1-EM-N1-V3-MR | C25: Vehículos con motor de combustión interna | D25: 1 | E25: Empresarial | F25: 1 | G25: Bus de 40 a 50 pasajeros | H25: Mes Zona Rural | I25: 46661931.07 | J25: 33620926.13 | M25: 58696744.76 | N25: 61570204.39 | O25: 59684430.37 | P25: 45433538.01 | Q25: 34629554.42 | R25: 52806089.96 | S25: 65033347.32 | T25: 33863506.59 | U25: 34451230.53 | V25: 63494074.86 | W25: 37163637.61 | X25: 63494074.86 | Y25: 42777736.07 | Z25: 78563335.29 | AA25: 37125691.06 | AF25: 45608911.47 | AG25: 59189074.99 | AI25: 19017745.3 | AM25: 44022558.57 | AN25: 34766533.43 | AO25: 62319011.18 | AP25: 50459249.7 | AQ25: 60954311.87 | AT25: 17325256.27 | AU25: 62083095.42 | AW25: 45086100.69
A26: Vehículosconmotordecombustióninterna1Empresarial1Busde40a50pasajerosHoraZonaDificilAcceso | B26: CI-Z1-EM-N1-V3-HDA | C26: Vehículos con motor de combustión interna | D26: 1 | E26: Empresarial | F26: 1 | G26: Bus de 40 a 50 pasajeros | H26: Hora Zona Dificil Acceso | I26: 860641.02 | J26: 486438.72 | M26: 970753.86 | N26: 903215.91 | O26: 875371.65 | P26: 395074.24 | Q26: 501032.03 | R26: 564391.78 | S26: 966270.33 | T26: 758542.55 | U26: 628103.71 | V26: 901446.55 | W26: 309696.98 | X26: 846587.66 | Y26: 629522.59 | Z26: 752898.63 | AA26: 507952.6 | AF26: 260622.35 | AG26: 544017.23 | AI26: 342698.69 | AM26: 773216.73 | AN26: 640995.54 | AO26: 906458.34 | AP26: 424550.47 | AQ26: 880586.63 | AT26: 98438.96 | AU26: 903026.84 | AW26: 267692.15
A27: Vehículosconmotordecombustióninterna1Empresarial1Busde40a50pasajerosDíaZonaDificilAcceso | B27: CI-Z1-EM-N1-V3-DDA | C27: Vehículos con motor de combustión interna | D27: 1 | E27: Empresarial | F27: 1 | G27: Bus de 40 a 50 pasajeros | H27: Día Zona Dificil Acceso | I27: 3442564.08 | J27: 3099931.86 | M27: 4402255.86 | N27: 4516079.57 | O27: 4376858.23 | P27: 3081579.1 | Q27: 3192930.21 | R27: 3329911.48 | S27: 4831352.77 | T27: 3386350.66 | U27: 3038997.11 | V27: 4458695.03 | W27: 2064646.53 | X27: 4232938.32 | Y27: 2397028.31 | Z27: 4517391.78 | AA27: 3668546.55 | AF27: 2280445.57 | AG27: 4352137.87 | AI27: 1476516.61 | AM27: 4402255.86 | AN27: 2048742.15 | AO27: 4320784.78 | AP27: 3089904.31 | AQ27: 4302358.51 | AT27: 787511.65 | AU27: 4740890.92 | AW27: 3220435.28
A28: Vehículosconmotordecombustióninterna1Empresarial1Busde40a50pasajerosMesZonaDificilAcceso | B28: CI-Z1-EM-N1-V3-MDA | C28: Vehículos con motor de combustión interna | D28: 1 | E28: Empresarial | F28: 1 | G28: Bus de 40 a 50 pasajeros | H28: Mes Zona Dificil Acceso | I28: 53840689.69 | J28: 34293344.65 | M28: 60954311.87 | N28: 67741193.53 | O28: 65652873.41 | P28: 47408909.23 | Q28: 35322145.53 | R28: 54181610.55 | S28: 71536682.51 | T28: 40636207.91 | U28: 44786599.69 | V28: 63494074.86 | W28: 61939396.02 | X28: 63494074.86 | Y28: 46342547.41 | Z28: 90347835.59 | AA28: 40354012.02 | AF28: 50169802.61 | AG28: 73986343.74 | AI28: 24723068.89 | AM28: 44022558.57 | AN28: 38243186.78 | AO28: 63565391.4 | AP28: 52332154.59 | AQ28: 63641381.11 | AT28: 17325256.27 | AU28: 67727013.18 | AW28: 45086100.69
A29: Vehículosconmotordecombustióninterna1Empresarial1Busetade20a30pasajerosHoraZonaUrbana | B29: CI-Z1-EM-N1-V4-HU | C29: Vehículos con motor de combustión interna | D29: 1 | E29: Empresarial | F29: 1 | G29: Buseta de 20 a 30 pasajeros | H29: Hora Zona Urbana | I29: 397218.93 | J29: 291260.02 | M29: 327347.23 | N29: 415898.04 | O29: 395074.24 | P29: 225756.71 | Q29: 299997.93 | R29: 207172.54 | S29: 506090.11 | T29: 338635.07 | U29: 352090.17 | V29: 420359 | W29: 154140.61 | X29: 338635.07 | Y29: 372498.57 | Z29: 343573.49 | AA29: 389430.33 | AF29: 117393.49 | AG29: 308948.06 | AI29: 214468.88 | AM29: 417649.91 | AN29: 366741.78 | AO29: 407490.86 | AP29: 227079.97 | AQ29: 415981.57 | AT29: 92589.6 | AU29: 361210.74 | AW29: 136669.73
A30: Vehículosconmotordecombustióninterna1Empresarial1Busetade20a30pasajerosDíaZonaUrbana | B30: CI-Z1-EM-N1-V4-DU | C30: Vehículos con motor de combustión interna | D30: 1 | E30: Empresarial | F30: 1 | G30: Buseta de 20 a 30 pasajeros | H30: Día Zona Urbana | I30: 1588875.73 | J30: 1701595.15 | M30: 2370445.46 | N30: 1663592.17 | O30: 1580296.97 | P30: 1760902.34 | Q30: 1752643.03 | R30: 1376137.66 | S30: 1837095.23 | T30: 1693175.33 | U30: 1806348.3 | V30: 1655699.72 | W30: 644169.72 | X30: 1580296.97 | Y30: 1499679.25 | Z30: 2061440.96 | AA30: 1941507.71 | AF30: 1027193.03 | AG30: 2471584.47 | AI30: 873678.47 | AM30: 1580296.97 | AN30: 1354540.26 | AO30: 1629963.45 | AP30: 1898095.98 | AQ30: 1663928.55 | AT30: 740716.8 | AU30: 2257567.11 | AW30: 1640036.72
A31: Vehículosconmotordecombustióninterna1Empresarial1Busetade20a30pasajerosMesZonaUrbana | B31: CI-Z1-EM-N1-V4-MU | C31: Vehículos con motor de combustión interna | D31: 1 | E31: Empresarial | F31: 1 | G31: Buseta de 20 a 30 pasajeros | H31: Mes Zona Urbana | I31: 24849549.09 | J31: 18874073.73 | M31: 34992290.15 | N31: 24953882.55 | O31: 23704454.61 | P31: 27090805.27 | Q31: 19440296.39 | R31: 33904631.94 | S31: 27416572.21 | T31: 22575671.06 | U31: 27817763.78 | V31: 24833238.17 | W31: 19325091.56 | X31: 22575671.06 | Y31: 29501886.94 | Z31: 41228819.28 | AA31: 25239600.25 | AF31: 22598246.73 | AG31: 42016935.95 | AI31: 14019491.73 | AM31: 22575671.06 | AN31: 24833238.17 | AO31: 24449451.76 | AP31: 33342123.91 | AQ31: 24958924.83 | AT31: 16295769.55 | AU31: 25962021.72 | AW31: 22960514.01
A32: Vehículosconmotordecombustióninterna1Empresarial1Busetade20a30pasajerosHoraZonaRural | B32: CI-Z1-EM-N1-V4-HR | C32: Vehículos con motor de combustión interna | D32: 1 | E32: Empresarial | F32: 1 | G32: Buseta de 20 a 30 pasajeros | H32: Hora Zona Rural | I32: 516384.61 | J32: 310137.98 | M32: 586967.45 | N32: 623911.4 | O32: 592611.37 | P32: 259620.22 | Q32: 319442.36 | R32: 207172.54 | S32: 759135.16 | T32: 474089.09 | U32: 415466.4 | V32: 614453.33 | W32: 161042.43 | X32: 620830.95 | Y32: 446998.29 | Z32: 498181.57 | AA32: 417649.91 | AF32: 135002.51 | AG32: 370737.67 | AI32: 246639.21 | AM32: 553103.94 | AN32: 440090.13 | AO32: 529738.12 | AP32: 269060.54 | AQ32: 623973.49 | AT32: 92589.6 | AU32: 564391.78 | AW32: 155307.07
A33: Vehículosconmotordecombustióninterna1Empresarial1Busetade20a30pasajerosDíaZonaRural | B33: CI-Z1-EM-N1-V4-DR | C33: Vehículos con motor de combustión interna | D33: 1 | E33: Empresarial | F33: 1 | G33: Buseta de 20 a 30 pasajeros | H33: Día Zona Rural | I33: 2065538.45 | J33: 1881571.56 | M33: 2709080.53 | N33: 3119557.02 | O33: 2963056.83 | P33: 2025037.69 | Q33: 1938018.64 | R33: 1596543.93 | S33: 3795675.8 | T33: 2257567.11 | U33: 2077300.54 | V33: 3152692.46 | W33: 805212.15 | X33: 3104154.77 | Y33: 1799615.1 | Z33: 2989089.4 | AA33: 2232733.87 | AF33: 1181271.99 | AG33: 2965901.36 | AI33: 1135782.01 | AM33: 3217033.13 | AN33: 1489994.29 | AO33: 2966533.48 | AP33: 2213733.37 | AQ33: 2896366.04 | AT33: 740716.8 | AU33: 3047715.59 | AW33: 1863678.09
A34: Vehículosconmotordecombustióninterna1Empresarial1Busetade20a30pasajerosMesZonaRural | B34: CI-Z1-EM-N1-V4-MR | C34: Vehículos con motor de combustión interna | D34: 1 | E34: Empresarial | F34: 1 | G34: Buseta de 20 a 30 pasajeros | H34: Mes Zona Rural | I34: 32304413.82 | J34: 20402873.7 | M34: 39507424.36 | N34: 46793355.34 | O34: 44445852.4 | P34: 31154426.06 | Q34: 21014959.61 | R34: 40028154.79 | S34: 50720658.58 | T34: 28219588.83 | U34: 31990428.35 | V34: 46844517.45 | W34: 24156364.45 | X34: 46562321.56 | Y34: 35402264.33 | Z34: 59781787.95 | AA34: 29025540.28 | AF34: 25987983.74 | AG34: 50420323.14 | AI34: 18225339.25 | AM34: 33863506.59 | AN34: 27316561.98 | AO34: 44498002.2 | AP34: 39196055.6 | AQ34: 45680488.76 | AT34: 16295769.55 | AU34: 39507424.36 | AW34: 27955171.28
A35: Vehículosconmotordecombustióninterna1Empresarial1Busetade20a30pasajerosHoraZonaDificilAcceso | B35: CI-Z1-EM-N1-V4-HDA | C35: Vehículos con motor de combustión interna | D35: 1 | E35: Empresarial | F35: 1 | G35: Buseta de 20 a 30 pasajeros | H35: Hora Zona Dificil Acceso | I35: 595828.4 | J35: 316340.74 | M35: 586967.45 | N35: 686444.09 | O35: 651872.5 | P35: 270908.05 | Q35: 325831.27 | R35: 395074.24 | S35: 804683.83 | T35: 568906.91 | U35: 560879.63 | V35: 685099.37 | W35: 201303.04 | X35: 620830.95 | Y35: 484248.14 | Z35: 572908.8 | AA35: 440225.59 | AF35: 148502.76 | AG35: 463422.09 | AI35: 295967.05 | AM35: 553103.94 | AN35: 484099.14 | AO35: 688659.56 | AP35: 283849.96 | AQ35: 652845.51 | AT35: 92589.6 | AU35: 620830.95 | AW35: 155307.07
A36: Vehículosconmotordecombustióninterna1Empresarial1Busetade20a30pasajerosDíaZonaDificilAcceso | B36: CI-Z1-EM-N1-V4-DDA | C36: Vehículos con motor de combustión interna | D36: 1 | E36: Empresarial | F36: 1 | G36: Buseta de 20 a 30 pasajeros | H36: Día Zona Dificil Acceso | I36: 2383313.59 | J36: 1919202.99 | M36: 2709080.53 | N36: 3432220.47 | O36: 3259362.51 | P36: 2113082.81 | Q36: 1976778.81 | R36: 2821958.88 | S36: 4175243.94 | T36: 2709080.53 | U36: 2700490.7 | V36: 3390109.51 | W36: 1342020.25 | X36: 3104154.77 | Y36: 1949583.03 | Z36: 3437452.81 | AA36: 2426884.64 | AF36: 1299399.19 | AG36: 3707376.7 | AI36: 1476516.61 | AM36: 3217033.13 | AN36: 1638993.72 | AO36: 3263186.83 | AP36: 2372619.97 | AQ36: 3208352.78 | AT36: 740716.8 | AU36: 4176499.15 | AW36: 1863678.09
A37: Vehículosconmotordecombustióninterna1Empresarial1Busetade20a30pasajerosMesZonaDificilAcceso | B37: CI-Z1-EM-N1-V4-MDA | C37: Vehículos con motor de combustión interna | D37: 1 | E37: Empresarial | F37: 1 | G37: Buseta de 20 a 30 pasajeros | H37: Mes Zona Dificil Acceso | I37: 37274323.63 | J37: 20810931.18 | M37: 41764991.46 | N37: 51483307.08 | O37: 48890437.64 | P37: 32508966.33 | Q37: 21435258.78 | R37: 40636207.91 | S37: 55792724.44 | T37: 33863506.59 | U37: 41587556.85 | V37: 48255496.89 | W37: 40260607.41 | X37: 46562321.56 | Y37: 38352453.03 | Z37: 68749056.14 | AA37: 31549500.31 | AF37: 28586782.12 | AG37: 63025403.93 | AI37: 23692941.02 | AM37: 33863506.59 | AN37: 30048218.18 | AO37: 48947802.42 | AP37: 41677654.89 | AQ37: 49242790.81 | AT37: 16295769.55 | AU37: 54181610.55 | AW37: 27955171.28
A38: Vehículosconmotordecombustióninterna1Empresarial1Campero/camioneta4x2HoraZonaUrbana | B38: CI-Z1-EM-N1-V6-HU | C38: Vehículos con motor de combustión interna | D38: 1 | E38: Empresarial | F38: 1 | G38: Campero/camioneta 4x2 | H38: Hora Zona Urbana | I38: 242744.9 | J38: 76811.46 | M38: 129810.11 | N38: 74642.75 | O38: 72242.15 | P38: 97004.84 | Q38: 79115.31 | R38: 90302.68 | S38: 78651.38 | T38: 90302.68 | U38: 37346.71 | V38: 74519.58 | W38: 51746.19 | X38: 79014.85 | Y38: 78224.7 | Z38: 70548.97 | AA38: 146741.86 | AF38: 62083.1 | AG38: 118522.27 | AI38: 47747.54 | AM38: 70824.4 | AN38: 66647.44 | AO38: 74052.72 | AP38: 53253.32 | AQ38: 73164.36 | AT38: 85336.04 | AU38: 101590.52 | AW38: 55910.91
A39: Vehículosconmotordecombustióninterna1Empresarial1Campero/camioneta4x2DíaZonaUrbana | B39: CI-Z1-EM-N1-V6-DU | C39: Vehículos con motor de combustión interna | D39: 1 | E39: Empresarial | F39: 1 | G39: Campero/camioneta 4x2 | H39: Día Zona Urbana | I39: 970979.61 | J39: 667577.27 | M39: 688557.97 | N39: 559820.65 | O39: 541816.11 | P39: 776038.69 | Q39: 687604.15 | R39: 506784.94 | S39: 585025.94 | T39: 733709.31 | U39: 412681.11 | V39: 557164.74 | W39: 432505.46 | X39: 592611.37 | Y39: 571164.48 | Z39: 493842.8 | AA39: 828978.64 | AF39: 428937.75 | AG39: 948178.18 | AI39: 355566.82 | AM39: 507952.6 | AN39: 462801.26 | AO39: 555395.37 | AP39: 584614.55 | AQ39: 548735.55 | AT39: 682688.29 | AU39: 586967.45 | AW39: 531147.97
A40: Vehículosconmotordecombustióninterna1Empresarial1Campero/camioneta4x2MesZonaUrbana | B40: CI-Z1-EM-N1-V6-MU | C40: Vehículos con motor de combustión interna | D40: 1 | E40: Empresarial | F40: 1 | G40: Campero/camioneta 4x2 | H40: Mes Zona Urbana | I40: 15185835.55 | J40: 13640144.83 | M40: 11852227.31 | N40: 12316054.4 | O40: 11919954.32 | P40: 14109794.41 | Q40: 14049349.18 | R40: 10642092.44 | S40: 12870570.68 | T40: 13545402.64 | U40: 9078984.44 | V40: 12321135.28 | W40: 12975163.78 | X40: 12416619.08 | Y40: 12416619.08 | Z40: 12839912.92 | AA40: 15750594.19 | AF40: 10723443.75 | AG40: 16119029.14 | AI40: 7720879.5 | AM40: 11739348.95 | AN40: 9481781.85 | AO40: 12218698.18 | AP40: 11888758.72 | AQ40: 12060996.95 | AT40: 15019142.44 | AU40: 14109794.41 | AW40: 12747558.1
A41: Vehículosconmotordecombustióninterna1Empresarial1Campero/camioneta4x2HoraZonaRural | B41: CI-Z1-EM-N1-V6-HR | C41: Vehículos con motor de combustión interna | D41: 1 | E41: Empresarial | F41: 1 | G41: Campero/camioneta 4x2 | H41: Hora Zona Rural | I41: 315568.37 | J41: 93026.44 | M41: 191893.2 | N41: 111975.68 | O41: 108363.22 | P41: 112878.36 | Q41: 95816.79 | R41: 90302.68 | S41: 117977.07 | T41: 126423.76 | U41: 42948.71 | V41: 110278.2 | W41: 54063.18 | X41: 107234.44 | Y41: 93869.64 | Z41: 102296.01 | AA41: 169317.53 | AF41: 71395.56 | AG41: 142226.73 | AI41: 62071.81 | AM41: 92560.25 | AN41: 79976.93 | AO41: 103673.8 | AP41: 64333.58 | AQ41: 109747.11 | AT41: 85336.04 | AU41: 146741.86 | AW41: 67092.64
A42: Vehículosconmotordecombustióninterna1Empresarial1Campero/camioneta4x2DíaZonaRural | B42: CI-Z1-EM-N1-V6-DR | C42: Vehículos con motor de combustión interna | D42: 1 | E42: Empresarial | F42: 1 | G42: Campero/camioneta 4x2 | H42: Día Zona Rural | I42: 1262273.5 | J42: 932344.74 | M42: 1241661.91 | N42: 839817.59 | O42: 812724.16 | P42: 892444.5 | Q42: 960314.87 | R42: 582246.49 | S42: 884828.59 | T42: 1011390.06 | U42: 474583.28 | V42: 848738 | W42: 540631.82 | X42: 804258.28 | Y42: 685397.37 | Z42: 716072.07 | AA42: 994774.37 | AF42: 493278.41 | AG42: 1137813.82 | AI42: 462236.86 | AM42: 1015905.2 | AN42: 509081.38 | AO42: 756818.76 | AP42: 686127.28 | AQ42: 823102.19 | AT42: 682688.29 | AU42: 903026.84 | AW42: 637377.79
A43: Vehículosconmotordecombustióninterna1Empresarial1Campero/camioneta4x2MesZonaRural | B43: CI-Z1-EM-N1-V6-MR | C43: Vehículos con motor de combustión interna | D43: 1 | E43: Empresarial | F43: 1 | G43: Campero/camioneta 4x2 | H43: Mes Zona Rural | I43: 19741585.66 | J43: 17734056.52 | M43: 15238577.97 | N43: 18475986.93 | O43: 17879931.48 | P43: 16226263.58 | Q43: 18266078.18 | R43: 12923746.74 | S43: 19305856.02 | T43: 16931753.3 | U43: 10440832.11 | V43: 18624928.63 | W43: 16218954.73 | X43: 17693682.19 | Y43: 14899942.9 | Z43: 18617873.73 | AA43: 18900713.02 | AF43: 12331960.32 | AG43: 19342834.97 | AI43: 10037143.35 | AM43: 15577213.03 | AN43: 10429960.03 | AO43: 18163650.23 | AP43: 14339050.98 | AQ43: 18108258.43 | AT43: 15019142.44 | AU43: 18060536.85 | AW43: 16253136.53
A44: Vehículosconmotordecombustióninterna1Empresarial1Campero/camioneta4x2HoraZonaDificilAcceso | B44: CI-Z1-EM-N1-V6-HDA | C44: Vehículos con motor de combustión interna | D44: 1 | E44: Empresarial | F44: 1 | G44: Campero/camioneta 4x2 | H44: Hora Zona Dificil Acceso | I44: 364117.35 | J44: 106978.2 | M44: 191893.2 | N44: 123198.65 | O44: 119199.54 | P44: 124166.19 | Q44: 110187.34 | R44: 220112.79 | S44: 129775.12 | T44: 151708.51 | U44: 57980.76 | V44: 122957.31 | W44: 67578.98 | X44: 107234.44 | Y44: 101692.11 | Z44: 117640.41 | AA44: 191893.2 | AF44: 78535.12 | AG44: 177783.41 | AI44: 80693.35 | AM44: 92560.25 | AN44: 87974.63 | AO44: 119224.87 | AP44: 66566.65 | AQ44: 120722.27 | AT44: 85336.04 | AU44: 270908.05 | AW44: 67092.64
A45: Vehículosconmotordecombustióninterna1Empresarial1Campero/camioneta4x2DíaZonaDificilAcceso | B45: CI-Z1-EM-N1-V6-DDA | C45: Vehículos con motor de combustión interna | D45: 1 | E45: Empresarial | F45: 1 | G45: Campero/camioneta 4x2 | H45: Día Zona Dificil Acceso | I45: 1456469.42 | J45: 1072197.63 | M45: 1241661.91 | N45: 923989.88 | O45: 893996.57 | P45: 973575.81 | Q45: 1104363.45 | R45: 1580296.97 | S45: 973310.55 | T45: 1213668.08 | U45: 616958.26 | V45: 912653.17 | W45: 675789.78 | X45: 804258.28 | Y45: 742513.82 | Z45: 823482.88 | AA45: 1077672.23 | AF45: 542606.25 | AG45: 1422267.28 | AI45: 600907.92 | AM45: 1015905.2 | AN45: 559989.52 | AO45: 908182.51 | AP45: 730768.19 | AQ45: 905413.09 | AT45: 682688.29 | AU45: 1467418.62 | AW45: 637377.79
A46: Vehículosconmotordecombustióninterna1Empresarial1Campero/camioneta4x2MesZonaDificilAcceso | B46: CI-Z1-EM-N1-V6-MDA | C46: Vehículos con motor de combustión interna | D46: 1 | E46: Empresarial | F46: 1 | G46: Campero/camioneta 4x2 | H46: Mes Zona Dificil Acceso | I46: 22778752.77 | J46: 20394164.78 | M46: 16367361.52 | N46: 20327777.35 | O46: 19667924.63 | P46: 16931753.3 | Q46: 21005989.17 | R46: 17496145.07 | S46: 21236441.62 | T46: 20318103.96 | U46: 13573081.74 | V46: 20182085.54 | W46: 20273693.41 | X46: 17693682.19 | Y46: 16141604.81 | Z46: 21410554.79 | AA46: 21014608.56 | AF46: 13565156.35 | AG46: 24178543.71 | AI46: 13048286.36 | AM46: 15577213.03 | AN46: 11472956.03 | AO46: 19980015.26 | AP46: 14860948.4 | AQ46: 19919083.48 | AT46: 15019142.44 | AU46: 21446887.51 | AW46: 16253136.53
A47: Vehículosconmotordecombustióninterna1Empresarial1Campero/camioneta4x4HoraZonaUrbana | B47: CI-Z1-EM-N1-V7-HU | C47: Vehículos con motor de combustión interna | D47: 1 | E47: Empresarial | F47: 1 | G47: Campero/camioneta 4x4 | H47: Hora Zona Urbana | I47: 242744.9 | J47: 89070.05 | M47: 141097.94 | N47: 83070.16 | O47: 80143.63 | P47: 100885.03 | Q47: 91741.88 | R47: 95946.6 | S47: 89276.62 | T47: 90302.68 | U47: 44262.76 | V47: 82933.08 | W47: 52302.83 | X47: 79014.85 | Y47: 78224.7 | Z47: 77603.87 | AA47: 158029.7 | AF47: 69984.58 | AG47: 126423.76 | AI47: 47747.54 | AM47: 78820.7 | AN47: 72129.27 | AO47: 80143.63 | AP47: 58469.68 | AQ47: 81424.8 | AT47: 85336.04 | AU47: 112878.36 | AW47: 58705.78
A48: Vehículosconmotordecombustióninterna1Empresarial1Campero/camioneta4x4DíaZonaUrbana | B48: CI-Z1-EM-N1-V7-DU | C48: Vehículos con motor de combustión interna | D48: 1 | E48: Empresarial | F48: 1 | G48: Campero/camioneta 4x4 | H48: Día Zona Urbana | I48: 970979.61 | J48: 734062.62 | M48: 733709.31 | N48: 623026.21 | O48: 601077.24 | P48: 807080.24 | Q48: 756084.06 | R48: 553418.28 | S48: 661094.66 | T48: 733709.31 | U48: 489103.54 | V48: 620070.44 | W48: 437158 | X48: 592611.37 | Y48: 571164.48 | Z48: 543227.08 | AA48: 853360.37 | AF48: 553103.94 | AG48: 1011390.06 | AI48: 355566.82 | AM48: 541816.11 | AN48: 503437.46 | AO48: 601077.24 | AP48: 632516.29 | AQ48: 610688.83 | AT48: 682688.29 | AU48: 609543.12 | AW48: 557705.99
A49: Vehículosconmotordecombustióninterna1Empresarial1Campero/camioneta4x4MesZonaUrbana | B49: CI-Z1-EM-N1-V7-MU | C49: Vehículos con motor de combustión interna | D49: 1 | E49: Empresarial | F49: 1 | G49: Campero/camioneta 4x4 | H49: Mes Zona Urbana | I49: 15185835.55 | J49: 14724629.27 | M49: 12416619.08 | N49: 13706576.67 | O49: 13223699.32 | P49: 14674186.19 | Q49: 15166368.55 | R49: 11937232.83 | S49: 14544090.5 | T49: 13545402.64 | U49: 10760277.86 | V49: 13712231.2 | W49: 13114739.9 | X49: 13037450.04 | Y49: 12416619.08 | Z49: 14123904.21 | AA49: 16213846.96 | AF49: 12416619.08 | AG49: 17193631.08 | AI49: 7720879.5 | AM49: 12190862.37 | AN49: 9481781.85 | AO49: 13223699.32 | AP49: 12427955.2 | AQ49: 13435158.86 | AT49: 15019142.44 | AU49: 14109794.41 | AW49: 13384935.9
A50: Vehículosconmotordecombustióninterna1Empresarial1Campero/camioneta4x4HoraZonaRural | B50: CI-Z1-EM-N1-V7-HR | C50: Vehículos con motor de combustión interna | D50: 1 | E50: Empresarial | F50: 1 | G50: Campero/camioneta 4x4 | H50: Hora Zona Rural | I50: 315568.37 | J50: 106353.99 | M50: 214468.88 | N50: 124618.09 | O50: 120215.45 | P50: 118522.27 | Q50: 109545.06 | R50: 95946.6 | S50: 133915.49 | T50: 126423.76 | U50: 50902.18 | V50: 122728.97 | W50: 54644.75 | X50: 118522.27 | Y50: 93869.64 | Z50: 112525.61 | AA50: 180605.37 | AF50: 80482.27 | AG50: 151708.51 | AI50: 62071.81 | AM50: 95946.6 | AN50: 86555.12 | AO50: 120215.45 | AP50: 70063.49 | AQ50: 122137.77 | AT50: 85336.04 | AU50: 169317.53 | AW50: 70447.38
A51: Vehículosconmotordecombustióninterna1Empresarial1Campero/camioneta4x4DíaZonaRural | B51: CI-Z1-EM-N1-V7-DR | C51: Vehículos con motor de combustión interna | D51: 1 | E51: Empresarial | F51: 1 | G51: Campero/camioneta 4x4 | H51: Día Zona Rural | I51: 1262273.5 | J51: 1022269.28 | M51: 1298101.09 | N51: 934635.7 | O51: 901615.86 | P51: 928142.28 | Q51: 1052937.2 | R51: 636630.67 | S51: 1004364.51 | T51: 1011390.06 | U51: 562469.07 | V51: 944563.26 | W51: 546447.5 | X51: 888917.05 | Y51: 685397.37 | Z51: 787679.27 | AA51: 1024032.44 | AF51: 636069.53 | AG51: 1213668.08 | AI51: 462236.86 | AM51: 1128783.55 | AN51: 553781.21 | AO51: 877572.77 | AP51: 742045.75 | AQ51: 916033.82 | AT51: 682688.29 | AU51: 1015905.2 | AW51: 669246.74
A52: Vehículosconmotordecombustióninterna1Empresarial1Campero/camioneta4x4MesZonaRural | B52: CI-Z1-EM-N1-V7-MR | C52: Vehículos con motor de combustión interna | D52: 1 | E52: Empresarial | F52: 1 | G52: Campero/camioneta 4x4 | H52: Mes Zona Rural | I52: 19741585.66 | J52: 19271939.46 | M52: 15802969.74 | N52: 20561985.46 | O52: 19835548.99 | P52: 16875314.12 | Q52: 19850097.88 | R52: 14435656.81 | S52: 21816135.18 | T52: 16931753.3 | U52: 12374319.54 | V52: 20527211.11 | W52: 16393424.87 | X52: 19556175.06 | Y52: 14899942.9 | Z52: 20479661.1 | AA52: 19456616.35 | AF52: 14279111.95 | AG52: 20632357.3 | AI52: 10037143.35 | AM52: 16931753.3 | AN52: 10429960.03 | AO52: 20184173.79 | AP52: 15688675.87 | AQ52: 20152739.42 | AT52: 15019142.44 | AU52: 18060536.85 | AW52: 17065792.96
A53: Vehículosconmotordecombustióninterna1Empresarial1Campero/camioneta4x4HoraZonaDificilAcceso | B53: CI-Z1-EM-N1-V7-HDA | C53: Vehículos con motor de combustión interna | D53: 1 | E53: Empresarial | F53: 1 | G53: Campero/camioneta 4x4 | H53: Hora Zona Dificil Acceso | I53: 364117.35 | J53: 122307.08 | M53: 214468.88 | N53: 137108.18 | O53: 132236.99 | P53: 129810.11 | Q53: 125976.76 | R53: 225756.71 | S53: 147306.25 | T53: 151708.51 | U53: 68717.94 | V53: 135454.03 | W53: 68305.94 | X53: 118522.27 | Y53: 101692.11 | Z53: 129404.45 | AA53: 203181.04 | AF53: 88530.49 | AG53: 189635.64 | AI53: 80693.35 | AM53: 95946.6 | AN53: 95210.64 | AO53: 132236.99 | AP53: 73087.1 | AQ53: 134351.2 | AT53: 85336.04 | AU53: 282195.89 | AW53: 70447.38
A54: Vehículosconmotordecombustióninterna1Empresarial1Campero/camioneta4x4DíaZonaDificilAcceso | B54: CI-Z1-EM-N1-V7-DDA | C54: Vehículos con motor de combustión interna | D54: 1 | E54: Empresarial | F54: 1 | G54: Campero/camioneta 4x4 | H54: Día Zona Dificil Acceso | I54: 1456469.42 | J54: 1175608.88 | M54: 1298101.09 | N54: 1028311.32 | O54: 991777.45 | P54: 1012518.85 | Q54: 1210876.59 | R54: 1636736.15 | S54: 1104801.42 | T54: 1213668.08 | U54: 731209.79 | V54: 1015694.65 | W54: 683059.37 | X54: 888917.05 | Y54: 742513.82 | Z54: 905831.16 | AA54: 1109368.48 | AF54: 699676.49 | AG54: 1517085.1 | AI54: 600907.92 | AM54: 1128783.55 | AN54: 609159.33 | AO54: 965330.05 | AP54: 790645.36 | AQ54: 1007636.86 | AT54: 682688.29 | AU54: 1580296.97 | AW54: 669246.74
A55: Vehículosconmotordecombustióninterna1Empresarial1Campero/camioneta4x4MesZonaDificilAcceso | B55: CI-Z1-EM-N1-V7-MDA | C55: Vehículos con motor de combustión interna | D55: 1 | E55: Empresarial | F55: 1 | G55: Campero/camioneta 4x4 | H55: Mes Zona Dificil Acceso | I55: 22778752.77 | J55: 22162728.17 | M55: 16931753.3 | N55: 22622848.99 | O55: 21819103.88 | P55: 17609023.43 | Q55: 22827609.91 | R55: 18060536.85 | S55: 23997748.7 | T55: 20318103.96 | U55: 16086615.4 | V55: 22333264.79 | W55: 20491781.09 | X55: 19556175.06 | Y55: 16141604.81 | Z55: 23551610.27 | AA55: 21632685.28 | AF55: 15707023.14 | AG55: 25790446.62 | AI55: 13048286.36 | AM55: 16931753.3 | AN55: 11472956.03 | AO55: 21395224.21 | AP55: 15534944 | AQ55: 21832764.42 | AT55: 15019142.44 | AU55: 22575671.06 | AW55: 17065792.96
A56: Vehículosconmotordecombustióninterna1Empresarial1Microbusde10a19pasajerosHoraZonaUrbana | B56: CI-Z1-EM-N1-V8-HU | C56: Vehículos con motor de combustión interna | D56: 1 | E56: Empresarial | F56: 1 | G56: Microbus de 10 a 19 pasajeros | H56: Hora Zona Urbana | I56: 353083.5 | J56: 244944.9 | M56: 237044.55 | N56: 383063.99 | O56: 361210.74 | P56: 169317.53 | Q56: 252293.28 | R56: 168014.42 | S56: 430235.85 | T56: 225756.71 | U56: 251492.98 | V56: 387172.76 | W56: 130426.67 | X56: 225756.71 | Y56: 310415.48 | Z56: 277962.95 | AA56: 321703.31 | AF56: 90302.68 | AG56: 268650.49 | AI56: 180605.37 | AM56: 378142.49 | AN56: 336772.57 | AO56: 375320.53 | AP56: 181858.63 | AQ56: 383141.87 | AT56: 89011.36 | AU56: 316059.39 | AW56: 111820.69
A57: Vehículosconmotordecombustióninterna1Empresarial1Microbusde10a19pasajerosDíaZonaUrbana | B57: CI-Z1-EM-N1-V8-DU | C57: Vehículos con motor de combustión interna | D57: 1 | E57: Empresarial | F57: 1 | G57: Microbus de 10 a 19 pasajeros | H57: Día Zona Urbana | I57: 1412333.98 | J57: 1308749.58 | M57: 1602872.65 | N57: 1532255.95 | O57: 1444842.95 | P57: 1320676.76 | Q57: 1348012.51 | R57: 1118963.14 | S57: 1626422.46 | T57: 1241661.91 | U57: 1250548.82 | V57: 1524986.58 | W57: 545066.69 | X57: 1219086.24 | Y57: 1229245.29 | Z57: 1667777.7 | AA57: 1715751 | AF57: 790148.49 | AG57: 2149203.89 | AI57: 761928.9 | AM57: 1467418.62 | AN57: 1128783.55 | AO57: 1501282.13 | AP57: 1482340.62 | AQ57: 1532565.23 | AT57: 712090.85 | AU57: 1918932.04 | AW57: 894565.48
A58: Vehículosconmotordecombustióninterna1Empresarial1Microbusde10a19pasajerosMesZonaUrbana | B58: CI-Z1-EM-N1-V8-MU | C58: Vehículos con motor de combustión interna | D58: 1 | E58: Empresarial | F58: 1 | G58: Microbus de 10 a 19 pasajeros | H58: Mes Zona Urbana | I58: 22088488.08 | J58: 17698423.09 | M58: 25962021.72 | N58: 22983839.19 | O58: 21672644.22 | P58: 20318103.96 | Q58: 18229375.78 | R58: 22108730.93 | S58: 24298606.77 | T58: 20318103.96 | U58: 19258451.85 | V58: 22993320.98 | W58: 16352000.55 | X58: 20318103.96 | Y58: 24216132.2 | Z58: 33355553.99 | AA58: 22304763.01 | AF58: 17383266.72 | AG58: 36536466.05 | AI58: 12190862.37 | AM58: 20882495.73 | AN58: 20318103.96 | AO58: 22519231.88 | AP58: 26208926.47 | AQ58: 22988483.01 | AT58: 15665998.63 | AU58: 22575671.06 | AW58: 21469571.54
A59: Vehículosconmotordecombustióninterna1Empresarial1Microbusde10a19pasajerosHoraZonaRural | B59: CI-Z1-EM-N1-V8-HR | C59: Vehículos con motor de combustión interna | D59: 1 | E59: Empresarial | F59: 1 | G59: Microbus de 10 a 19 pasajeros | H59: Hora Zona Rural | I59: 459008.54 | J59: 260820.96 | M59: 417649.91 | N59: 574655.24 | O59: 541816.11 | P59: 191893.2 | Q59: 268645.97 | R59: 168014.42 | S59: 645353.78 | T59: 316059.39 | U59: 296761.71 | V59: 565943.85 | W59: 136266.67 | X59: 507952.6 | Y59: 372498.57 | Z59: 403046.28 | AA59: 344278.98 | AF59: 103848.09 | AG59: 322380.58 | AI59: 207696.17 | AM59: 502308.68 | AN59: 404127.09 | AO59: 487916.69 | AP59: 209893.04 | AQ59: 574712.24 | AT59: 89011.36 | AU59: 474089.09 | AW59: 118033.51
A60: Vehículosconmotordecombustióninterna1Empresarial1Microbusde10a19pasajerosDíaZonaRural | B60: CI-Z1-EM-N1-V8-DR | C60: Vehículos con motor de combustión interna | D60: 1 | E60: Empresarial | F60: 1 | G60: Microbus de 10 a 19 pasajeros | H60: Día Zona Rural | I60: 1836034.18 | J60: 1447175.01 | M60: 1760902.34 | N60: 2873276.2 | O60: 2709080.53 | P60: 1518778.27 | Q60: 1490590.29 | R60: 1235875.01 | S60: 3226768.88 | T60: 1580296.97 | U60: 1438131.14 | V60: 2903795.69 | W60: 681333.36 | X60: 2539762.99 | Y60: 1475094.35 | Z60: 2418277.66 | AA60: 1973113.65 | AF60: 908670.76 | AG60: 2579044.66 | AI60: 990507.57 | AM60: 2934837.24 | AN60: 1241661.91 | AO60: 2732333.47 | AP60: 1666368.78 | AQ60: 2873560.09 | AT60: 712090.85 | AU60: 2370445.46 | AW60: 944263.56
A61: Vehículosconmotordecombustióninterna1Empresarial1Microbusde10a19pasajerosMesZonaRural | B61: CI-Z1-EM-N1-V8-MR | C61: Vehículos con motor de combustión interna | D61: 1 | E61: Empresarial | F61: 1 | G61: Microbus de 10 a 19 pasajeros | H61: Mes Zona Rural | I61: 28715034.5 | J61: 19131995.36 | M61: 29348372.38 | N61: 43099143.07 | O61: 40636207.91 | P61: 23365819.55 | Q61: 19705955.6 | R61: 25541361.72 | S61: 44952422.24 | T61: 25397629.94 | U61: 22147219.62 | V61: 44107217.34 | W61: 20440000.69 | X61: 38096444.92 | Y61: 29059358.64 | Z61: 48365553.29 | AA61: 25650477.46 | AF61: 19990756.72 | AG61: 43843759.25 | AI61: 15848121.09 | AM61: 31605939.49 | AN61: 22349914.35 | AO61: 43717335.5 | AP61: 29962134.18 | AQ61: 43103405.93 | AT61: 15665998.63 | AU61: 34992290.15 | AW61: 24078720.86
A62: Vehículosconmotordecombustióninterna1Empresarial1Microbusde10a19pasajerosHoraZonaDificilAcceso | B62: CI-Z1-EM-N1-V8-HDA | C62: Vehículos con motor de combustión interna | D62: 1 | E62: Empresarial | F62: 1 | G62: Microbus de 10 a 19 pasajeros | H62: Hora Zona Dificil Acceso | I62: 529625.24 | J62: 266037.38 | M62: 417649.91 | N62: 632251.14 | O62: 595997.72 | P62: 203181.04 | Q62: 274018.98 | R62: 332991.15 | S62: 684075.57 | T62: 379271.27 | U62: 400628.31 | V62: 631012.58 | W62: 170333.34 | X62: 507952.6 | Y62: 403540.12 | Z62: 463503.22 | AA62: 361210.74 | AF62: 114232.9 | AG62: 402975.73 | AI62: 249235.41 | AM62: 502308.68 | AN62: 444539.8 | AO62: 585500.03 | AP62: 227323.28 | AQ62: 632183.13 | AT62: 89011.36 | AU62: 541816.11 | AW62: 118033.51
A63: Vehículosconmotordecombustióninterna1Empresarial1Microbusde10a19pasajerosDíaZonaDificilAcceso | B63: CI-Z1-EM-N1-V8-DDA | C63: Vehículos con motor de combustión interna | D63: 1 | E63: Empresarial | F63: 1 | G63: Microbus de 10 a 19 pasajeros | H63: Día Zona Dificil Acceso | I63: 2118500.97 | J63: 1476118.52 | M63: 1760902.34 | N63: 3161255.7 | O63: 2979988.58 | P63: 1584812.11 | Q63: 1520402.59 | R63: 1918932.04 | S63: 3549446.34 | T63: 1896356.37 | U63: 1869570.49 | V63: 3122469.28 | W63: 1135555.59 | X63: 2539762.99 | Y63: 1598018.88 | Z63: 2781019.31 | AA63: 2144688.75 | AF63: 999537.84 | AG63: 3223805.83 | AI63: 1287659.84 | AM63: 2934837.24 | AN63: 1365828.1 | AO63: 3005566.82 | AP63: 1852925.78 | AQ63: 3160916.78 | AT63: 712090.85 | AU63: 3724985.73 | AW63: 944263.56
A64: Vehículosconmotordecombustióninterna1Empresarial1Microbusde10a19pasajerosMesZonaDificilAcceso | B64: CI-Z1-EM-N1-V8-MDA | C64: Vehículos con motor de combustión interna | D64: 1 | E64: Empresarial | F64: 1 | G64: Microbus de 10 a 19 pasajeros | H64: Mes Zona Dificil Acceso | I64: 33132732.12 | J64: 19514635.26 | M64: 24833238.17 | N64: 47418835.47 | O64: 44699828.7 | P64: 24381724.75 | Q64: 20100073.77 | R64: 23704454.61 | S64: 49447665.03 | T64: 30477155.93 | U64: 28791385.51 | V64: 44445852.4 | W64: 34066667.81 | X64: 38096444.92 | Y64: 31480971.86 | Z64: 55620386.28 | AA64: 27880953.76 | AF64: 21989832.4 | AG64: 54804699.07 | AI64: 20602557.41 | AM64: 31605939.49 | AN64: 24584905.79 | AO64: 48089069.05 | AP64: 32761158.09 | AQ64: 46296251.48 | AT64: 15665998.63 | AU64: 42893775.02 | AW64: 24078720.86
A65: Vehículosconmotordecombustióninterna1Empresarial1Pickupcabinasencilla4x2HoraZonaUrbana | B65: CI-Z1-EM-N1-V9-HU | C65: Vehículos con motor de combustión interna | D65: 1 | E65: Empresarial | F65: 1 | G65: Pick up cabina sencilla 4x2 | H65: Hora Zona Urbana | I65: 286880.34 | J65: 78188.58 | M65: 146741.86 | N65: 79130.07 | O65: 75628.5 | P65: 100885.03 | Q65: 80534.19 | R65: 101590.52 | S65: 82770.31 | T65: 124166.19 | U65: 44262.76 | V65: 78999.5 | W65: 54509.98 | X65: 84658.77 | Y65: 96849.63 | Z65: 70548.97 | AA65: 135454.03 | AF65: 84658.77 | AG65: 134325.24 | AI65: 60954.31 | AM65: 75082.17 | AN65: 101590.52 | AO65: 77530.5 | AP65: 58048.73 | AQ65: 77563.23 | AT65: 85336.04 | AU65: 124166.19 | AW65: 55910.91
A66: Vehículosconmotordecombustióninterna1Empresarial1Pickupcabinasencilla4x2DíaZonaUrbana | B66: CI-Z1-EM-N1-V9-DU | C66: Vehículos con motor de combustión interna | D66: 1 | E66: Empresarial | F66: 1 | G66: Pick up cabina sencilla 4x2 | H66: Día Zona Urbana | I66: 1147521.36 | J66: 698587.21 | M66: 846587.66 | N66: 593475.56 | O66: 567213.74 | P66: 807080.24 | Q66: 719545.33 | R66: 553004.34 | S66: 629731.41 | T66: 903026.84 | U66: 489103.54 | V66: 590659.98 | W66: 455605.84 | X66: 564391.78 | Y66: 844330.1 | Z66: 493842.8 | AA66: 772087.95 | AF66: 790148.49 | AG66: 1074601.94 | AI66: 386043.98 | AM66: 507952.6 | AN66: 812724.16 | AO66: 581478.74 | AP66: 626046.55 | AQ66: 581723.12 | AT66: 682688.29 | AU66: 654694.46 | AW66: 531147.97
A67: =SUBSTITUTE(C67&D67&E67&F67&G67&H67," ","") -> Vehículosconmotordecombustióninterna1Empresarial1Pickupcabinasencilla4x2MesZonaUrbana | B67: CI-Z1-EM-N1-V9-MU | C67: Vehículos con motor de combustión interna | D67: 1 | E67: Empresarial | F67: 1 | G67: Pick up cabina sencilla 4x2 | H67: Mes Zona Urbana | I67: 17946896.56 | J67: 14306970.32 | M67: 12981010.86 | N67: 13056462.37 | O67: 12478702.18 | P67: 14674186.19 | Q67: 14736178.98 | R67: 11257560.49 | S67: 13854084.3 | T67: 16931753.3 | U67: 10760277.86 | V67: 13061848.69 | W67: 13668175.31 | X67: 12416619.08 | Y67: 15731856.38 | Z67: 12839912.92 | AA67: 14669671.06 | AF67: 13545402.64 | AG67: 18268233.02 | AI67: 8838375.22 | AM67: 11739348.95 | AN67: 15802969.74 | AO67: 12792532.23 | AP67: 12642582.66 | AQ67: 12792331.3 | AT67: 15019142.44 | AU67: 15238577.97 | AW67: 12747558.1
A68: Vehículosconmotordecombustióninterna1Empresarial1Pickupcabinasencilla4x2HoraZonaRural | B68: CI-Z1-EM-N1-V9-HR | C68: Vehículos con motor de combustión interna | D68: 1 | E68: Empresarial | F68: 1 | G68: Pick up cabina sencilla 4x2 | H68: Hora Zona Rural | I68: 372944.44 | J68: 94693.65 | M68: 237044.55 | N68: 118707.35 | O68: 113442.75 | P68: 118522.27 | Q68: 97534.8 | R68: 101590.52 | S68: 124156.03 | T68: 173832.67 | U68: 50902.18 | V68: 116907.83 | W68: 56950.73 | X68: 91431.47 | Y68: 116219.55 | Z68: 102296.01 | AA68: 158029.7 | AF68: 97357.58 | AG68: 161190.29 | AI68: 79240.61 | AM68: 92560.25 | AN68: 121908.62 | AO68: 116295.75 | AP68: 67544.8 | AQ68: 116344.85 | AT68: 85336.04 | AU68: 146741.86 | AW68: 67092.64
A69: Vehículosconmotordecombustióninterna1Empresarial1Pickupcabinasencilla4x2DíaZonaRural | B69: CI-Z1-EM-N1-V9-DR | C69: Vehículos con motor de combustión interna | D69: 1 | E69: Empresarial | F69: 1 | G69: Pick up cabina sencilla 4x2 | H69: Día Zona Rural | I69: 1491777.77 | J69: 977983.71 | M69: 1354540.26 | N69: 890305.16 | O69: 850820.6 | P69: 928142.28 | Q69: 1007323.06 | R69: 634995.47 | S69: 931162.9 | T69: 1390661.34 | U69: 562469.07 | V69: 899761.84 | W69: 569507.3 | X69: 685736.01 | Y69: 1013196.12 | Z69: 716072.07 | AA69: 926505.54 | AF69: 908670.76 | AG69: 1289522.33 | AI69: 501857.17 | AM69: 1015905.2 | AN69: 893996.57 | AO69: 848958.96 | AP69: 734191.25 | AQ69: 872585.81 | AT69: 682688.29 | AU69: 959466.02 | AW69: 637377.79
A70: Vehículosconmotordecombustióninterna1Empresarial1Pickupcabinasencilla4x2MesZonaRural | B70: CI-Z1-EM-N1-V9-MR | C70: Vehículos con motor de combustión interna | D70: 1 | E70: Empresarial | F70: 1 | G70: Pick up cabina sencilla 4x2 | H70: Mes Zona Rural | I70: 23330964.97 | J70: 18825037.12 | M70: 18060536.85 | N70: 19586713.42 | O70: 18718053.27 | P70: 16875314.12 | Q70: 19389787.85 | R70: 13691624.6 | S70: 20781125.32 | T70: 21164691.62 | U70: 12374319.54 | V70: 19860100.03 | W70: 17085219.13 | X70: 15086192.19 | Y70: 18878227.65 | Z70: 18617873.73 | AA70: 17603605.27 | AF70: 15577213.03 | AG70: 21921879.63 | AI70: 11489887.79 | AM70: 15577213.03 | AN70: 17383266.72 | AO70: 19526056.01 | AP70: 15241304.71 | AQ70: 19196877.61 | AT70: 15019142.44 | AU70: 19189320.4 | AW70: 16253136.53
A71: Vehículosconmotordecombustióninterna1Empresarial1Pickupcabinasencilla4x2HoraZonaDificilAcceso | B71: CI-Z1-EM-N1-V9-HDA | C71: Vehículos con motor de combustión interna | D71: 1 | E71: Empresarial | F71: 1 | G71: Pick up cabina sencilla 4x2 | H71: Hora Zona Dificil Acceso | I71: 430320.51 | J71: 108897.14 | M71: 237044.55 | N71: 130605.02 | O71: 124787.02 | P71: 129810.11 | Q71: 112163.84 | R71: 237044.55 | S71: 136570.39 | T71: 208599.2 | U71: 68717.94 | V71: 130349.17 | W71: 71188.41 | X71: 91431.47 | Y71: 125904.52 | Z71: 117640.41 | AA71: 180605.37 | AF71: 107093.34 | AG71: 201487.86 | AI71: 103012.79 | AM71: 92560.25 | AN71: 134099.49 | AO71: 127925.32 | AP71: 72560.91 | AQ71: 127979.22 | AT71: 85336.04 | AU71: 282195.89 | AW71: 67092.64
A72: Vehículosconmotordecombustióninterna1Empresarial1Pickupcabinasencilla4x2DíaZonaDificilAcceso | B72: CI-Z1-EM-N1-V9-DDA | C72: Vehículos con motor de combustión interna | D72: 1 | E72: Empresarial | F72: 1 | G72: Pick up cabina sencilla 4x2 | H72: Día Zona Dificil Acceso | I72: 1721282.04 | J72: 1124680.42 | M72: 1354540.26 | N72: 979537.66 | O72: 935902.66 | P72: 1012518.85 | Q72: 1158420.89 | R72: 1693175.33 | S72: 1024278.51 | T72: 1668793.6 | U72: 731209.79 | V72: 967519.41 | W72: 711884.13 | X72: 685736.01 | Y72: 1097629.13 | Z72: 823482.88 | AA72: 1003714.34 | AF72: 999537.84 | AG72: 1611902.91 | AI72: 652414.32 | AM72: 1015905.2 | AN72: 983396.23 | AO72: 933854.85 | AP72: 782558.18 | AQ72: 959844.16 | AT72: 682688.29 | AU72: 1580296.97 | AW72: 637377.79
A73: Vehículosconmotordecombustióninterna1Empresarial1Pickupcabinasencilla4x2MesZonaDificilAcceso | B73: CI-Z1-EM-N1-V9-MDA | C73: Vehículos con motor de combustión interna | D73: 1 | E73: Empresarial | F73: 1 | G73: Pick up cabina sencilla 4x2 | H73: Mes Zona Dificil Acceso | I73: 26920344.28 | J73: 21648793.02 | M73: 19189320.4 | N73: 21549828.48 | O73: 20589858.6 | P73: 17609023.43 | Q73: 22298256.7 | R73: 18624928.63 | S73: 22859238.42 | T73: 25397629.94 | U73: 16086615.4 | V73: 21214640.29 | W73: 21356523.92 | X73: 15086192.19 | Y73: 20451413.29 | Z73: 21410554.79 | AA73: 19572429.54 | AF73: 17134934.34 | AG73: 27402349.53 | AI73: 14936854.12 | AM73: 15577213.03 | AN73: 19121593.39 | AO73: 20502358.81 | AP73: 15803228.33 | AQ73: 21004816.36 | AT73: 15019142.44 | AU73: 22575671.06 | AW73: 16253136.53
A74: Vehículosconmotordecombustióninterna1Empresarial1Pickupcabinasencilla4x4HoraZonaUrbana | B74: CI-Z1-EM-N1-V10-HU | C74: Vehículos con motor de combustión interna | D74: 1 | E74: Empresarial | F74: 1 | G74: Pick up cabina sencilla 4x4 | H74: Hora Zona Urbana | I74: 295707.43 | J74: 80344.56 | M74: 152385.78 | N74: 83179.61 | O74: 81272.42 | P74: 104765.22 | Q74: 82754.51 | R74: 112878.36 | S74: 88568.87 | T74: 146741.86 | U74: 46526.2 | V74: 83042.35 | W74: 54509.98 | X74: 79014.85 | Y74: 96849.63 | Z74: 77603.87 | AA74: 158029.7 | AF74: 88891.7 | AG74: 142226.73 | AI74: 60954.31 | AM74: 78924.55 | AN74: 101590.52 | AO74: 81498.17 | AP74: 57221.46 | AQ74: 81532.04 | AT74: 85336.04 | AU74: 146741.86 | AW74: 60879.81
A75: Vehículosconmotordecombustióninterna1Empresarial1Pickupcabinasencilla4x4DíaZonaUrbana | B75: CI-Z1-EM-N1-V10-DU | C75: Vehículos con motor de combustión interna | D75: 1 | E75: Empresarial | F75: 1 | G75: Pick up cabina sencilla 4x4 | H75: Día Zona Urbana | I75: 1182829.71 | J75: 705600.34 | M75: 903026.84 | N75: 623847.06 | O75: 609543.12 | P75: 838121.79 | Q75: 726768.42 | R75: 559883.65 | S75: 661143.2 | T75: 1015905.2 | U75: 514114.52 | V75: 620887.39 | W75: 455605.84 | X75: 564391.78 | Y75: 844330.1 | Z75: 543227.08 | AA75: 853360.37 | AF75: 829655.91 | AG75: 1137813.82 | AI75: 386043.98 | AM75: 541816.11 | AN75: 812724.16 | AO75: 611236.29 | AP75: 649225.78 | AQ75: 611493.66 | AT75: 682688.29 | AU75: 699845.8 | AW75: 578361.6
A76: Vehículosconmotordecombustióninterna1Empresarial1Pickupcabinasencilla4x4MesZonaUrbana | B76: CI-Z1-EM-N1-V10-MU | C76: Vehículos con motor de combustión interna | D76: 1 | E76: Empresarial | F76: 1 | G76: Pick up cabina sencilla 4x4 | H76: Mes Zona Urbana | I76: 18499108.77 | J76: 14394930.78 | M76: 14109794.41 | N76: 13724635.4 | O76: 13409948.61 | P76: 15238577.97 | Q76: 14826778.54 | R76: 11415539.74 | S76: 14545149.3 | T76: 16931753.3 | U76: 11310519.34 | V76: 13730297.38 | W76: 13668175.31 | X76: 12416619.08 | Y76: 15731856.38 | Z76: 14123904.21 | AA76: 16213846.96 | AF76: 14222672.77 | AG76: 19342834.97 | AI76: 8838375.22 | AM76: 12190862.37 | AN76: 16931753.3 | AO76: 13447198.47 | AP76: 12909788.26 | AQ76: 13452860.45 | AT76: 15019142.44 | AU76: 15238577.97 | AW76: 13880673.93
A77: Vehículosconmotordecombustióninterna1Empresarial1Pickupcabinasencilla4x4HoraZonaRural | B77: CI-Z1-EM-N1-V10-HR | C77: Vehículos con motor de combustión interna | D77: 1 | E77: Empresarial | F77: 1 | G77: Pick up cabina sencilla 4x4 | H77: Hora Zona Rural | I77: 384419.66 | J77: 96843.98 | M77: 259620.22 | N77: 124782.28 | O77: 121908.62 | P77: 124166.19 | Q77: 99749.47 | R77: 112878.36 | S77: 132853.31 | T77: 205438.61 | U77: 53505.13 | V77: 122890.67 | W77: 56950.73 | X77: 101590.52 | Y77: 116219.55 | Z77: 112525.61 | AA77: 180605.37 | AF77: 102225.46 | AG77: 170672.07 | AI77: 79240.61 | AM77: 95946.6 | AN77: 121908.62 | AO77: 114097.44 | AP77: 68786.96 | AQ77: 122299.18 | AT77: 85336.04 | AU77: 191893.2 | AW77: 70447.38
A78: Vehículosconmotordecombustióninterna1Empresarial1Pickupcabinasencilla4x4DíaZonaRural | B78: CI-Z1-EM-N1-V10-DR | C78: Vehículos con motor de combustión interna | D78: 1 | E78: Empresarial | F78: 1 | G78: Pick up cabina sencilla 4x4 | H78: Día Zona Rural | I78: 1537678.62 | J78: 989591 | M78: 1467418.62 | N78: 935867.11 | O78: 914314.68 | P78: 963840.06 | Q78: 1019279.13 | R78: 642962.81 | S78: 996397.56 | T78: 1643508.85 | U78: 591231.69 | V78: 943550.17 | W78: 569507.3 | X78: 761928.9 | Y78: 1013196.12 | Z78: 787679.27 | AA78: 1024032.44 | AF78: 954104.3 | AG78: 1365376.59 | AI78: 501857.17 | AM78: 1128783.55 | AN78: 893996.57 | AO78: 889960.04 | AP78: 749636.19 | AQ78: 917240.48 | AT78: 682688.29 | AU78: 1015905.2 | AW78: 684591.42
A79: Vehículosconmotordecombustióninterna1Empresarial1Pickupcabinasencilla4x4MesZonaRural | B79: CI-Z1-EM-N1-V10-MR | C79: Vehículos con motor de combustión interna | D79: 1 | E79: Empresarial | F79: 1 | G79: Pick up cabina sencilla 4x4 | H79: Mes Zona Rural | I79: 24048840.83 | J79: 18913829.49 | M79: 19189320.4 | N79: 20589076.35 | O79: 20114922.92 | P79: 17524364.66 | Q79: 19481244.15 | R79: 13933503.07 | S79: 21817724.51 | T79: 21164691.62 | U79: 13007097.24 | V79: 20329391.79 | W79: 17085219.13 | X79: 16762435.76 | Y79: 18878227.65 | Z79: 20479661.1 | AA79: 19456616.35 | AF79: 16356073.68 | AG79: 23211401.96 | AI79: 11489887.79 | AM79: 16931753.3 | AN79: 18624928.63 | AO79: 20291089 | AP79: 15601143.05 | AQ79: 20402789.81 | AT79: 15019142.44 | AU79: 19189320.4 | AW79: 17457072.23
A80: Vehículosconmotordecombustióninterna1Empresarial1Pickupcabinasencilla4x4HoraZonaDificilAcceso | B80: CI-Z1-EM-N1-V10-HDA | C80: Vehículos con motor de combustión interna | D80: 1 | E80: Empresarial | F80: 1 | G80: Pick up cabina sencilla 4x4 | H80: Hora Zona Dificil Acceso | I80: 443561.14 | J80: 111369.17 | M80: 259620.22 | N80: 137288.82 | O80: 134099.49 | P80: 135454.03 | Q80: 114710.37 | R80: 242688.46 | S80: 146137.96 | T80: 246526.33 | U80: 72231.93 | V80: 137019.87 | W80: 71188.41 | X80: 101590.52 | Y80: 125904.52 | Z80: 129404.45 | AA80: 203181.04 | AF80: 112448.01 | AG80: 213340.09 | AI80: 103012.79 | AM80: 95946.6 | AN80: 134099.49 | AO80: 136916.93 | AP80: 71526.82 | AQ80: 134528.42 | AT80: 85336.04 | AU80: 282195.89 | AW80: 70447.38
A81: Vehículosconmotordecombustióninterna1Empresarial1Pickupcabinasencilla4x4DíaZonaDificilAcceso | B81: CI-Z1-EM-N1-V10-DDA | C81: Vehículos con motor de combustión interna | D81: 1 | E81: Empresarial | F81: 1 | G81: Pick up cabina sencilla 4x4 | H81: Día Zona Dificil Acceso | I81: 1774244.56 | J81: 1138028.29 | M81: 1467418.62 | N81: 1029666.14 | O81: 1005746.15 | P81: 1051461.88 | Q81: 1172169.48 | R81: 1749614.51 | S81: 1096038.67 | T81: 1972210.62 | U81: 768601.2 | V81: 1017032.85 | W81: 711884.13 | X81: 761928.9 | Y81: 1097629.13 | Z81: 905831.16 | AA81: 1109368.48 | AF81: 1049514.73 | AG81: 1706720.73 | AI81: 652414.32 | AM81: 1128783.55 | AN81: 983396.23 | AO81: 978956.05 | AP81: 811532.22 | AQ81: 1008964.31 | AT81: 682688.29 | AU81: 1580296.97 | AW81: 684591.42
A82: Vehículosconmotordecombustióninterna1Empresarial1Pickupcabinasencilla4x4MesZonaDificilAcceso | B82: CI-Z1-EM-N1-V10-MDA | C82: Vehículos con motor de combustión interna | D82: 1 | E82: Empresarial | F82: 1 | G82: Pick up cabina sencilla 4x4 | H82: Mes Zona Dificil Acceso | I82: 27748662.59 | J82: 21750906.17 | M82: 20318103.96 | N82: 22652655.12 | O82: 22126415.21 | P82: 18286293.56 | Q82: 22403433.37 | R82: 18963563.69 | S82: 23999497.19 | T82: 25397629.94 | U82: 16909226.41 | V82: 22361202.19 | W82: 21356523.92 | X82: 16762435.76 | Y82: 20451413.29 | Z82: 23551610.27 | AA82: 21632685.28 | AF82: 17991681.05 | AG82: 29014252.45 | AI82: 14936854.12 | AM82: 16931753.3 | AN82: 20487421.49 | AO82: 22320197.9 | AP82: 16137235.32 | AQ82: 22118994.58 | AT82: 15019142.44 | AU82: 22575671.06 | AW82: 17457072.23
A83: Vehículosconmotordecombustióninterna1Empresarial1Pickupdoblecabina4x2HoraZonaUrbana | B83: CI-Z1-EM-N1-V11-HU | C83: Vehículos con motor de combustión interna | D83: 1 | E83: Empresarial | F83: 1 | G83: Pick up doble cabina 4x2 | H83: Hora Zona Urbana | I83: 286880.34 | J83: 82528.75 | M83: 146741.86 | N83: 79130.07 | O83: 75628.5 | P83: 100885.03 | Q83: 85004.17 | R83: 124166.19 | S83: 86767.33 | T83: 124166.19 | U83: 46526.2 | V83: 78999.5 | W83: 53081.28 | X83: 84658.77 | Y83: 96849.63 | Z83: 70548.97 | AA83: 135454.03 | AF83: 93336.29 | AG83: 150128.21 | AI83: 60954.31 | AM83: 75082.17 | AN83: 101590.52 | AO83: 77530.5 | AP83: 63686.55 | AQ83: 77563.23 | AT83: 85336.04 | AU83: 124166.19 | AW83: 65849.85
A84: Vehículosconmotordecombustióninterna1Empresarial1Pickupdoblecabina4x2DíaZonaUrbana | B84: CI-Z1-EM-N1-V11-DU | C84: Vehículos con motor de combustión interna | D84: 1 | E84: Empresarial | F84: 1 | G84: Pick up doble cabina 4x2 | H84: Día Zona Urbana | I84: 1147521.36 | J84: 756965.64 | M84: 880451.17 | N84: 593475.56 | O84: 567213.74 | P84: 807080.24 | Q84: 779674.5 | R84: 647278.71 | S84: 631275.59 | T84: 903026.84 | U84: 514114.52 | V84: 590659.98 | W84: 443664.46 | X84: 620830.95 | Y84: 844330.1 | Z84: 493842.8 | AA84: 772087.95 | AF84: 871138.71 | AG84: 1201025.7 | AI84: 386043.98 | AM84: 564391.78 | AN84: 812724.16 | AO84: 581478.74 | AP84: 686542.32 | AQ84: 581723.12 | AT84: 682688.29 | AU84: 654694.46 | AW84: 625574.1
A85: Vehículosconmotordecombustióninterna1Empresarial1Pickupdoblecabina4x2MesZonaUrbana | B85: CI-Z1-EM-N1-V11-MU | C85: Vehículos con motor de combustión interna | D85: 1 | E85: Empresarial | F85: 1 | G85: Pick up doble cabina 4x2 | H85: Mes Zona Urbana | I85: 17946896.56 | J85: 15107368.17 | M85: 12981010.86 | N85: 13056462.37 | O85: 12478702.18 | P85: 14674186.19 | Q85: 15560589.44 | R85: 12864739.04 | S85: 13888061.82 | T85: 18060536.85 | U85: 11310519.34 | V85: 13061848.69 | W85: 13309933.83 | X85: 12981010.86 | Y85: 15731856.38 | Z85: 12839912.92 | AA85: 14669671.06 | AF85: 14933806.41 | AG85: 20417436.91 | AI85: 8838375.22 | AM85: 12416619.08 | AN85: 18060536.85 | AO85: 12792532.23 | AP85: 13781228.81 | AQ85: 12792331.3 | AT85: 15019142.44 | AU85: 15238577.97 | AW85: 15013790.88
A86: Vehículosconmotordecombustióninterna1Empresarial1Pickupdoblecabina4x2HoraZonaRural | B86: CI-Z1-EM-N1-V11-HR | C86: Vehículos con motor de combustión interna | D86: 1 | E86: Empresarial | F86: 1 | G86: Pick up doble cabina 4x2 | H86: Hora Zona Rural | I86: 372944.44 | J86: 99595.96 | M86: 237044.55 | N86: 118707.35 | O86: 113442.75 | P86: 118522.27 | Q86: 102583.85 | R86: 124166.19 | S86: 125813.09 | T86: 173832.67 | U86: 53505.13 | V86: 116907.83 | W86: 55458.06 | X86: 115135.92 | Y86: 116219.55 | Z86: 102296.01 | AA86: 158029.7 | AF86: 107336.73 | AG86: 180153.86 | AI86: 79240.61 | AM86: 101590.52 | AN86: 121908.62 | AO86: 116295.75 | AP86: 72525.33 | AQ86: 116344.85 | AT86: 85336.04 | AU86: 169317.53 | AW86: 67092.64
A87: Vehículosconmotordecombustióninterna1Empresarial1Pickupdoblecabina4x2DíaZonaRural | B87: CI-Z1-EM-N1-V11-DR | C87: Vehículos con motor de combustión interna | D87: 1 | E87: Empresarial | F87: 1 | G87: Pick up doble cabina 4x2 | H87: Día Zona Rural | I87: 1491777.77 | J87: 1055833.66 | M87: 1354540.26 | N87: 890305.16 | O87: 850820.6 | P87: 928142.28 | Q87: 1087508.45 | R87: 745214.44 | S87: 943594.19 | T87: 1390661.34 | U87: 591231.69 | V87: 899761.84 | W87: 554580.58 | X87: 863519.42 | Y87: 1013196.12 | Z87: 716072.07 | AA87: 926505.54 | AF87: 1001809.51 | AG87: 1441230.84 | AI87: 501857.17 | AM87: 1128783.55 | AN87: 893996.57 | AO87: 848958.96 | AP87: 802944.43 | AQ87: 872585.81 | AT87: 682688.29 | AU87: 959466.02 | AW87: 731803.92
A88: Vehículosconmotordecombustióninterna1Empresarial1Pickupdoblecabina4x2MesZonaRural | B88: CI-Z1-EM-N1-V11-MR | C88: Vehículos con motor de combustión interna | D88: 1 | E88: Empresarial | F88: 1 | G88: Pick up doble cabina 4x2 | H88: Mes Zona Rural | I88: 23330964.97 | J88: 19843939.23 | M88: 18060536.85 | N88: 19586713.42 | O88: 18718053.27 | P88: 16875314.12 | Q88: 20439257.42 | R88: 15282821.48 | S88: 20832093.29 | T88: 22575671.06 | U88: 13007097.24 | V88: 20198735.09 | W88: 16637417.29 | X88: 18997427.2 | Y88: 18878227.65 | Z88: 18617873.73 | AA88: 17603605.27 | AF88: 17173877.37 | AG88: 24500924.29 | AI88: 11489887.79 | AM88: 18060536.85 | AN88: 19866590.53 | AO88: 19526056.01 | AP88: 16436728.19 | AQ88: 19196877.61 | AT88: 15019142.44 | AU88: 19189320.4 | AW88: 17758056.72
A89: Vehículosconmotordecombustióninterna1Empresarial1Pickupdoblecabina4x2HoraZonaDificilAcceso | B89: CI-Z1-EM-N1-V11-HDA | C89: Vehículos con motor de combustión interna | D89: 1 | E89: Empresarial | F89: 1 | G89: Pick up doble cabina 4x2 | H89: Hora Zona Dificil Acceso | I89: 430320.51 | J89: 114532.02 | M89: 237044.55 | N89: 130605.02 | O89: 124787.02 | P89: 129810.11 | Q89: 117968.04 | R89: 253976.3 | S89: 138393.38 | T89: 208599.2 | U89: 72231.93 | V89: 130349.17 | W89: 69322.57 | X89: 115135.92 | Y89: 125904.52 | Z89: 117640.41 | AA89: 180605.37 | AF89: 118070.41 | AG89: 225192.32 | AI89: 103012.79 | AM89: 101590.52 | AN89: 134099.49 | AO89: 127925.32 | AP89: 79608.19 | AQ89: 127979.22 | AT89: 85336.04 | AU89: 282195.89 | AW89: 67092.64
A90: Vehículosconmotordecombustióninterna1Empresarial1Pickupdoblecabina4x2DíaZonaDificilAcceso | B90: CI-Z1-EM-N1-V11-DDA | C90: Vehículos con motor de combustión interna | D90: 1 | E90: Empresarial | F90: 1 | G90: Pick up doble cabina 4x2 | H90: Día Zona Dificil Acceso | I90: 1721282.04 | J90: 1214207.63 | M90: 1354540.26 | N90: 979537.66 | O90: 935902.66 | P90: 1012518.85 | Q90: 1250633.48 | R90: 1806053.68 | S90: 1037952.6 | T90: 1668793.6 | U90: 768601.2 | V90: 967519.41 | W90: 693225.72 | X90: 863519.42 | Y90: 1097629.13 | Z90: 823482.88 | AA90: 1003714.34 | AF90: 1101990.46 | AG90: 1801538.55 | AI90: 652414.32 | AM90: 1128783.55 | AN90: 983396.23 | AO90: 933854.85 | AP90: 858177.9 | AQ90: 959844.16 | AT90: 682688.29 | AU90: 1580296.97 | AW90: 731803.92
A91: Vehículosconmotordecombustióninterna1Empresarial1Pickupdoblecabina4x2MesZonaDificilAcceso | B91: CI-Z1-EM-N1-V11-MDA | C91: Vehículos con motor de combustión interna | D91: 1 | E91: Empresarial | F91: 1 | G91: Pick up doble cabina 4x2 | H91: Mes Zona Dificil Acceso | I91: 26920344.28 | J91: 22820530.18 | M91: 19189320.4 | N91: 21549828.48 | O91: 20589858.6 | P91: 17609023.43 | Q91: 23505146.43 | R91: 19076442.05 | S91: 22915302.84 | T91: 27090805.27 | U91: 16909226.41 | V91: 20198735.09 | W91: 20796771.61 | X91: 18997427.2 | Y91: 20451413.29 | Z91: 21410554.79 | AA91: 19572429.54 | AF91: 18891265.1 | AG91: 30626155.36 | AI91: 14936854.12 | AM91: 18060536.85 | AN91: 21853249.59 | AO91: 20502358.81 | AP91: 17226536.01 | AQ91: 21004816.36 | AT91: 15019142.44 | AU91: 22575671.06 | AW91: 17758056.72
A92: Vehículosconmotordecombustióninterna1Empresarial1Pickupdoblecabina4x4HoraZonaUrbana | B92: CI-Z1-EM-N1-V12-HU | C92: Vehículos con motor de combustión interna | D92: 1 | E92: Empresarial | F92: 1 | G92: Pick up doble cabina 4x4 | H92: Hora Zona Urbana | I92: 295707.43 | J92: 89444.81 | M92: 152385.78 | N92: 83179.61 | O92: 81272.42 | P92: 108645.42 | Q92: 92127.93 | R92: 146741.86 | S92: 89739.42 | T92: 146741.86 | U92: 56208.68 | V92: 83042.35 | W92: 54509.98 | X92: 90302.68 | Y92: 96849.63 | Z92: 77603.87 | AA92: 158029.7 | AF92: 98003.1 | AG92: 158029.7 | AI92: 60954.31 | AM92: 84658.77 | AN92: 112878.36 | AO92: 81498.17 | AP92: 69260.2 | AQ92: 81532.04 | AT92: 85336.04 | AU92: 146741.86 | AW92: 70819.88
A93: Vehículosconmotordecombustióninterna1Empresarial1Pickupdoblecabina4x4DíaZonaUrbana | B93: CI-Z1-EM-N1-V12-DU | C93: Vehículos con motor de combustión interna | D93: 1 | E93: Empresarial | F93: 1 | G93: Pick up doble cabina 4x4 | H93: Día Zona Urbana | I93: 1182829.71 | J93: 815459.2 | M93: 925602.51 | N93: 623847.06 | O93: 609543.12 | P93: 869163.34 | Q93: 839923.33 | R93: 665421.72 | S93: 664161.57 | T93: 1015905.2 | U93: 621105.91 | V93: 620887.39 | W93: 455605.84 | X93: 699845.8 | Y93: 844330.1 | Z93: 543227.08 | AA93: 853360.37 | AF93: 914695.64 | AG93: 1264237.58 | AI93: 386043.98 | AM93: 575679.61 | AN93: 903026.84 | AO93: 611236.29 | AP93: 698160.24 | AQ93: 611493.66 | AT93: 682688.29 | AU93: 699845.8 | AW93: 649181.48
A94: Vehículosconmotordecombustióninterna1Empresarial1Pickupdoblecabina4x4MesZonaUrbana | B94: CI-Z1-EM-N1-V12-MU | C94: Vehículos con motor de combustión interna | D94: 1 | E94: Empresarial | F94: 1 | G94: Pick up doble cabina 4x4 | H94: Mes Zona Urbana | I94: 18499108.77 | J94: 16270978.08 | M94: 14109794.41 | N94: 13724635.4 | O94: 13409948.61 | P94: 15802969.74 | Q94: 16759106.98 | R94: 12777366.14 | S94: 14611560.15 | T94: 18060536.85 | U94: 13664330.12 | V94: 13730297.38 | W94: 13668175.31 | X94: 14109794.41 | Y94: 15731856.38 | Z94: 14123904.21 | AA94: 16213846.96 | AF94: 15680496.73 | AG94: 21492038.85 | AI94: 8838375.22 | AM94: 12981010.86 | AN94: 18060536.85 | AO94: 13447198.47 | AP94: 14305915.7 | AQ94: 13452860.45 | AT94: 15019142.44 | AU94: 15238577.97 | AW94: 15580348.79
A95: Vehículosconmotordecombustióninterna1Empresarial1Pickupdoblecabina4x4HoraZonaRural | B95: CI-Z1-EM-N1-V12-HR | C95: Vehículos con motor de combustión interna | D95: 1 | E95: Empresarial | F95: 1 | G95: Pick up doble cabina 4x4 | H95: Hora Zona Rural | I95: 384419.66 | J95: 107211.86 | M95: 259620.22 | N95: 124782.28 | O95: 121908.62 | P95: 129810.11 | Q95: 110427.77 | R95: 146741.86 | S95: 129225.4 | T95: 205438.61 | U95: 64639.98 | V95: 122890.67 | W95: 56950.73 | X95: 121908.62 | Y95: 116219.55 | Z95: 112525.61 | AA95: 180605.37 | AF95: 112703.57 | AG95: 189635.64 | AI95: 79240.61 | AM95: 107234.44 | AN95: 135454.03 | AO95: 114097.44 | AP95: 79714.26 | AQ95: 122299.18 | AT95: 85336.04 | AU95: 191893.2 | AW95: 70447.38
A96: Vehículosconmotordecombustióninterna1Empresarial1Pickupdoblecabina4x4DíaZonaRural | B96: CI-Z1-EM-N1-V12-DR | C96: Vehículos con motor de combustión interna | D96: 1 | E96: Empresarial | F96: 1 | G96: Pick up doble cabina 4x4 | H96: Día Zona Rural | I96: 1537678.62 | J96: 1167890.26 | M96: 1467418.62 | N96: 935867.11 | O96: 914314.68 | P96: 999537.84 | Q96: 1202926.57 | R96: 783410.24 | S96: 969182.59 | T96: 1643508.85 | U96: 714271.8 | V96: 945807.74 | W96: 569507.3 | X96: 914314.68 | Y96: 1013196.12 | Z96: 787679.27 | AA96: 1024032.44 | AF96: 1051899.99 | AG96: 1517085.1 | AI96: 501857.17 | AM96: 1241661.91 | AN96: 993329.53 | AO96: 889960.04 | AP96: 822586.97 | AQ96: 917240.48 | AT96: 682688.29 | AU96: 1015905.2 | AW96: 767213.86
A97: Vehículosconmotordecombustióninterna1Empresarial1Pickupdoblecabina4x4MesZonaRural | B97: CI-Z1-EM-N1-V12-MR | C97: Vehículos con motor de combustión interna | D97: 1 | E97: Empresarial | F97: 1 | G97: Pick up doble cabina 4x4 | H97: Mes Zona Rural | I97: 24048840.83 | J97: 20969522.69 | M97: 19189320.4 | N97: 20589076.35 | O97: 20114922.92 | P97: 18173415.2 | Q97: 21598608.43 | R97: 16027639.64 | S97: 21917338.53 | T97: 22575671.06 | U97: 15713979.64 | V97: 21232418.63 | W97: 17085219.13 | X97: 20114922.92 | Y97: 18878227.65 | Z97: 20479661.1 | AA97: 19456616.35 | AF97: 18032571.24 | AG97: 25790446.62 | AI97: 11489887.79 | AM97: 19189320.4 | AN97: 19866590.53 | AO97: 20291089 | AP97: 17314589.61 | AQ97: 20402789.81 | AT97: 15019142.44 | AU97: 19189320.4 | AW97: 18961992.42
A98: Vehículosconmotordecombustióninterna1Empresarial1Pickupdoblecabina4x4HoraZonaDificilAcceso | B98: CI-Z1-EM-N1-V12-HDA | C98: Vehículos con motor de combustión interna | D98: 1 | E98: Empresarial | F98: 1 | G98: Pick up doble cabina 4x4 | H98: Hora Zona Dificil Acceso | I98: 443561.14 | J98: 123291.38 | M98: 259620.22 | N98: 137288.82 | O98: 134099.49 | P98: 141097.94 | Q98: 126990.41 | R98: 259620.22 | S98: 139562.8 | T98: 246526.33 | U98: 87263.98 | V98: 137019.87 | W98: 71188.41 | X98: 121908.62 | Y98: 125904.52 | Z98: 129404.45 | AA98: 203181.04 | AF98: 123973.93 | AG98: 237044.55 | AI98: 103012.79 | AM98: 107234.44 | AN98: 148999.43 | AO98: 136916.93 | AP98: 86575.25 | AQ98: 134528.42 | AT98: 85336.04 | AU98: 282195.89 | AW98: 70447.38
A99: Vehículosconmotordecombustióninterna1Empresarial1Pickupdoblecabina4x4DíaZonaDificilAcceso | B99: CI-Z1-EM-N1-V12-DDA | C99: Vehículos con motor de combustión interna | D99: 1 | E99: Empresarial | F99: 1 | G99: Pick up doble cabina 4x4 | H99: Día Zona Dificil Acceso | I99: 1774244.56 | J99: 1343075.21 | M99: 1467418.62 | N99: 1029666.14 | O99: 1005746.15 | P99: 1090404.91 | Q99: 1383367.14 | R99: 1806053.68 | S99: 1066101.07 | T99: 1972210.62 | U99: 928553.34 | V99: 1017032.85 | W99: 711884.13 | X99: 914314.68 | Y99: 1097629.13 | Z99: 905831.16 | AA99: 1109368.48 | AF99: 1157089.99 | AG99: 1896356.37 | AI99: 652414.32 | AM99: 1241661.91 | AN99: 1092662.48 | AO99: 978956.05 | AP99: 872700.29 | AQ99: 1008964.31 | AT99: 682688.29 | AU99: 1580296.97 | AW99: 767213.86
A100: Vehículosconmotordecombustióninterna1Empresarial1Pickupdoblecabina4x4MesZonaDificilAcceso | B100: CI-Z1-EM-N1-V12-MDA | C100: Vehículos con motor de combustión interna | D100: 1 | E100: Empresarial | F100: 1 | G100: Pick up doble cabina 4x4 | H100: Mes Zona Dificil Acceso | I100: 27748662.59 | J100: 24114951.43 | M100: 20318103.96 | N100: 22652655.12 | O100: 22126415.21 | P100: 18963563.69 | Q100: 24838400.09 | R100: 19132881.22 | S100: 24109072.72 | T100: 27090805.27 | U100: 20428173.53 | V100: 21232418.63 | W100: 21356523.92 | X100: 20114922.92 | Y100: 20451413.29 | Z100: 23551610.27 | AA100: 21632685.28 | AF100: 19835828.36 | AG100: 32238058.28 | AI100: 14936854.12 | AM100: 19189320.4 | AN100: 21853249.59 | AO100: 22320197.9 | AP100: 17882394.62 | AQ100: 22118994.58 | AT100: 15019142.44 | AU100: 22575671.06 | AW100: 18961992.42
A101: Vehículosconmotordecombustióninterna1Empresarial2AutomóvilHoraZonaUrbana | B101: CI-Z1-EM-N2-V1-HU | C101: Vehículos con motor de combustión interna | D101: 1 | E101: Empresarial | F101: 2 | G101: Automóvil | H101: Hora Zona Urbana | I101: 229504.27 | J101: 87963.84 | M101: 169317.53 | N101: 100975.67 | O101: 94817.82 | R101: 101590.52 | S101: 107797.7 | U101: 63371.45 | V101: 101017.32 | W101: 55055.61 | X101: 79014.85 | Y101: 93869.64 | Z101: 73018.19 | AA101: 146741.86 | AF101: 55332.97 | AG101: 118522.27 | AI101: 54909.68 | AM101: 93727.41 | AN101: 73018.19 | AO101: 98768.56 | AP101: 77730 | AQ101: 98976.26 | AT101: 74077.55 | AU101: 124166.19 | AW101: 55351.03
A102: Vehículosconmotordecombustióninterna1Empresarial2AutomóvilDíaZonaUrbana | B102: CI-Z1-EM-N2-V1-DU | C102: Vehículos con motor de combustión interna | D102: 1 | E102: Empresarial | F102: 2 | G102: Automóvil | H102: Día Zona Urbana | I102: 918017.09 | J102: 761245.98 | M102: 711133.64 | N102: 757317.5 | O102: 711133.64 | R102: 608345.36 | S102: 808188.71 | U102: 691324.87 | V102: 753724.62 | W102: 485731.11 | X102: 592611.37 | Y102: 685397.37 | Z102: 511127.3 | AA102: 772087.95 | AF102: 386043.98 | AG102: 948178.18 | AI102: 408901.84 | AM102: 620830.95 | AN102: 532221.45 | AO102: 740764.21 | AP102: 789282.87 | AQ102: 742320.8 | AT102: 592620.4 | AU102: 846587.66 | AW102: 556028.62
A103: Vehículosconmotordecombustióninterna1Empresarial2AutomóvilMesZonaUrbana | B103: CI-Z1-EM-N2-V1-MU | C103: Vehículos con motor de combustión interna | D103: 1 | E103: Empresarial | F103: 2 | G103: Automóvil | H103: Mes Zona Urbana | I103: 14357517.25 | J103: 15968983.33 | M103: 11852227.31 | N103: 16660985.03 | O103: 15644940.05 | R103: 9625585.23 | S103: 17780148.14 | U103: 14517822.24 | V103: 16667858.38 | W103: 14571933.22 | X103: 12416619.08 | Y103: 14899942.9 | Z103: 13289309.87 | AA103: 14669671.06 | AF103: 10294506 | AG103: 16119029.14 | AI103: 8879011.43 | AM103: 14674186.19 | AN103: 10904049.12 | AO103: 16296812.55 | AP103: 15893192.05 | AQ103: 16331064.36 | AT103: 13037648.7 | AU103: 15802969.74 | AW103: 12232623.98
A104: Vehículosconmotordecombustióninterna1Empresarial2AutomóvilHoraZonaRural | B104: CI-Z1-EM-N2-V1-HR | C104: Vehículos con motor de combustión interna | D104: 1 | E104: Empresarial | F104: 2 | G104: Automóvil | H104: Hora Zona Rural | I104: 298355.55 | J104: 106777.28 | M104: 304771.56 | N104: 151479.12 | O104: 142226.73 | R104: 101590.52 | S104: 159418.1 | U104: 70412.72 | V104: 151213.56 | W104: 60716.39 | X104: 106670.05 | Y104: 112643.57 | Z104: 105876.37 | AA104: 158029.7 | AF104: 63632.92 | AG104: 142226.73 | AI104: 71382.58 | AM104: 118522.27 | AN104: 87621.82 | AO104: 138275.99 | AP104: 90422.23 | AQ104: 148464.39 | AT104: 74077.55 | AU104: 146741.86 | AW104: 57867.09
A105: Vehículosconmotordecombustióninterna1Empresarial2AutomóvilDíaZonaRural | B105: CI-Z1-EM-N2-V1-DR | C105: Vehículos con motor de combustión interna | D105: 1 | E105: Empresarial | F105: 2 | G105: Automóvil | H105: Día Zona Rural | I105: 1193422.21 | J105: 1065012.93 | M105: 1241661.91 | N105: 1136093.41 | O105: 1066700.46 | R105: 693114.86 | S105: 1204178.39 | U105: 768138.74 | V105: 1131758.52 | W105: 607163.88 | X105: 801436.32 | Y105: 822476.85 | Z105: 741134.59 | AA105: 926505.54 | AF105: 443950.57 | AG105: 1137813.82 | AI105: 531572.39 | AM105: 846587.66 | AN105: 585443.59 | AO105: 1078552.68 | AP105: 914130.74 | AQ105: 1097836.82 | AT105: 592620.4 | AU105: 1354540.26 | AW105: 639432.18
A106: Vehículosconmotordecombustióninterna1Empresarial2AutomóvilMesZonaRural | B106: CI-Z1-EM-N2-V1-MR | C106: Vehículos con motor de combustión interna | D106: 1 | E106: Empresarial | F106: 2 | G106: Automóvil | H106: Mes Zona Rural | I106: 18664772.43 | J106: 20846180.51 | M106: 15802969.74 | N106: 24994055.05 | O106: 23467410.07 | R106: 11754763.44 | S106: 26670222.78 | U106: 18435329.82 | V106: 25097768.59 | W106: 18214916.53 | X106: 17631599.1 | Y106: 17879931.48 | Z106: 19269499.31 | AA106: 17603605.27 | AF106: 11838681.9 | AG106: 19342834.97 | AI106: 11542714.86 | AM106: 18060536.85 | AN106: 11994454.03 | AO106: 23728159.07 | AP106: 15893192.05 | AQ106: 24496596.53 | AT106: 13037648.7 | AU106: 22575671.06 | AW106: 14067516.95
A107: Vehículosconmotordecombustióninterna1Empresarial2AutomóvilHoraZonaDificilAcceso | B107: CI-Z1-EM-N2-V1-HDA | C107: Vehículos con motor de combustión interna | D107: 1 | E107: Empresarial | F107: 2 | G107: Automóvil | H107: Hora Zona Dificil Acceso | I107: 344256.41 | J107: 122792.46 | M107: 304771.56 | N107: 166661.4 | O107: 156449.4 | R107: 214468.88 | S107: 177864.68 | U107: 91536.53 | V107: 166334.92 | W107: 75895.49 | X107: 112878.36 | Y107: 122030.53 | Z107: 121757.83 | AA107: 180605.37 | AF107: 69996.21 | AG107: 177783.41 | AI107: 92797.35 | AM107: 118522.27 | AN107: 96384.01 | AO107: 165931.18 | AP107: 89389.5 | AQ107: 163310.15 | AT107: 74077.55 | AU107: 451513.42 | AW107: 57867.09
A108: Vehículosconmotordecombustióninterna1Empresarial2AutomóvilDíaZonaDificilAcceso | B108: CI-Z1-EM-N2-V1-DDA | C108: Vehículos con motor de combustión interna | D108: 1 | E108: Empresarial | F108: 2 | G108: Automóvil | H108: Día Zona Dificil Acceso | I108: 1377025.63 | J108: 1224767.4 | M108: 1241661.91 | N108: 1249960.5 | O108: 1173370.5 | R108: 1467418.62 | S108: 1324595.89 | U108: 831126.12 | V108: 1234624.35 | W108: 758954.86 | X108: 840943.75 | Y108: 891016.59 | Z108: 852304.78 | AA108: 1003714.34 | AF108: 488345.63 | AG108: 1422267.28 | AI108: 691044.11 | AM108: 846587.66 | AN108: 643987.95 | AO108: 1204897.43 | AP108: 907675.3 | AQ108: 1219242.01 | AT108: 592620.4 | AU108: 2257567.11 | AW108: 639432.18
A109: Vehículosconmotordecombustióninterna1Empresarial2AutomóvilMesZonaDificilAcceso | B109: CI-Z1-EM-N2-V1-MDA | C109: Vehículos con motor de combustión interna | D109: 1 | E109: Empresarial | F109: 2 | G109: Automóvil | H109: Mes Zona Dificil Acceso | I109: 21536275.88 | J109: 23973108.49 | M109: 16931753.3 | N109: 27499131.07 | O109: 25814151.08 | R109: 15238577.97 | S109: 29337244.83 | U109: 19947026.87 | V109: 25775038.72 | W109: 22768645.66 | X109: 18512050.27 | Y109: 19369925.77 | Z109: 22159924.21 | AA109: 19572429.54 | AF109: 13022550.1 | AG109: 24178543.71 | AI109: 15005529.31 | AM109: 18060536.85 | AN109: 13193899.44 | AO109: 27050101.34 | AP109: 18277170.86 | AQ109: 26340573.96 | AT109: 13037648.7 | AU109: 28219588.83 | AW109: 14067516.95
A110: Vehículosconmotordecombustióninterna1Empresarial2Busde30a40pasajerosHoraZonaUrbana | B110: CI-Z1-EM-N2-V2-HU | C110: Vehículos con motor de combustión interna | D110: 1 | E110: Empresarial | F110: 2 | G110: Bus de 30 a 40 pasajeros | H110: Hora Zona Urbana | I110: 573760.68 | J110: 404120.89 | M110: 722421.47 | N110: 689515.18 | O110: 663724.73 | R110: 253976.3 | S110: 785127.66 | U110: 212611.11 | V110: 689799.63 | W110: 199696.34 | X110: 677270.13 | Y110: 491698.12 | Z110: 491020.85 | AA110: 462801.26 | AF110: 173977.15 | AG110: 359799.76 | AI110: 285582.24 | AM110: 640020.27 | AN110: 499444.39 | AO110: 675576.96 | AP110: 368441.39 | AQ110: 642412.17 | AT110: 98438.96 | AU110: 620830.95 | AW110: 521829.86
A111: Vehículosconmotordecombustióninterna1Empresarial2Busde30a40pasajerosDíaZonaUrbana | B111: CI-Z1-EM-N2-V2-DU | C111: Vehículos con motor de combustión interna | D111: 1 | E111: Empresarial | F111: 2 | G111: Bus de 30 a 40 pasajeros | H111: Día Zona Urbana | I111: 2295042.72 | J111: 2384708.73 | M111: 3950742.44 | N111: 2758060.7 | O111: 2654898.92 | R111: 1827538.2 | S111: 3184266.8 | U111: 2319393.97 | V111: 2744975.84 | W111: 880915.85 | X111: 2765519.71 | Y111: 2050381.14 | Z111: 2946125.07 | AA111: 2663929.19 | AF111: 1522300.08 | AG111: 2878398.06 | AI111: 1004730.24 | AM111: 2483323.82 | AN111: 1817341.52 | AO111: 2702307.83 | AP111: 2784741.96 | AQ111: 2663992.4 | AT111: 787511.65 | AU111: 2483323.82 | AW111: 1784782.89
A112: Vehículosconmotordecombustióninterna1Empresarial2Busde30a40pasajerosMesZonaUrbana | B112: CI-Z1-EM-N2-V2-MU | C112: Vehículos con motor de combustión interna | D112: 1 | E112: Empresarial | F112: 2 | G112: Bus de 30 a 40 pasajeros | H112: Mes Zona Urbana | I112: 35893793.13 | J112: 27563553.82 | M112: 45151342.12 | N112: 41370910.55 | O112: 39823483.75 | R112: 35221602.52 | S112: 47450288.18 | U112: 38270000.47 | V112: 41387977.76 | W112: 26427475.64 | X112: 41482795.58 | Y112: 38352453.03 | Z112: 58922501.47 | AA112: 31967150.22 | AF112: 33490601.66 | AG112: 48932767.03 | AI112: 16823390.07 | AM112: 33863506.59 | AN112: 32452527.15 | AO112: 37832309.56 | AP112: 49097701.49 | AQ112: 41375047.54 | AT112: 17325256.27 | AU112: 41764991.46 | AW112: 27485648.12
A113: Vehículosconmotordecombustióninterna1Empresarial2Busde30a40pasajerosHoraZonaRural | B113: CI-Z1-EM-N2-V2-HR | C113: Vehículos con motor de combustión interna | D113: 1 | E113: Empresarial | F113: 2 | G113: Bus de 30 a 40 pasajeros | H113: Hora Zona Rural | I113: 745888.88 | J113: 430313.91 | M113: 914314.68 | N113: 1034379.43 | O113: 995587.09 | R113: 253976.3 | S113: 1177690.36 | U113: 250130.72 | V113: 1032566.04 | W113: 220228.96 | X113: 1072344.38 | Y113: 590037.74 | Z113: 711980.23 | AA113: 485376.93 | AF113: 200073.72 | AG113: 431759.71 | AI113: 328419.57 | AM113: 855617.93 | AN113: 599333.27 | AO113: 945807.74 | AP113: 434121.68 | AQ113: 1002928.7 | AT113: 98438.96 | AU113: 846587.66 | AW113: 615759.33
A114: Vehículosconmotordecombustióninterna1Empresarial2Busde30a40pasajerosDíaZonaRural | B114: CI-Z1-EM-N2-V2-DR | C114: Vehículos con motor de combustión interna | D114: 1 | E114: Empresarial | F114: 2 | G114: Bus de 30 a 40 pasajeros | H114: Día Zona Rural | I114: 2983555.54 | J114: 2636937.54 | M114: 3499229.01 | N114: 5171897.17 | O114: 4977935.47 | R114: 2167723.46 | S114: 5888452.92 | U114: 2728698.79 | V114: 5152163.21 | W114: 1101144.82 | X114: 5192404.34 | Y114: 2460457.37 | Z114: 4271881.36 | AA114: 3063518.56 | AF114: 1750645.09 | AG114: 3454077.67 | AI114: 1306149.31 | AM114: 4515134.21 | AN114: 1999075.67 | AO114: 4729038.7 | AP114: 3249548.44 | AQ114: 5046089.16 | AT114: 787511.65 | AU114: 4515134.21 | AW114: 2052499.87
A115: Vehículosconmotordecombustióninterna1Empresarial2Busde30a40pasajerosMesZonaRural | B115: CI-Z1-EM-N2-V2-MR | C115: Vehículos con motor de combustión interna | D115: 1 | E115: Empresarial | F115: 2 | G115: Bus de 30 a 40 pasajeros | H115: Mes Zona Rural | I115: 46661931.07 | J115: 29796201.68 | M115: 51924043.44 | N115: 77578457.53 | O115: 74669032.04 | R115: 43339584.32 | S115: 87783031.66 | U115: 49116578.14 | V115: 80002534.32 | W115: 33034344.54 | X115: 76757281.61 | Y115: 46022943.63 | Z115: 85437627.13 | AA115: 33698704.19 | AF115: 38514191.91 | AG115: 58719320.43 | AI115: 21870407.1 | AM115: 50795259.89 | AN115: 35697779.87 | AO115: 66206541.74 | AP115: 58605867.74 | AQ115: 74433424.43 | AT115: 17325256.27 | AU115: 66598229.63 | AW115: 31608496.18
A116: Vehículosconmotordecombustióninterna1Empresarial2Busde30a40pasajerosHoraZonaDificilAcceso | B116: CI-Z1-EM-N2-V2-HDA | C116: Vehículos con motor de combustión interna | D116: 1 | E116: Empresarial | F116: 2 | G116: Bus de 30 a 40 pasajeros | H116: Hora Zona Dificil Acceso | I116: 860641.02 | J116: 438920.19 | M116: 914314.68 | N116: 1138052.05 | O116: 1095145.8 | R116: 507952.6 | S116: 1248352.21 | U116: 325169.94 | V116: 1135822.65 | W116: 275286.2 | X116: 1151359.22 | Y116: 639207.55 | Z116: 818777.26 | AA116: 519240.43 | AF116: 220081.1 | AG116: 539699.64 | AI116: 394103.49 | AM116: 855617.93 | AN116: 659266.6 | AO116: 1134969.29 | AP116: 423707.6 | AQ116: 1125234.66 | AT116: 98438.96 | AU116: 1072344.38 | AW116: 615759.33
A117: Vehículosconmotordecombustióninterna1Empresarial2Busde30a40pasajerosDíaZonaDificilAcceso | B117: CI-Z1-EM-N2-V2-DDA | C117: Vehículos con motor de combustión interna | D117: 1 | E117: Empresarial | F117: 2 | G117: Bus de 30 a 40 pasajeros | H117: Día Zona Dificil Acceso | I117: 3442564.08 | J117: 2689676.29 | M117: 3499229.01 | N117: 5690260.26 | O117: 5475729.02 | R117: 2991276.42 | S117: 6477298.66 | U117: 2952452.09 | V117: 5620444.71 | W117: 1835241.36 | X117: 5581834.67 | Y117: 2665495.49 | Z117: 4912663.56 | AA117: 3329911.48 | AF117: 1925709.6 | AG117: 4317597.09 | AI117: 1697994.11 | AM117: 4515134.21 | AN117: 2198983.24 | AO117: 5201942.57 | AP117: 3202453.26 | AQ117: 5060110.91 | AT117: 787511.65 | AU117: 4966647.63 | AW117: 2052499.87
A118: Vehículosconmotordecombustióninterna1Empresarial2Busde30a40pasajerosMesZonaDificilAcceso | B118: CI-Z1-EM-N2-V2-MDA | C118: Vehículos con motor de combustión interna | D118: 1 | E118: Empresarial | F118: 2 | G118: Bus de 30 a 40 pasajeros | H118: Mes Zona Dificil Acceso | I118: 53840689.69 | J118: 30392125.72 | M118: 54181610.55 | N118: 85353903.84 | O118: 82135935.24 | R118: 44022558.57 | S118: 96561335.28 | U118: 53144137.55 | V118: 80002534.32 | W118: 55057240.91 | X118: 82514077.73 | Y118: 49858188.93 | Z118: 98253271.2 | AA118: 36629026.3 | AF118: 42365611.1 | AG118: 73399150.54 | AI118: 28431529.23 | AM118: 50795259.89 | AN118: 39267557.85 | AO118: 72827195.91 | AP118: 56462356.71 | AQ118: 71519725.92 | AT118: 17325256.27 | AU118: 67727013.18 | AW118: 31608496.18
A119: Vehículosconmotordecombustióninterna1Empresarial2Busde40a50pasajerosHoraZonaUrbana | B119: CI-Z1-EM-N2-V3-HU | C119: Vehículos con motor de combustión interna | D119: 1 | E119: Empresarial | F119: 2 | G119: Bus de 40 a 50 pasajeros | H119: Hora Zona Urbana | I119: 745888.88 | J119: 479223 | M119: 778860.65 | N119: 766127.97 | O119: 742739.58 | R119: 304771.56 | S119: 831578.23 | U119: 245289.48 | V119: 766444.03 | W119: 249620.42 | X119: 767572.82 | Y119: 581097.77 | Z119: 541816.11 | AA119: 496664.76 | AF119: 234869.15 | AG119: 388583.74 | AI119: 285582.24 | AM119: 711133.64 | AN119: 558443.09 | AO119: 755381.95 | AP119: 481161.3 | AQ119: 710329.94 | AT119: 98438.96 | AU119: 677270.13 | AW119: 559103.43
A120: Vehículosconmotordecombustióninterna1Empresarial2Busde40a50pasajerosDíaZonaUrbana | B120: CI-Z1-EM-N2-V3-DU | C120: Vehículos con motor de combustión interna | D120: 1 | E120: Empresarial | F120: 2 | G120: Bus de 40 a 50 pasajeros | H120: Día Zona Urbana | I120: 2983555.54 | J120: 2940839.02 | M120: 4740890.92 | N120: 3064511.89 | O120: 2970958.31 | R120: 2168807.09 | S120: 3350970.07 | U120: 2675885.26 | V120: 3049973.16 | W120: 1101144.82 | X120: 3160593.95 | Y120: 2212641.52 | Z120: 3250896.63 | AA120: 2979988.58 | AF120: 2055105.1 | AG120: 3108669.91 | AI120: 1004730.24 | AM120: 2821958.88 | AN120: 1947151.63 | AO120: 3021527.81 | AP120: 3307155.78 | AQ120: 2921621.44 | AT120: 787511.65 | AU120: 3047715.59 | AW120: 1922073.44
A121: Vehículosconmotordecombustióninterna1Empresarial2Busde40a50pasajerosMesZonaUrbana | B121: CI-Z1-EM-N2-V3-MU | C121: Vehículos con motor de combustión interna | D121: 1 | E121: Empresarial | F121: 2 | G121: Bus de 40 a 50 pasajeros | H121: Mes Zona Urbana | I121: 46661931.07 | J121: 33278807.55 | M121: 49666476.33 | N121: 45967678.39 | O121: 44564374.68 | R121: 42598108.98 | S121: 49917488.45 | U121: 44152106.8 | V121: 45986641.95 | W121: 33034344.54 | X121: 47408909.23 | Y121: 42777736.07 | Z121: 65017932.66 | AA121: 35759862.96 | AF121: 45212312.24 | AG121: 52847388.39 | AI121: 16823390.07 | AM121: 39507424.36 | AN121: 36346830.41 | AO121: 42301389.41 | AP121: 59019081.85 | AQ121: 42827484.94 | AT121: 17325256.27 | AU121: 45151342.12 | AW121: 29599929.7
A122: =SUBSTITUTE(C122&D122&E122&F122&G122&H122," ","") -> Vehículosconmotordecombustióninterna1Empresarial2Busde40a50pasajerosHoraZonaRural | B122: CI-Z1-EM-N2-V3-HR | C122: Vehículos con motor de combustión interna | D122: 1 | E122: Empresarial | F122: 2 | G122: Bus de 40 a 50 pasajeros | H122: Hora Zona Rural | I122: 969655.55 | J122: 510283.75 | M122: 1196510.57 | N122: 1149310.48 | O122: 1114109.37 | R122: 304771.56 | S122: 1247367.91 | U122: 306611.85 | V122: 1147295.6 | W122: 275286.2 | X122: 1219086.24 | Y122: 697317.33 | Z122: 785633.35 | AA122: 519240.43 | AF122: 270099.53 | AG122: 466300.49 | AI122: 328419.57 | AM122: 959466.02 | AN122: 670131.7 | AO122: 1057534.74 | AP122: 562961.48 | AQ122: 1093432.31 | AT122: 98438.96 | AU122: 959466.02 | AW122: 659742.38
A123: Vehículosconmotordecombustióninterna1Empresarial2Busde40a50pasajerosDíaZonaRural | B123: CI-Z1-EM-N2-V3-DR | C123: Vehículos con motor de combustión interna | D123: 1 | E123: Empresarial | F123: 2 | G123: Bus de 40 a 50 pasajeros | H123: Día Zona Rural | I123: 3878622.2 | J123: 3251889.3 | M123: 4628012.57 | N123: 5746552.41 | O123: 5570546.83 | R123: 2610846.26 | S123: 6236837.29 | U123: 3344856.58 | V123: 5724625.79 | W123: 1376431.02 | X123: 5869674.48 | Y123: 2655169.82 | Z123: 4713800.12 | AA123: 3426986.87 | AF123: 2363370.87 | AG123: 3730403.89 | AI123: 1306149.31 | AM123: 5192404.34 | AN123: 2141866.79 | AO123: 5287673.68 | AP123: 3860013.44 | AQ123: 5589294.8 | AT123: 787511.65 | AU123: 5079525.99 | AW123: 2210383.95
A124: Vehículosconmotordecombustióninterna1Empresarial2Busde40a50pasajerosMesZonaRural | B124: CI-Z1-EM-N2-V3-MR | C124: Vehículos con motor de combustión interna | D124: 1 | E124: Empresarial | F124: 2 | G124: Bus de 40 a 50 pasajeros | H124: Mes Zona Rural | I124: 60660509.82 | J124: 35974390.96 | M124: 60954311.87 | N124: 86198286.15 | O124: 83558202.52 | R124: 52806089.96 | S124: 92347354.87 | U124: 60207418.36 | V124: 88891704.8 | W124: 41292930.68 | X124: 81272415.82 | Y124: 51333283.28 | Z124: 94276002.35 | AA124: 37696855.54 | AF124: 51994159.07 | AG124: 63416866.06 | AI124: 21870407.1 | AM124: 69984580.29 | AN124: 39981513.45 | AO124: 70854827.26 | AP124: 70383883.56 | AQ124: 78375546.35 | AT124: 17325256.27 | AU124: 73370930.95 | AW124: 34039918.53
A125: Vehículosconmotordecombustióninterna1Empresarial2Busde40a50pasajerosHoraZonaDificilAcceso | B125: CI-Z1-EM-N2-V3-HDA | C125: Vehículos con motor de combustión interna | D125: 1 | E125: Empresarial | F125: 2 | G125: Bus de 40 a 50 pasajeros | H125: Hora Zona Dificil Acceso | I125: 1118833.33 | J125: 520489.43 | M125: 1196510.57 | N125: 1264502.28 | O125: 1225520.3 | R125: 564391.78 | S125: 1372104.14 | U125: 398595.41 | V125: 1262025.16 | W125: 344107.76 | X125: 1309388.92 | Y125: 755427.11 | Z125: 903478.36 | AA125: 553103.94 | AF125: 297109.48 | AG125: 582875.61 | AI125: 394103.49 | AM125: 959466.02 | AN125: 737144.88 | AO125: 1269041.68 | AP125: 553335.5 | AQ125: 1226500.09 | AT125: 98438.96 | AU125: 1185222.73 | AW125: 659742.38
A126: Vehículosconmotordecombustióninterna1Empresarial2Busde40a50pasajerosDíaZonaDificilAcceso | B126: CI-Z1-EM-N2-V3-DDA | C126: Vehículos con motor de combustión interna | D126: 1 | E126: Empresarial | F126: 2 | G126: Bus de 40 a 50 pasajeros | H126: Día Zona Dificil Acceso | I126: 4475333.3 | J126: 3316927.09 | M126: 4628012.57 | N126: 6322511.4 | O126: 6127601.52 | R126: 3329911.48 | S126: 6860521.81 | U126: 3619134.81 | V126: 6244938.57 | W126: 2294051.7 | X126: 6546944.61 | Y126: 2876433.98 | Z126: 5420870.14 | AA126: 3724985.73 | AF126: 2599707.95 | AG126: 4663004.86 | AI126: 1697994.11 | AM126: 5192404.34 | AN126: 2356053.47 | AO126: 5816441.04 | AP126: 3803229.15 | AQ126: 5625970.11 | AT126: 787511.65 | AU126: 5418161.05 | AW126: 2210383.95
A127: Vehículosconmotordecombustióninterna1Empresarial2Busde40a50pasajerosMesZonaDificilAcceso | B127: CI-Z1-EM-N2-V3-MDA | C127: Vehículos con motor de combustión interna | D127: 1 | E127: Empresarial | F127: 2 | G127: Bus de 40 a 50 pasajeros | H127: Mes Zona Dificil Acceso | I127: 69992896.04 | J127: 36693878.78 | M127: 63211878.97 | N127: 94837670.94 | O127: 91914022.77 | R127: 54181610.55 | S127: 101582090 | U127: 65144426.67 | V127: 88891704.8 | W127: 68821551.13 | X127: 84658766.48 | Y127: 55611056.89 | Z127: 108417402.7 | AA127: 40974842.98 | AF127: 57193574.98 | AG127: 79271082.58 | AI127: 28431529.23 | AM127: 69984580.29 | AN127: 43979664.79 | AO127: 77940309.98 | AP127: 67871944.13 | AQ127: 77330703.65 | AT127: 17325256.27 | AU127: 73370930.95 | AW127: 34039918.53
A128: Vehículosconmotordecombustióninterna1Empresarial2Busetade20a30pasajerosHoraZonaUrbana | B128: CI-Z1-EM-N2-V4-HU | C128: Vehículos con motor de combustión interna | D128: 1 | E128: Empresarial | F128: 2 | G128: Buseta de 20 a 30 pasajeros | H128: Hora Zona Urbana | I128: 516384.61 | J128: 311648.22 | M128: 496664.76 | N128: 582257.26 | O128: 553103.94 | R128: 214468.88 | S128: 718647.95 | U128: 142355.5 | V128: 582497.46 | W128: 162253.27 | X128: 564391.78 | Y128: 446998.29 | Z128: 412288.19 | AA128: 406362.08 | AF128: 133828.58 | AG128: 331015.78 | AI128: 246639.21 | AM128: 540461.57 | AN128: 421753.04 | AO128: 570487.21 | AP128: 311023.02 | AQ128: 583085.56 | AT128: 92589.6 | AU128: 564391.78 | AW128: 521829.86
A129: Vehículosconmotordecombustióninterna1Empresarial2Busetade20a30pasajerosDíaZonaUrbana | B129: CI-Z1-EM-N2-V4-DU | C129: Vehículos con motor de combustión interna | D129: 1 | E129: Empresarial | F129: 2 | G129: Buseta de 20 a 30 pasajeros | H129: Día Zona Urbana | I129: 2065538.45 | J129: 1820706.81 | M129: 3499229.01 | N129: 2329029.04 | O129: 2212415.76 | R129: 1528523.44 | S129: 2608675.23 | U129: 1552969.12 | V129: 2317979.6 | W129: 715744.13 | X129: 2257567.11 | Y129: 1799615.1 | Z129: 2473729.16 | AA129: 1986659.05 | AF129: 1171000.06 | AG129: 2648126.22 | AI129: 1004730.24 | AM129: 2257567.11 | AN129: 1557721.3 | AO129: 2281948.83 | AP129: 2484447.51 | AQ129: 2265291.37 | AT129: 740716.8 | AU129: 2257567.11 | AW129: 1784782.89
A130: Vehículosconmotordecombustióninterna1Empresarial2Busetade20a30pasajerosMesZonaUrbana | B130: CI-Z1-EM-N2-V4-MU | C130: Vehículos con motor de combustión interna | D130: 1 | E130: Empresarial | F130: 2 | G130: Buseta de 20 a 30 pasajeros | H130: Mes Zona Urbana | I130: 32304413.82 | J130: 20195258.89 | M130: 36121073.7 | N130: 34935435.58 | O130: 33186236.46 | R130: 33904631.94 | S130: 38931532.53 | U130: 39600712.67 | V130: 34949847.88 | W130: 21472323.95 | X130: 33863506.59 | Y130: 35402264.33 | Z130: 49474583.13 | AA130: 25826567.69 | AF130: 25762001.27 | AG130: 45018145.66 | AI130: 16122415.49 | AM130: 27090805.27 | AN130: 28558223.89 | AO130: 34229232.46 | AP130: 47067149.66 | AQ130: 33979362.68 | AT130: 16295769.55 | AU130: 36121073.7 | AW130: 27485648.12
A131: Vehículosconmotordecombustióninterna1Empresarial2Busetade20a30pasajerosHoraZonaRural | B131: CI-Z1-EM-N2-V4-HR | C131: Vehículos con motor de combustión interna | D131: 1 | E131: Empresarial | F131: 2 | G131: Buseta de 20 a 30 pasajeros | H131: Hora Zona Rural | I131: 671300 | J131: 331847.64 | M131: 744997.15 | N131: 873475.97 | O131: 829655.91 | R131: 214468.88 | S131: 1077972.49 | U131: 149847.9 | V131: 871944.66 | W131: 178936.03 | X131: 903026.84 | Y131: 536397.94 | Z131: 597817.88 | AA131: 445869.5 | AF131: 153902.86 | AG131: 397218.93 | AI131: 283635.09 | AM131: 756284.98 | AN131: 506103.65 | AO131: 781567.47 | AP131: 359388.95 | AQ131: 857865.34 | AT131: 92589.6 | AU131: 733709.31 | AW131: 615759.33
A132: Vehículosconmotordecombustióninterna1Empresarial2Busetade20a30pasajerosDíaZonaRural | B132: CI-Z1-EM-N2-V4-DR | C132: Vehículos con motor de combustión interna | D132: 1 | E132: Empresarial | F132: 2 | G132: Buseta de 20 a 30 pasajeros | H132: Día Zona Rural | I132: 2685199.98 | J132: 2013281.57 | M132: 2596202.17 | N132: 4367379.83 | O132: 4148279.56 | R132: 1765861.47 | S132: 5389860.19 | U132: 1634704.34 | V132: 4350715.6 | W132: 894680.16 | X132: 4289377.5 | Y132: 2159538.12 | Z132: 3586907.28 | AA132: 2284657.91 | AF132: 1346650.07 | AG132: 3177751.46 | AI132: 1306149.31 | AM132: 3724985.73 | AN132: 1713493.43 | AO132: 3907837.37 | AP132: 2814253.27 | AQ132: 3824767.93 | AT132: 740716.8 | AU132: 3950742.44 | AW132: 2052499.87
A133: Vehículosconmotordecombustióninterna1Empresarial2Busetade20a30pasajerosMesZonaRural | B133: CI-Z1-EM-N2-V4-MR | C133: Vehículos con motor de combustión interna | D133: 1 | E133: Empresarial | F133: 2 | G133: Buseta de 20 a 30 pasajeros | H133: Mes Zona Rural | I133: 41995737.4 | J133: 21831074.86 | M133: 41764991.46 | N133: 65510697.47 | O133: 62224193.36 | R133: 40028154.79 | S133: 72023334.96 | U133: 44137017.22 | V133: 67557695.65 | W133: 26840404.94 | X133: 62083095.42 | Y133: 42482717.2 | Z133: 71738145.54 | AA133: 29700552.85 | AF133: 29626301.47 | AG133: 54021774.8 | AI133: 20959140.13 | AM133: 44022558.57 | AN133: 31414046.28 | AO133: 62525397.97 | AP133: 54246175.28 | AQ133: 63693345.79 | AT133: 16295769.55 | AU133: 62083095.42 | AW133: 31608496.18
A134: Vehículosconmotordecombustióninterna1Empresarial2Busetade20a30pasajerosHoraZonaDificilAcceso | B134: CI-Z1-EM-N2-V4-HDA | C134: Vehículos con motor de combustión interna | D134: 1 | E134: Empresarial | F134: 2 | G134: Buseta de 20 a 30 pasajeros | H134: Hora Zona Dificil Acceso | I134: 774576.92 | J134: 338484.6 | M134: 744997.15 | N134: 961021.73 | O134: 912621.5 | R134: 395074.24 | S134: 1142650.66 | U134: 194802.27 | V134: 959139.12 | W134: 223670.04 | X134: 970753.86 | Y134: 581097.77 | Z134: 687490.56 | AA134: 474089.09 | AF134: 169293.15 | AG134: 496523.67 | AI134: 340362.1 | AM134: 756284.98 | AN134: 556714.02 | AO134: 937880.97 | AP134: 357676.48 | AQ134: 874526.19 | AT134: 92589.6 | AU134: 959466.02 | AW134: 615759.33
A135: Vehículosconmotordecombustióninterna1Empresarial2Busetade20a30pasajerosDíaZonaDificilAcceso | B135: CI-Z1-EM-N2-V4-DDA | C135: Vehículos con motor de combustión interna | D135: 1 | E135: Empresarial | F135: 2 | G135: Buseta de 20 a 30 pasajeros | H135: Día Zona Dificil Acceso | I135: 3098307.67 | J135: 2053547.2 | M135: 2596202.17 | N135: 4805108.66 | O135: 4563107.51 | R135: 2821958.88 | S135: 5928845.31 | U135: 1768750.1 | V135: 4746153.31 | W135: 1491133.61 | X135: 4611080.81 | Y135: 2339499.63 | Z135: 4124943.37 | AA135: 2483323.82 | AF135: 1481315.07 | AG135: 3972189.32 | AI135: 1697994.11 | AM135: 3724985.73 | AN135: 1884842.78 | AO135: 4689404.85 | AP135: 2857114.64 | AQ135: 4270462.48 | AT135: 740716.8 | AU135: 4628012.57 | AW135: 2052499.87
A136: Vehículosconmotordecombustióninterna1Empresarial2Busetade20a30pasajerosMesZonaDificilAcceso | B136: CI-Z1-EM-N2-V4-MDA | C136: Vehículos con motor de combustión interna | D136: 1 | E136: Empresarial | F136: 2 | G136: Buseta de 20 a 30 pasajeros | H136: Mes Zona Dificil Acceso | I136: 48456620.16 | J136: 22267696.36 | M136: 44022558.57 | N136: 72076629.91 | O136: 68446612.7 | R136: 40636207.91 | S136: 79225668.23 | U136: 47756252.63 | V136: 67557695.65 | W136: 44734008.24 | X136: 66739327.57 | Y136: 46022943.63 | Z136: 82498867.37 | AA136: 32283209.62 | AF136: 32588931.61 | AG136: 67527218.5 | AI136: 27246882.18 | AM136: 44022558.57 | AN136: 34555450.91 | AO136: 68777937.76 | AP136: 54127222.11 | AQ136: 63865369.02 | AT136: 16295769.55 | AU136: 62083095.42 | AW136: 31608496.18
A137: Vehículosconmotordecombustióninterna1Empresarial2Campero/camioneta4x2HoraZonaUrbana | B137: CI-Z1-EM-N2-V6-HU | C137: Vehículos con motor de combustión interna | D137: 1 | E137: Empresarial | F137: 2 | G137: Campero/camioneta 4x2 | H137: Hora Zona Urbana | I137: 315568.37 | J137: 92174.21 | M137: 186249.29 | N137: 104499.86 | O137: 101139.01 | R137: 107234.44 | S137: 111685.23 | U137: 63371.45 | V137: 104542.97 | W137: 54469.67 | X137: 90302.68 | Y137: 93869.64 | Z137: 81131.32 | AA137: 158029.7 | AF137: 70774.73 | AG137: 126988.15 | AI137: 54909.68 | AM137: 96998.63 | AN137: 76644.56 | AO137: 103673.8 | AP137: 83015.92 | AQ137: 102430.33 | AT137: 85336.04 | AU137: 124166.19 | AW137: 55351.03
A138: Vehículosconmotordecombustióninterna1Empresarial2Campero/camioneta4x2DíaZonaUrbana | B138: CI-Z1-EM-N2-V6-DU | C138: Vehículos con motor de combustión interna | D138: 1 | E138: Empresarial | F138: 2 | G138: Campero/camioneta 4x2 | H138: Día Zona Urbana | I138: 1262273.5 | J138: 801092.04 | M138: 801436.32 | N138: 783748.92 | O138: 758542.55 | R138: 659170.72 | S138: 819036.32 | U138: 691324.87 | V138: 780030.64 | W138: 480561.62 | X138: 733709.31 | Y138: 685397.37 | Z138: 567919.23 | AA138: 828978.64 | AF138: 488989.04 | AG138: 1015905.2 | AI138: 408901.84 | AM138: 688557.97 | AN138: 532221.45 | AO138: 777553.52 | AP138: 830889.76 | AQ138: 768228.64 | AT138: 682688.29 | AU138: 903026.84 | AW138: 611631.37
A139: Vehículosconmotordecombustióninterna1Empresarial2Campero/camioneta4x2MesZonaUrbana | B139: CI-Z1-EM-N2-V6-MU | C139: Vehículos con motor de combustión interna | D139: 1 | E139: Empresarial | F139: 2 | G139: Campero/camioneta 4x2 | H139: Mes Zona Urbana | I139: 19741585.66 | J139: 16368171.99 | M139: 12981010.86 | N139: 17242476.16 | O139: 16687936.05 | R139: 10642092.44 | S139: 18018798.95 | U139: 14517822.24 | V139: 17249589.4 | W139: 14416848.65 | X139: 16141604.81 | Y139: 14899942.9 | Z139: 14765899.85 | AA139: 15750594.19 | AF139: 12224725.88 | AG139: 17270388.36 | AI139: 8879011.43 | AM139: 15238577.97 | AN139: 10904049.12 | AO139: 17106177.45 | AP139: 16737384.65 | AQ139: 16885396.41 | AT139: 15019142.44 | AU139: 15802969.74 | AW139: 13455886.71
A140: Vehículosconmotordecombustióninterna1Empresarial2Campero/camioneta4x2HoraZonaRural | B140: CI-Z1-EM-N2-V6-HR | C140: Vehículos con motor de combustión interna | D140: 1 | E140: Empresarial | F140: 2 | G140: Campero/camioneta 4x2 | H140: Hora Zona Rural | I140: 410238.32 | J140: 111631.05 | M140: 316059.39 | N140: 156765.95 | O140: 151708.51 | R140: 107234.44 | S140: 165168.12 | U140: 70412.72 | V140: 156491.12 | W140: 60070.2 | X140: 121908.62 | Y140: 112643.57 | Z140: 117640.41 | AA140: 169317.53 | AF140: 81390.94 | AG140: 152385.78 | AI140: 71382.58 | AM140: 124166.19 | AN140: 91973.47 | AO140: 145143.32 | AP140: 95820.95 | AQ140: 153645.5 | AT140: 85336.04 | AU140: 146741.86 | AW140: 63654.36
A141: Vehículosconmotordecombustióninterna1Empresarial2Campero/camioneta4x2DíaZonaRural | B141: CI-Z1-EM-N2-V6-DR | C141: Vehículos con motor de combustión interna | D141: 1 | E141: Empresarial | F141: 2 | G141: Campero/camioneta 4x2 | H141: Día Zona Rural | I141: 1640955.54 | J141: 1118814.14 | M141: 1354540.26 | N141: 1175744.62 | O141: 1137813.82 | R141: 751564.02 | S141: 1247608.34 | U141: 768138.74 | V141: 1171258.44 | W141: 600702.03 | X141: 914314.68 | Y141: 822476.85 | Z141: 823482.88 | AA141: 994774.37 | AF141: 562337.39 | AG141: 1219086.24 | AI141: 531572.39 | AM141: 880451.17 | AN141: 585443.59 | AO141: 1059546.26 | AP141: 961546.24 | AQ141: 1152343.52 | AT141: 682688.29 | AU141: 1354540.26 | AW141: 663115.19
A142: Vehículosconmotordecombustióninterna1Empresarial2Campero/camioneta4x2MesZonaRural | B142: CI-Z1-EM-N2-V6-MR | C142: Vehículos con motor de combustión interna | D142: 1 | E142: Empresarial | F142: 2 | G142: Campero/camioneta 4x2 | H142: Mes Zona Rural | I142: 25664061.24 | J142: 21280866.02 | M142: 16367361.52 | N142: 25866381.71 | O142: 25031904.07 | R142: 12923746.74 | S142: 27414315.77 | U142: 18435329.82 | V142: 25545839.22 | W142: 18021060.81 | X142: 20114922.92 | Y142: 17879931.48 | Z142: 21410554.79 | AA142: 18900713.02 | AF142: 14058434.76 | AG142: 20724466.03 | AI142: 11542714.86 | AM142: 20882495.73 | AN142: 11994454.03 | AO142: 25429110.33 | AP142: 20055026.34 | AQ142: 25351562.03 | AT142: 15019142.44 | AU142: 22575671.06 | AW142: 14588536.35
A143: Vehículosconmotordecombustióninterna1Empresarial2Campero/camioneta4x2HoraZonaDificilAcceso | B143: CI-Z1-EM-N2-V6-HDA | C143: Vehículos con motor de combustión interna | D143: 1 | E143: Empresarial | F143: 2 | G143: Campero/camioneta 4x2 | H143: Hora Zona Dificil Acceso | I143: 473352 | J143: 128374.3 | M143: 316059.39 | N143: 172478.11 | O143: 166879.36 | R143: 220112.79 | S143: 184279.56 | U143: 91536.53 | V143: 172140.23 | W143: 75087.75 | X143: 127552.54 | Y143: 122030.53 | Z143: 135286.47 | AA143: 191893.2 | AF143: 89530.03 | AG143: 190482.22 | AI143: 92797.35 | AM143: 124166.19 | AN143: 101170.82 | AO143: 154992.34 | AP143: 95468.31 | AQ143: 169010.5 | AT143: 85336.04 | AU143: 451513.42 | AW143: 63654.36
A144: Vehículosconmotordecombustióninterna1Empresarial2Campero/camioneta4x2DíaZonaDificilAcceso | B144: CI-Z1-EM-N2-V6-DDA | C144: Vehículos con motor de combustión interna | D144: 1 | E144: Empresarial | F144: 2 | G144: Campero/camioneta 4x2 | H144: Día Zona Dificil Acceso | I144: 1893410.24 | J144: 1286636.03 | M144: 1354540.26 | N144: 1293585.83 | O144: 1251595.2 | R144: 1580296.97 | S144: 1372368.27 | U144: 831126.12 | V144: 1277714.43 | W144: 750877.53 | X144: 959466.02 | Y144: 891016.59 | Z144: 947005.31 | AA144: 1077672.23 | AF144: 618571.13 | AG144: 1523857.8 | AI144: 691044.11 | AM144: 880451.17 | AN144: 643987.95 | AO144: 1271455.52 | AP144: 955523.22 | AQ144: 1261990.17 | AT144: 682688.29 | AU144: 2257567.11 | AW144: 663115.19
A145: Vehículosconmotordecombustióninterna1Empresarial2Campero/camioneta4x2MesZonaDificilAcceso | B145: CI-Z1-EM-N2-V6-MDA | C145: Vehículos con motor de combustión interna | D145: 1 | E145: Empresarial | F145: 2 | G145: Campero/camioneta 4x2 | H145: Mes Zona Dificil Acceso | I145: 29612379.05 | J145: 24472998.18 | M145: 17496145.07 | N145: 28458888.3 | O145: 27535094.48 | R145: 17496145.07 | S145: 29731018.72 | U145: 19947026.87 | V145: 26674622.78 | W145: 22526326.01 | X145: 19189320.4 | Y145: 19369925.77 | Z145: 24622138.01 | AA145: 21014608.56 | AF145: 15464278.24 | AG145: 25905582.54 | AI145: 15005529.31 | AM145: 20882495.73 | AN145: 13193899.44 | AO145: 27172820.75 | AP145: 19247992.34 | AQ145: 27551468.61 | AT145: 15019142.44 | AU145: 28219588.83 | AW145: 14588536.35
A146: Vehículosconmotordecombustióninterna1Empresarial2Campero/camioneta4x4HoraZonaUrbana | B146: CI-Z1-EM-N2-V7-HU | C146: Vehículos con motor de combustión interna | D146: 1 | E146: Empresarial | F146: 2 | G146: Campero/camioneta 4x4 | H146: Hora Zona Urbana | I146: 315568.37 | J146: 106884.51 | M146: 197537.12 | N146: 116298.23 | O146: 112201.09 | R146: 112878.36 | S146: 124987.95 | U146: 65029.89 | V146: 116346.2 | W146: 55055.61 | X146: 107234.44 | Y146: 93869.64 | Z146: 89244.45 | AA146: 169317.53 | AF146: 79782.42 | AG146: 135454.03 | AI146: 54909.68 | AM146: 107950.09 | AN146: 82948.66 | AO146: 112201.09 | AP146: 90076.69 | AQ146: 111760.86 | AT146: 85336.04 | AU146: 135454.03 | AW146: 65601.51
A147: Vehículosconmotordecombustióninterna1Empresarial2Campero/camioneta4x4DíaZonaUrbana | B147: CI-Z1-EM-N2-V7-DU | C147: Vehículos con motor de combustión interna | D147: 1 | E147: Empresarial | F147: 2 | G147: Campero/camioneta 4x4 | H147: Día Zona Urbana | I147: 1262273.5 | J147: 880874.47 | M147: 846587.66 | N147: 872236.7 | O147: 841508.14 | R147: 705804.06 | S147: 925533.66 | U147: 709416.95 | V147: 868098.61 | W147: 485731.11 | X147: 804258.28 | Y147: 685397.37 | Z147: 624711.15 | AA147: 853360.37 | AF147: 630538.49 | AG147: 1083632.21 | AI147: 408901.84 | AM147: 711133.64 | AN147: 578953.08 | AO147: 841508.14 | AP147: 844413.75 | AQ147: 854964.37 | AT147: 682688.29 | AU147: 1015905.2 | AW147: 629753.99
A148: Vehículosconmotordecombustióninterna1Empresarial2Campero/camioneta4x4MesZonaUrbana | B148: CI-Z1-EM-N2-V7-MU | C148: Vehículos con motor de combustión interna | D148: 1 | E148: Empresarial | F148: 2 | G148: Campero/camioneta 4x4 | H148: Mes Zona Urbana | I148: 19741585.66 | J148: 17669554.45 | M148: 13545402.64 | N148: 19189207.34 | O148: 18513179.05 | R148: 11937232.83 | S148: 20361726.92 | U148: 15961881.39 | V148: 19197123.68 | W148: 14571933.22 | X148: 17693682.19 | Y148: 14899942.9 | Z148: 16242489.84 | AA148: 16213846.96 | AF148: 14154945.76 | AG148: 18421747.59 | AI148: 8879011.43 | AM148: 15802969.74 | AN148: 10904049.12 | AO148: 18513179.05 | AP148: 17036994.72 | AQ148: 18809222.86 | AT148: 15019142.44 | AU148: 15802969.74 | AW148: 13854578.71
A149: Vehículosconmotordecombustióninterna1Empresarial2Campero/camioneta4x4HoraZonaRural | B149: CI-Z1-EM-N2-V7-HR | C149: Vehículos con motor de combustión interna | D149: 1 | E149: Empresarial | F149: 2 | G149: Campero/camioneta 4x4 | H149: Hora Zona Rural | I149: 410238.32 | J149: 127623.65 | M149: 338635.07 | N149: 174465.33 | O149: 168301.63 | R149: 112878.36 | S149: 187481.92 | U149: 72255.43 | V149: 174159.47 | W149: 60716.39 | X149: 146741.86 | Y149: 112643.57 | Z149: 129404.45 | AA149: 180605.37 | AF149: 91749.78 | AG149: 162544.83 | AI149: 71382.58 | AM149: 135454.03 | AN149: 99538.39 | AO149: 168301.63 | AP149: 98369.62 | AQ149: 170992.65 | AT149: 85336.04 | AU149: 169317.53 | AW149: 65539.43
A150: Vehículosconmotordecombustióninterna1Empresarial2Campero/camioneta4x4DíaZonaRural | B150: CI-Z1-EM-N2-V7-DR | C150: Vehículos con motor de combustión interna | D150: 1 | E150: Empresarial | F150: 2 | G150: Campero/camioneta 4x4 | H150: Día Zona Rural | I150: 1640955.54 | J150: 1226722.46 | M150: 1410979.44 | N150: 1308489.98 | O150: 1262262.21 | R150: 805948.21 | S150: 1386024.29 | U150: 788241.06 | V150: 1303497.29 | W150: 607163.88 | X150: 1128783.55 | Y150: 822476.85 | Z150: 905831.16 | AA150: 1024032.44 | AF150: 725119.27 | AG150: 1300358.65 | AI150: 531572.39 | AM150: 959466.02 | AN150: 636848.39 | AO150: 1228601.88 | AP150: 919015.2 | AQ150: 1282447.12 | AT150: 682688.29 | AU150: 1354540.26 | AW150: 724216.24
A151: Vehículosconmotordecombustióninterna1Empresarial2Campero/camioneta4x4MesZonaRural | B151: CI-Z1-EM-N2-V7-MR | C151: Vehículos con motor de combustión interna | D151: 1 | E151: Empresarial | F151: 2 | G151: Campero/camioneta 4x4 | H151: Mes Zona Rural | I151: 25664061.24 | J151: 23126325.54 | M151: 16931753.3 | N151: 28786779.64 | O151: 27769768.58 | R151: 14435656.81 | S151: 30542590.39 | U151: 20100146.93 | V151: 28657193.38 | W151: 18214916.53 | X151: 22011279.28 | Y151: 17879931.48 | Z151: 23551610.27 | AA151: 19456616.35 | AF151: 16278187.62 | AG151: 22106097.1 | AI151: 11542714.86 | AM151: 22575671.06 | AN151: 11994454.03 | AO151: 28056001.56 | AP151: 20132424.75 | AQ151: 28204894.32 | AT151: 15019142.44 | AU151: 22575671.06 | AW151: 15932766.31
A152: Vehículosconmotordecombustióninterna1Empresarial2Campero/camioneta4x4HoraZonaDificilAcceso | B152: CI-Z1-EM-N2-V7-HDA | C152: Vehículos con motor de combustión interna | D152: 1 | E152: Empresarial | F152: 2 | G152: Campero/camioneta 4x4 | H152: Hora Zona Dificil Acceso | I152: 473352 | J152: 146767.82 | M152: 338635.07 | N152: 191951.45 | O152: 185131.79 | R152: 225756.71 | S152: 206229.88 | U152: 93932.06 | V152: 183991.72 | W152: 75895.49 | X152: 154643.35 | Y152: 122030.53 | Z152: 148815.12 | AA152: 203181.04 | AF152: 100924.76 | AG152: 203181.04 | AI152: 92797.35 | AM152: 135454.03 | AN152: 109492.23 | AO152: 185131.79 | AP152: 103588.2 | AQ152: 188092.59 | AT152: 85336.04 | AU152: 451513.42 | AW152: 65539.43
A153: Vehículosconmotordecombustióninterna1Empresarial2Campero/camioneta4x4DíaZonaDificilAcceso | B153: CI-Z1-EM-N2-V7-DDA | C153: Vehículos con motor de combustión interna | D153: 1 | E153: Empresarial | F153: 2 | G153: Campero/camioneta 4x4 | H153: Día Zona Dificil Acceso | I153: 1893410.24 | J153: 1410731.11 | M153: 1410979.44 | N153: 1439635.84 | O153: 1388488.43 | R153: 1636736.15 | S153: 1557769.84 | U153: 852876.82 | V153: 1421972.51 | W153: 758954.86 | X153: 1185222.73 | Y153: 891016.59 | Z153: 1041705.84 | AA153: 1109368.48 | AF153: 797631.19 | AG153: 1625448.32 | AI153: 691044.11 | AM153: 959466.02 | AN153: 700533.23 | AO153: 1351462.07 | AP153: 971075.81 | AQ153: 1399516.64 | AT153: 682688.29 | AU153: 2257567.11 | AW153: 724216.24
A154: Vehículosconmotordecombustióninterna1Empresarial2Campero/camioneta4x4MesZonaDificilAcceso | B154: CI-Z1-EM-N2-V7-MDA | C154: Vehículos con motor de combustión interna | D154: 1 | E154: Empresarial | F154: 2 | G154: Campero/camioneta 4x4 | H154: Mes Zona Dificil Acceso | I154: 29612379.05 | J154: 26595274.94 | M154: 18060536.85 | N154: 31671988.59 | O154: 30546745.44 | R154: 18060536.85 | S154: 33596848.41 | U154: 21748358.98 | V154: 29686273.74 | W154: 22768645.66 | X154: 24833238.17 | Y154: 19369925.77 | Z154: 27084351.81 | AA154: 21632685.28 | AF154: 17906006.38 | AG154: 27632621.38 | AI154: 15005529.31 | AM154: 22575671.06 | AN154: 13193899.44 | AO154: 29953313.9 | AP154: 19592543.93 | AQ154: 30565869.29 | AT154: 15019142.44 | AU154: 28219588.83 | AW154: 15932766.31
A155: Vehículosconmotordecombustióninterna1Empresarial2Microbusde10a19pasajerosHoraZonaUrbana | B155: CI-Z1-EM-N2-V8-HU | C155: Vehículos con motor de combustión interna | D155: 1 | E155: Empresarial | F155: 2 | G155: Microbus de 10 a 19 pasajeros | H155: Hora Zona Urbana | I155: 459008.54 | J155: 262091.05 | M155: 293483.72 | N155: 536289.58 | O155: 505695.03 | R155: 180605.37 | S155: 610934.91 | U155: 177197.76 | V155: 536510.82 | W155: 137291.23 | X155: 507952.6 | Y155: 372498.57 | Z155: 333555.54 | AA155: 349922.9 | AF155: 102945.06 | AG155: 287839.81 | AI155: 207696.17 | AM155: 497793.55 | AN155: 387288.46 | AO155: 525448.74 | AP155: 253435.25 | AQ155: 530582.45 | AT155: 89011.36 | AU155: 507952.6 | AW155: 372735.62
A156: Vehículosconmotordecombustióninterna1Empresarial2Microbusde10a19pasajerosDíaZonaUrbana | B156: CI-Z1-EM-N2-V8-DU | C156: Vehículos con motor de combustión interna | D156: 1 | E156: Empresarial | F156: 2 | G156: Microbus de 10 a 19 pasajeros | H156: Día Zona Urbana | I156: 1836034.18 | J156: 1400362.05 | M156: 1828629.36 | N156: 2145158.32 | O156: 2022780.13 | R156: 1271348.92 | S156: 2309519.37 | U156: 1701098.49 | V156: 2134981.21 | W156: 605629.65 | X156: 2133400.92 | Y156: 1475094.35 | Z156: 2001333.24 | AA156: 1760902.34 | AF156: 900769.28 | AG156: 2302718.45 | AI156: 876218.23 | AM156: 2031810.4 | AN156: 1298101.09 | AO156: 2101794.98 | AP156: 1949286.14 | AQ156: 2077629.98 | AT156: 712090.85 | AU156: 2167264.42 | AW156: 1235618.4
A157: Vehículosconmotordecombustióninterna1Empresarial2Microbusde10a19pasajerosMesZonaUrbana | B157: CI-Z1-EM-N2-V8-MU | C157: Vehículos con motor de combustión interna | D157: 1 | E157: Empresarial | F157: 2 | G157: Microbus de 10 a 19 pasajeros | H157: Mes Zona Urbana | I157: 28715034.5 | J157: 18937312.7 | M157: 27090805.27 | N157: 32177374.87 | O157: 30341701.91 | R157: 22108730.93 | S157: 34504021.27 | U157: 25516477.31 | V157: 32190649.37 | W157: 18168889.5 | X157: 32001013.73 | Y157: 29059358.64 | Z157: 40026664.79 | AA157: 22891730.46 | AF157: 19816924.06 | AG157: 39146213.62 | AI157: 14019491.73 | AM157: 24833238.17 | AN157: 23365819.55 | AO157: 31526924.64 | AP157: 34597226.79 | AQ157: 31723195.26 | AT157: 15665998.63 | AU157: 32734723.04 | AW157: 19028526.31
A158: Vehículosconmotordecombustióninterna1Empresarial2Microbusde10a19pasajerosHoraZonaRural | B158: CI-Z1-EM-N2-V8-HR | C158: Vehículos con motor de combustión interna | D158: 1 | E158: Empresarial | F158: 2 | G158: Microbus de 10 a 19 pasajeros | H158: Hora Zona Rural | I158: 596711.11 | J158: 279078.43 | M158: 609543.12 | N158: 804517.34 | O158: 758542.55 | R158: 180605.37 | S158: 916402.93 | U158: 193984.92 | V158: 803106.92 | W158: 151407.41 | X158: 790148.49 | Y158: 446998.29 | Z158: 483655.53 | AA158: 383786.41 | AF158: 118386.82 | AG158: 345407.77 | AI158: 238850.6 | AM158: 699845.8 | AN158: 464746.15 | AO158: 772409.65 | AP158: 288253.47 | AQ158: 787492.46 | AT158: 89011.36 | AU158: 620830.95 | AW158: 439828.25
A159: Vehículosconmotordecombustióninterna1Empresarial2Microbusde10a19pasajerosDíaZonaRural | B159: CI-Z1-EM-N2-V8-DR | C159: Vehículos con motor de combustión interna | D159: 1 | E159: Empresarial | F159: 2 | G159: Microbus de 10 a 19 pasajeros | H159: Día Zona Rural | I159: 2386844.43 | J159: 1548477.27 | M159: 1873780.7 | N159: 4022586.69 | O159: 3792712.74 | R159: 1405192.54 | S159: 4582012.38 | U159: 1790629.99 | V159: 4007238.05 | W159: 757037.06 | X159: 3386350.66 | Y159: 1770113.22 | Z159: 2901933.2 | AA159: 2025037.69 | AF159: 1035884.67 | AG159: 2763262.14 | AI159: 1139083.7 | AM159: 3499229.01 | AN159: 1427911.19 | AO159: 3862048.27 | AP159: 2141329.93 | AQ159: 3881587.51 | AT159: 712090.85 | AU159: 3499229.01 | AW159: 1420961.27
A160: Vehículosconmotordecombustióninterna1Empresarial2Microbusde10a19pasajerosMesZonaRural | B160: CI-Z1-EM-N2-V8-MR | C160: Vehículos con motor de combustión interna | D160: 1 | E160: Empresarial | F160: 2 | G160: Microbus de 10 a 19 pasajeros | H160: Mes Zona Rural | I160: 37329544.85 | J160: 20471235.03 | M160: 31605939.49 | N160: 60338800.3 | O160: 56890691.07 | R160: 25541361.72 | S160: 63832440.15 | U160: 32231339.76 | V160: 62224193.36 | W160: 22711111.87 | X160: 50795259.89 | Y160: 34871230.37 | Z160: 58038663.95 | AA160: 26325490.02 | AF160: 22789462.67 | AG160: 46975456.34 | AI160: 18225339.25 | AM160: 39507424.36 | AN160: 25702401.5 | AO160: 57930724.02 | AP160: 39225248.35 | AQ160: 59341302.74 | AT160: 15665998.63 | AU160: 55310394.1 | AW160: 21882804.53
A161: Vehículosconmotordecombustióninterna1Empresarial2Microbusde10a19pasajerosHoraZonaDificilAcceso | B161: CI-Z1-EM-N2-V8-HDA | C161: Vehículos con motor de combustión interna | D161: 1 | E161: Empresarial | F161: 2 | G161: Microbus de 10 a 19 pasajeros | H161: Hora Zona Dificil Acceso | I161: 688512.82 | J161: 284660 | M161: 609543.12 | N161: 885151.6 | O161: 834396.8 | R161: 332991.15 | S161: 971385.97 | U161: 252180.39 | V161: 883417.61 | W161: 189259.27 | X161: 848845.23 | Y161: 484248.14 | Z161: 556203.86 | AA161: 417649.91 | AF161: 130225.5 | AG161: 431759.71 | AI161: 286620.72 | AM161: 699845.8 | AN161: 511220.77 | AO161: 849650.62 | AP161: 291450.54 | AQ161: 847244.62 | AT161: 89011.36 | AU161: 846587.66 | AW161: 439828.25
A162: Vehículosconmotordecombustióninterna1Empresarial2Microbusde10a19pasajerosDíaZonaDificilAcceso | B162: CI-Z1-EM-N2-V8-DDA | C162: Vehículos con motor de combustión interna | D162: 1 | E162: Empresarial | F162: 2 | G162: Microbus de 10 a 19 pasajeros | H162: Día Zona Dificil Acceso | I162: 2754051.26 | J162: 1579446.81 | M162: 1873780.7 | N162: 4425757.98 | O162: 4171984.01 | R162: 1918932.04 | S162: 5040212.72 | U162: 1937461.65 | V162: 4371457 | W162: 1261728.44 | X162: 3640326.96 | Y162: 1917622.65 | Z162: 3337223.18 | AA162: 2201127.93 | AF162: 1139473.13 | AG162: 3454077.67 | AI162: 1480808.81 | AM162: 3499229.01 | AN162: 1570702.31 | AO162: 4248253.09 | AP162: 2241679.06 | AQ162: 4292095.61 | AT162: 712090.85 | AU162: 4289377.5 | AW162: 1420961.27
A163: Vehículosconmotordecombustióninterna1Empresarial2Microbusde10a19pasajerosMesZonaDificilAcceso | B163: CI-Z1-EM-N2-V8-MDA | C163: Vehículos con motor de combustión interna | D163: 1 | E163: Empresarial | F163: 2 | G163: Microbus de 10 a 19 pasajeros | H163: Mes Zona Dificil Acceso | I163: 43072551.76 | J163: 20880659.73 | M163: 27090805.27 | N163: 66386369.66 | O163: 62579760.18 | R163: 23704454.61 | S163: 69226730.82 | U163: 34874309.62 | V163: 62224193.36 | W163: 37851853.12 | X163: 54604904.38 | Y163: 37777166.23 | Z163: 66744463.54 | AA163: 28614663.07 | AF163: 25068408.93 | AG163: 58719320.43 | AI163: 23692941.02 | AM163: 39507424.36 | AN163: 28272641.65 | AO163: 63723796.42 | AP163: 39786810.81 | AQ163: 62338016.51 | AT163: 15665998.63 | AU163: 50795259.89 | AW163: 21882804.53
A164: Vehículosconmotordecombustióninterna1Empresarial2Pickupcabinasencilla4x2HoraZonaUrbana | B164: CI-Z1-EM-N2-V9-HU | C164: Vehículos con motor de combustión interna | D164: 1 | E164: Empresarial | F164: 2 | G164: Pick up cabina sencilla 4x2 | H164: Hora Zona Urbana | I164: 372944.44 | J164: 93827.88 | M164: 203181.04 | N164: 110782.1 | O164: 105879.9 | R164: 124166.19 | S164: 117533.46 | U164: 68452.51 | V164: 110827.81 | W164: 57378.93 | X164: 84658.77 | Y164: 116219.55 | Z164: 81131.32 | AA164: 146741.86 | AF164: 96510.99 | AG164: 143919.9 | AI164: 70097.46 | AM164: 102829.92 | AN164: 116829.1 | AO164: 108542.7 | AP164: 86856.94 | AQ164: 108587.85 | AT164: 85336.04 | AU164: 146741.86 | AW164: 65601.51
A165: Vehículosconmotordecombustióninterna1Empresarial2Pickupcabinasencilla4x2DíaZonaUrbana | B165: CI-Z1-EM-N2-V9-DU | C165: Vehículos con motor de combustión interna | D165: 1 | E165: Empresarial | F165: 2 | G165: Pick up cabina sencilla 4x2 | H165: Día Zona Urbana | I165: 1491777.77 | J165: 838305.78 | M165: 1015905.2 | N165: 830865.79 | O165: 794099.23 | R165: 705390.12 | S165: 881622.85 | U165: 746754.68 | V165: 826923.97 | W165: 506228.72 | X165: 634940.75 | Y165: 1013196.12 | Z165: 567919.23 | AA165: 772087.95 | AF165: 900769.28 | AG165: 1151359.22 | AI165: 443950.57 | AM165: 688557.97 | AN165: 934632.78 | AO165: 814070.23 | AP165: 883940.66 | AQ165: 814412.82 | AT165: 682688.29 | AU165: 959466.02 | AW165: 724895.77
A166: Vehículosconmotordecombustióninterna1Empresarial2Pickupcabinasencilla4x2MesZonaUrbana | B166: CI-Z1-EM-N2-V9-MU | C166: Vehículos con motor de combustión interna | D166: 1 | E166: Empresarial | F166: 2 | G166: Pick up cabina sencilla 4x2 | H166: Mes Zona Urbana | I166: 23330964.97 | J166: 17168366.65 | M166: 15238577.97 | N166: 18279047.31 | O166: 17470183.05 | R166: 11257560.49 | S166: 19395717.35 | U166: 14561716.35 | V166: 18286588.17 | W166: 15186861.45 | X166: 14674186.19 | Y166: 18878227.65 | Z166: 14765899.85 | AA166: 14669671.06 | AF166: 15441759.01 | AG166: 19573106.81 | AI166: 10164131.5 | AM166: 15238577.97 | AN166: 18173415.2 | AO166: 17909545.12 | AP166: 18078744.15 | AQ166: 17909264.05 | AT166: 15019142.44 | AU166: 20318103.96 | AW166: 15947717.04
A167: Vehículosconmotordecombustióninterna1Empresarial2Pickupcabinasencilla4x2HoraZonaRural | B167: CI-Z1-EM-N2-V9-HR | C167: Vehículos con motor de combustión interna | D167: 1 | E167: Empresarial | F167: 2 | G167: Pick up cabina sencilla 4x2 | H167: Hora Zona Rural | I167: 484827.21 | J167: 113632.38 | M167: 361210.74 | N167: 166190.3 | O167: 158819.85 | R167: 124166.19 | S167: 173817.99 | U167: 76058.35 | V167: 165898.94 | W167: 63278.59 | X167: 114007.14 | Y167: 139463.47 | Z167: 117640.41 | AA167: 158029.7 | AF167: 110987.64 | AG167: 172703.88 | AI167: 91126.7 | AM167: 124166.19 | AN167: 140194.92 | AO167: 162814.05 | AP167: 100176.3 | AQ167: 162882.34 | AT167: 85336.04 | AU167: 191893.2 | AW167: 75442.25
A168: Vehículosconmotordecombustióninterna1Empresarial2Pickupcabinasencilla4x2DíaZonaRural | B168: CI-Z1-EM-N2-V9-DR | C168: Vehículos con motor de combustión interna | D168: 1 | E168: Empresarial | F168: 2 | G168: Pick up cabina sencilla 4x2 | H168: Día Zona Rural | I168: 1939311.1 | J168: 1173579.33 | M168: 1467418.62 | N168: 1246427.22 | O168: 1191148.84 | R168: 804313 | S168: 1322251.41 | U168: 829727.43 | V168: 1241671.33 | W168: 632785.89 | X168: 857875.5 | Y168: 1215835.34 | Z168: 823482.88 | AA168: 926505.54 | AF168: 1035884.67 | AG168: 1381631.07 | AI168: 577135.74 | AM168: 880451.17 | AN168: 1028096.06 | AO168: 1188542.54 | AP168: 1021825.51 | AQ168: 1216031.75 | AT168: 682688.29 | AU168: 1693175.33 | AW168: 833630.36
A169: Vehículosconmotordecombustióninterna1Empresarial2Pickupcabinasencilla4x2MesZonaRural | B169: CI-Z1-EM-N2-V9-MR | C169: Vehículos con motor de combustión interna | D169: 1 | E169: Empresarial | F169: 2 | G169: Pick up cabina sencilla 4x2 | H169: Mes Zona Rural | I169: 30330254.91 | J169: 22590043.86 | M169: 19189320.4 | N169: 27421398.79 | O169: 26205274.58 | R169: 13691624.6 | S169: 29509198.07 | U169: 18668867.12 | V169: 27429440.34 | W169: 18983576.82 | X169: 18873261.01 | Y169: 22653873.19 | Z169: 21410554.79 | AA169: 17603605.27 | AF169: 17758022.86 | AG169: 23487728.17 | AI169: 13213370.95 | AM169: 20882495.73 | AN169: 19990756.72 | AO169: 27336478.41 | AP169: 21615598.36 | AQ169: 26872276.16 | AT169: 15019142.44 | AU169: 24833238.17 | AW169: 18339874.66
A170: Vehículosconmotordecombustióninterna1Empresarial2Pickupcabinasencilla4x2HoraZonaDificilAcceso | B170: CI-Z1-EM-N2-V9-HDA | C170: Vehículos con motor de combustión interna | D170: 1 | E170: Empresarial | F170: 2 | G170: Pick up cabina sencilla 4x2 | H170: Hora Zona Dificil Acceso | I170: 559416.1 | J170: 130677.01 | M170: 361210.74 | N170: 182847.03 | O170: 174701.83 | R170: 237044.55 | S170: 193929.53 | U170: 98875.85 | V170: 182488.84 | W170: 79098.24 | X170: 120779.84 | Y170: 151085.42 | Z170: 135286.47 | AA170: 180605.37 | AF170: 122086.41 | AG170: 215879.85 | AI170: 118464.71 | AM170: 124166.19 | AN170: 154214.41 | AO170: 179095.45 | AP170: 99885.48 | AQ170: 180288.18 | AT170: 85336.04 | AU170: 451513.42 | AW170: 75442.25
A171: Vehículosconmotordecombustióninterna1Empresarial2Pickupcabinasencilla4x2DíaZonaDificilAcceso | B171: CI-Z1-EM-N2-V9-DDA | C171: Vehículos con motor de combustión interna | D171: 1 | E171: Empresarial | F171: 2 | G171: Pick up cabina sencilla 4x2 | H171: Día Zona Dificil Acceso | I171: 2237666.65 | J171: 1349616.51 | M171: 1467418.62 | N171: 1371352.72 | O171: 1310263.73 | R171: 1693175.33 | S171: 1454477.12 | U171: 897765.08 | V171: 1354527.18 | W171: 790982.37 | X171: 903026.84 | Y171: 1317154.95 | Z171: 947005.31 | AA171: 1003714.34 | AF171: 1139473.13 | AG171: 1727038.84 | AI171: 750276.47 | AM171: 880451.17 | AN171: 1130905.67 | AO171: 1307396.79 | AP171: 1016531.76 | AQ171: 1341546.84 | AT171: 682688.29 | AU171: 2821958.88 | AW171: 833630.36
A172: Vehículosconmotordecombustióninterna1Empresarial2Pickupcabinasencilla4x2MesZonaDificilAcceso | B172: CI-Z1-EM-N2-V9-MDA | C172: Vehículos con motor de combustión interna | D172: 1 | E172: Empresarial | F172: 2 | G172: Pick up cabina sencilla 4x2 | H172: Mes Zona Dificil Acceso | I172: 34996447.45 | J172: 25978550.5 | M172: 20318103.96 | N172: 30169759.88 | O172: 28825802.03 | R172: 18624928.63 | S172: 32002932.66 | U172: 20199714.22 | V172: 29235494.02 | W172: 23729471.02 | X172: 19816924.06 | Y172: 24541695.95 | Z172: 24622138.01 | AA172: 19572429.54 | AF172: 19533825.14 | AG172: 29359660.22 | AI172: 17177382.24 | AM172: 20882495.73 | AN172: 21989832.4 | AO172: 28703302.33 | AP172: 20790555.78 | AQ172: 29406742.91 | AT172: 15019142.44 | AU172: 31605939.49 | AW172: 18339874.66
A173: Vehículosconmotordecombustióninterna1Empresarial2Pickupcabinasencilla4x4HoraZonaUrbana | B173: CI-Z1-EM-N2-V10-HU | C173: Vehículos con motor de combustión interna | D173: 1 | E173: Empresarial | F173: 2 | G173: Pick up cabina sencilla 4x4 | H173: Hora Zona Urbana | I173: 384419.66 | J173: 96412.79 | M173: 208824.96 | N173: 116451.45 | O173: 113781.38 | R173: 129810.11 | S173: 123996.87 | U173: 73718.09 | V173: 116499.49 | W173: 57378.93 | X173: 90302.68 | Y173: 116219.55 | Z173: 89244.45 | AA173: 169317.53 | AF173: 101336.54 | AG173: 152385.78 | AI173: 70097.46 | AM173: 108092.31 | AN173: 116829.1 | AO173: 114097.44 | AP173: 108065.5 | AQ173: 114145.98 | AT173: 85336.04 | AU173: 214468.88 | AW173: 68956.26
A174: Vehículosconmotordecombustióninterna1Empresarial2Pickupcabinasencilla4x4DíaZonaUrbana | B174: CI-Z1-EM-N2-V10-DU | C174: Vehículos con motor de combustión interna | D174: 1 | E174: Empresarial | F174: 2 | G174: Pick up cabina sencilla 4x4 | H174: Día Zona Urbana | I174: 1537678.62 | J174: 846717.47 | M174: 846587.66 | N174: 873385.89 | O174: 853360.37 | R174: 712269.43 | S174: 925601.38 | U174: 804197.35 | V174: 869242.35 | W174: 506228.72 | X174: 634940.75 | Y174: 1013196.12 | Z174: 624711.15 | AA174: 853360.37 | AF174: 945807.74 | AG174: 1219086.24 | AI174: 443950.57 | AM174: 711133.64 | AN174: 934632.78 | AO174: 855730.81 | AP174: 881087.09 | AQ174: 856090.89 | AT174: 682688.29 | AU174: 1015905.2 | AW174: 761965.02
A175: Vehículosconmotordecombustióninterna1Empresarial2Pickupcabinasencilla4x4MesZonaUrbana | B175: CI-Z1-EM-N2-V10-MU | C175: Vehículos con motor de combustión interna | D175: 1 | E175: Empresarial | F175: 2 | G175: Pick up cabina sencilla 4x4 | H175: Mes Zona Urbana | I175: 24048840.83 | J175: 17273915.81 | M175: 16367361.52 | N175: 19214489.57 | O175: 18773928.05 | R175: 11415539.74 | S175: 20363210.15 | U175: 15681848.38 | V175: 19222416.34 | W175: 15186861.45 | X175: 14674186.19 | Y175: 18878227.65 | Z175: 16242489.84 | AA175: 16213846.96 | AF175: 16213846.96 | AG175: 20724466.03 | AI175: 10164131.5 | AM175: 15802969.74 | AN175: 19471516.29 | AO175: 18826077.85 | AP175: 18306543.75 | AQ175: 18834004.17 | AT175: 15019142.44 | AU175: 20318103.96 | AW175: 16763224.78
A176: Vehículosconmotordecombustióninterna1Empresarial2Pickupcabinasencilla4x4HoraZonaRural | B176: CI-Z1-EM-N2-V10-HR | C176: Vehículos con motor de combustión interna | D176: 1 | E176: Empresarial | F176: 2 | G176: Pick up cabina sencilla 4x4 | H176: Hora Zona Rural | I176: 499745.21 | J176: 116211.65 | M176: 270908.05 | N176: 174695.19 | O176: 170672.07 | R176: 129810.11 | S176: 185994.18 | U176: 81908.99 | V176: 174388.93 | W176: 63278.59 | X176: 121908.62 | Y176: 139463.47 | Z176: 129404.45 | AA176: 180605.37 | AF176: 116537.02 | AG176: 182862.94 | AI176: 91126.7 | AM176: 135454.03 | AN176: 140194.92 | AO176: 165441.29 | AP176: 121193.48 | AQ176: 171218.4 | AT176: 85336.04 | AU176: 191893.2 | AW176: 79299.3
A177: Vehículosconmotordecombustióninterna1Empresarial2Pickupcabinasencilla4x4DíaZonaRural | B177: CI-Z1-EM-N2-V10-DR | C177: Vehículos con motor de combustión interna | D177: 1 | E177: Empresarial | F177: 2 | G177: Pick up cabina sencilla 4x4 | H177: Día Zona Rural | I177: 1998981.98 | J177: 1187508.52 | M177: 1580296.97 | N177: 1310213.95 | O177: 1280040.55 | R177: 812280.35 | S177: 1394957.49 | U177: 893552.61 | V177: 1305214.68 | W177: 632785.89 | X177: 914314.68 | Y177: 1215835.34 | Z177: 905831.16 | AA177: 1024032.44 | AF177: 1087678.9 | AG177: 1462903.48 | AI177: 577135.74 | AM177: 959466.02 | AN177: 1028096.06 | AO177: 1245944.06 | AP177: 1018845.76 | AQ177: 1284136.9 | AT177: 682688.29 | AU177: 1693175.33 | AW177: 876260
A178: Vehículosconmotordecombustióninterna1Empresarial2Pickupcabinasencilla4x4MesZonaRural | B178: CI-Z1-EM-N2-V10-MR | C178: Vehículos con motor de combustión interna | D178: 1 | E178: Empresarial | F178: 2 | G178: Pick up cabina sencilla 4x4 | H178: Mes Zona Rural | I178: 31263493.65 | J178: 22696595.39 | M178: 20318103.96 | N178: 28824706.89 | O178: 28160892.08 | R178: 13933503.07 | S178: 30544815.22 | U178: 20104933.82 | V178: 28783980.6 | W178: 18983576.82 | X178: 18873261.01 | Y178: 22653873.19 | Z178: 23551610.27 | AA178: 19456616.35 | AF178: 18645924 | AG178: 24869359.24 | AI178: 13213370.95 | AM178: 22575671.06 | AN178: 21418667.92 | AO178: 28407524.61 | AP178: 21872351.41 | AQ178: 28563906.19 | AT178: 15019142.44 | AU178: 24833238.17 | AW178: 19277708.67
A179: Vehículosconmotordecombustióninterna1Empresarial2Pickupcabinasencilla4x4HoraZonaDificilAcceso | B179: CI-Z1-EM-N2-V10-HDA | C179: Vehículos con motor de combustión interna | D179: 1 | E179: Empresarial | F179: 2 | G179: Pick up cabina sencilla 4x4 | H179: Hora Zona Dificil Acceso | I179: 576628.92 | J179: 133642.33 | M179: 270908.05 | N179: 192204.35 | O179: 187739.28 | R179: 242688.46 | S179: 204594.28 | U179: 106481.69 | V179: 191827.82 | W179: 79098.24 | X179: 127552.54 | Y179: 151085.42 | Z179: 148815.12 | AA179: 203181.04 | AF179: 128190.73 | AG179: 228578.67 | AI179: 118464.71 | AM179: 135454.03 | AN179: 154214.41 | AO179: 191683.7 | AP179: 124275.33 | AQ179: 188339.79 | AT179: 85336.04 | AU179: 451513.42 | AW179: 79299.3
A180: Vehículosconmotordecombustióninterna1Empresarial2Pickupcabinasencilla4x4DíaZonaDificilAcceso | B180: CI-Z1-EM-N2-V10-DDA | C180: Vehículos con motor de combustión interna | D180: 1 | E180: Empresarial | F180: 2 | G180: Pick up cabina sencilla 4x4 | H180: Día Zona Dificil Acceso | I180: 2306517.93 | J180: 1365633.95 | M180: 1580296.97 | N180: 1441532.6 | O180: 1408044.6 | R180: 1749614.51 | S180: 1534453.69 | U180: 966823.93 | V180: 1423845.99 | W180: 790982.37 | X180: 959466.02 | Y180: 1317154.95 | Z180: 1041705.84 | AA180: 1109368.48 | AF180: 1196446.79 | AG180: 1828629.36 | AI180: 750276.47 | AM180: 959466.02 | AN180: 1130905.67 | AO180: 1370538.47 | AP180: 1013250.15 | AQ180: 1412550.71 | AT180: 682688.29 | AU180: 2821958.88 | AW180: 876260
A181: Vehículosconmotordecombustióninterna1Empresarial2Pickupcabinasencilla4x4MesZonaDificilAcceso | B181: CI-Z1-EM-N2-V10-MDA | C181: Vehículos con motor de combustión interna | D181: 1 | E181: Empresarial | F181: 2 | G181: Pick up cabina sencilla 4x4 | H181: Mes Zona Dificil Acceso | I181: 36073261.81 | J181: 26101085.6 | M181: 21446887.51 | N181: 31713717.16 | O181: 30976981.29 | R181: 18963563.69 | S181: 33599295.61 | U181: 21753538.39 | V181: 29725386.09 | W181: 23729471.02 | X181: 19816924.06 | Y181: 24541695.95 | Z181: 27084351.81 | AA181: 21632685.28 | AF181: 20510516.4 | AG181: 31086699.05 | AI181: 17177382.24 | AM181: 22575671.06 | AN181: 23560534.71 | AO181: 31248277.07 | AP181: 21052525.31 | AQ181: 30966593.1 | AT181: 15019142.44 | AU181: 31605939.49 | AW181: 19277708.67
A182: Vehículosconmotordecombustióninterna1Empresarial2Pickupdoblecabina4x2HoraZonaUrbana | B182: CI-Z1-EM-N2-V11-HU | C182: Vehículos con motor de combustión interna | D182: 1 | E182: Empresarial | F182: 2 | G182: Pick up doble cabina 4x2 | H182: Hora Zona Urbana | I182: 372944.44 | J182: 99033.83 | M182: 203181.04 | N182: 110782.1 | O182: 105879.9 | R182: 135454.03 | S182: 119737.97 | U182: 78983.67 | V182: 110827.81 | W182: 55875.04 | X182: 107234.44 | Y182: 116219.55 | Z182: 81131.32 | AA182: 146741.86 | AF182: 106403.37 | AG182: 160851.66 | AI182: 70097.46 | AM182: 102829.92 | AN182: 116829.1 | AO182: 108542.7 | AP182: 88245.57 | AQ182: 108587.85 | AT182: 85336.04 | AU182: 146741.86 | AW182: 68956.26
A183: Vehículosconmotordecombustióninterna1Empresarial2Pickupdoblecabina4x2DíaZonaUrbana | B183: CI-Z1-EM-N2-V11-DU | C183: Vehículos con motor de combustión interna | D183: 1 | E183: Empresarial | F183: 2 | G183: Pick up doble cabina 4x2 | H183: Día Zona Urbana | I183: 1491777.77 | J183: 908358.09 | M183: 1015905.2 | N183: 830865.79 | O183: 794099.23 | R183: 799664.49 | S183: 883786.73 | U183: 861640.02 | V183: 826923.97 | W183: 492960.51 | X183: 804258.28 | Y183: 1013196.12 | Z183: 567919.23 | AA183: 772087.95 | AF183: 993098.13 | AG183: 1286813.25 | AI183: 443950.57 | AM183: 733709.31 | AN183: 934632.78 | AO183: 814070.23 | AP183: 961824.1 | AQ183: 814412.82 | AT183: 682688.29 | AU183: 959466.02 | AW183: 761965.02
A184: Vehículosconmotordecombustióninterna1Empresarial2Pickupdoblecabina4x2MesZonaUrbana | B184: CI-Z1-EM-N2-V11-MU | C184: Vehículos con motor de combustión interna | D184: 1 | E184: Empresarial | F184: 2 | G184: Pick up doble cabina 4x2 | H184: Mes Zona Urbana | I184: 23330964.97 | J184: 18128842.93 | M184: 15238577.97 | N184: 18279047.31 | O184: 17470183.05 | R184: 12864739.04 | S184: 19443287.67 | U184: 15509520.38 | V184: 18286588.17 | W184: 14788815.37 | X184: 17693682.19 | Y184: 18878227.65 | Z184: 14765899.85 | AA184: 14669671.06 | AF184: 17024539.3 | AG184: 21875825.26 | AI184: 10164131.5 | AM184: 16367361.52 | AN184: 20769617.38 | AO184: 17909545.12 | AP184: 19099218.07 | AQ184: 17909264.05 | AT184: 15019142.44 | AU184: 20318103.96 | AW184: 16763224.78
A185: Vehículosconmotordecombustióninterna1Empresarial2Pickupdoblecabina4x2HoraZonaRural | B185: CI-Z1-EM-N2-V11-HR | C185: Vehículos con motor de combustión interna | D185: 1 | E185: Empresarial | F185: 2 | G185: Pick up doble cabina 4x2 | H185: Hora Zona Rural | I185: 484827.21 | J185: 119513.35 | M185: 338635.07 | N185: 166190.3 | O185: 158819.85 | R185: 135454.03 | S185: 176137.64 | U185: 87759.63 | V185: 165898.94 | W185: 61620.06 | X185: 146741.86 | Y185: 139463.47 | Z185: 117640.41 | AA185: 158029.7 | AF185: 122363.88 | AG185: 193021.99 | AI185: 91126.7 | AM185: 146741.86 | AN185: 140194.92 | AO185: 162814.05 | AP185: 105908.78 | AQ185: 162882.34 | AT185: 85336.04 | AU185: 191893.2 | AW185: 79299.3
A186: =SUBSTITUTE(C186&D186&E186&F186&G186&H186," ","") -> Vehículosconmotordecombustióninterna1Empresarial2Pickupdoblecabina4x2DíaZonaRural | B186: CI-Z1-EM-N2-V11-DR | C186: Vehículos con motor de combustión interna | D186: 1 | E186: Empresarial | F186: 2 | G186: Pick up doble cabina 4x2 | H186: Día Zona Rural | I186: 1939311.1 | J186: 1266997.46 | M186: 1467418.62 | N186: 1246427.22 | O186: 1191148.84 | R186: 914531.97 | S186: 1321030.07 | U186: 957377.8 | V186: 1241671.33 | W186: 616200.64 | X186: 1100563.96 | Y186: 1215835.34 | Z186: 823482.88 | AA186: 926505.54 | AF186: 1142062.84 | AG186: 1544175.9 | AI186: 577135.74 | AM186: 903026.84 | AN186: 1028096.06 | AO186: 1188542.54 | AP186: 1067769.04 | AQ186: 1216031.75 | AT186: 682688.29 | AU186: 1693175.33 | AW186: 876260
A187: Vehículosconmotordecombustióninterna1Empresarial2Pickupdoblecabina4x2MesZonaRural | B187: CI-Z1-EM-N2-V11-MR | C187: Vehículos con motor de combustión interna | D187: 1 | E187: Empresarial | F187: 2 | G187: Pick up doble cabina 4x2 | H187: Mes Zona Rural | I187: 30330254.91 | J187: 23812727.53 | M187: 19189320.4 | N187: 27421398.79 | O187: 26205274.58 | R187: 15282821.48 | S187: 29581572.29 | U187: 18668867.12 | V187: 28278229.13 | W187: 18486019.21 | X187: 20318103.96 | Y187: 22653873.19 | Z187: 21410554.79 | AA187: 17603605.27 | AF187: 19578220.2 | AG187: 26250990.31 | AI187: 13213370.95 | AM187: 24833238.17 | AN187: 22846579.11 | AO187: 27336478.41 | AP187: 22621774.02 | AQ187: 26872276.16 | AT187: 15019142.44 | AU187: 24833238.17 | AW187: 19277708.67
A188: Vehículosconmotordecombustióninterna1Empresarial2Pickupdoblecabina4x2HoraZonaDificilAcceso | B188: CI-Z1-EM-N2-V11-HDA | C188: Vehículos con motor de combustión interna | D188: 1 | E188: Empresarial | F188: 2 | G188: Pick up doble cabina 4x2 | H188: Hora Zona Dificil Acceso | I188: 559416.1 | J188: 137440.69 | M188: 338635.07 | N188: 182847.03 | O188: 174701.83 | R188: 253976.3 | S188: 196518.96 | U188: 114087.52 | V188: 182488.84 | W188: 77025.08 | X188: 154643.35 | Y188: 151085.42 | Z188: 135286.47 | AA188: 180605.37 | AF188: 134600.26 | AG188: 241277.48 | AI188: 118464.71 | AM188: 146741.86 | AN188: 154214.41 | AO188: 179095.45 | AP188: 101482.4 | AQ188: 180288.18 | AT188: 85336.04 | AU188: 451513.42 | AW188: 79299.3
A189: Vehículosconmotordecombustióninterna1Empresarial2Pickupdoblecabina4x2DíaZonaDificilAcceso | B189: CI-Z1-EM-N2-V11-DDA | C189: Vehículos con motor de combustión interna | D189: 1 | E189: Empresarial | F189: 2 | G189: Pick up doble cabina 4x2 | H189: Día Zona Dificil Acceso | I189: 2237666.65 | J189: 1457048.48 | M189: 1467418.62 | N189: 1371352.72 | O189: 1310263.73 | R189: 1806053.68 | S189: 1453133.86 | U189: 1035882.78 | V189: 1354527.18 | W189: 770250.8 | X189: 1154745.57 | Y189: 1317154.95 | Z189: 947005.31 | AA189: 1003714.34 | AF189: 1256269.13 | AG189: 1930219.88 | AI189: 750276.47 | AM189: 903026.84 | AN189: 1130905.67 | AO189: 1307396.79 | AP189: 1106097.71 | AQ189: 1341546.84 | AT189: 682688.29 | AU189: 2821958.88 | AW189: 876260
A190: Vehículosconmotordecombustióninterna1Empresarial2Pickupdoblecabina4x2MesZonaDificilAcceso | B190: CI-Z1-EM-N2-V11-MDA | C190: Vehículos con motor de combustión interna | D190: 1 | E190: Empresarial | F190: 2 | G190: Pick up doble cabina 4x2 | H190: Mes Zona Dificil Acceso | I190: 34996447.45 | J190: 27384636.66 | M190: 20318103.96 | N190: 30169759.88 | O190: 28825802.03 | R190: 19076442.05 | S190: 32081423.75 | U190: 20199714.22 | V190: 28278229.13 | W190: 23107524.01 | X190: 21334009.15 | Y190: 24541695.95 | Z190: 24622138.01 | AA190: 19572429.54 | AF190: 21536042.22 | AG190: 32813737.89 | AI190: 17177382.24 | AM190: 24833238.17 | AN190: 25131237.03 | AO190: 28703302.33 | AP190: 21964100.78 | AQ190: 29406742.91 | AT190: 15019142.44 | AU190: 31605939.49 | AW190: 19277708.67
A191: Vehículosconmotordecombustióninterna1Empresarial2Pickupdoblecabina4x4HoraZonaUrbana | B191: CI-Z1-EM-N2-V12-HU | C191: Vehículos con motor de combustión interna | D191: 1 | E191: Empresarial | F191: 2 | G191: Pick up doble cabina 4x4 | H191: Hora Zona Urbana | I191: 384419.66 | J191: 107333.77 | M191: 208824.96 | N191: 116451.45 | O191: 113781.38 | R191: 158029.7 | S191: 123839.97 | U191: 84541.78 | V191: 116499.49 | W191: 57378.93 | X191: 112878.36 | Y191: 116219.55 | Z191: 89244.45 | AA191: 169317.53 | AF191: 111723.54 | AG191: 169317.53 | AI191: 70097.46 | AM191: 108092.31 | AN191: 129810.11 | AO191: 114097.44 | AP191: 94475.17 | AQ191: 114145.98 | AT191: 85336.04 | AU191: 214468.88 | AW191: 83306.48
A192: Vehículosconmotordecombustióninterna1Empresarial2Pickupdoblecabina4x4DíaZonaUrbana | B192: CI-Z1-EM-N2-V12-DU | C192: Vehículos con motor de combustión interna | D192: 1 | E192: Empresarial | F192: 2 | G192: Pick up doble cabina 4x4 | H192: Día Zona Urbana | I192: 1537678.62 | J192: 978551.49 | M192: 869163.34 | N192: 873385.89 | O192: 853360.37 | R192: 817807.5 | S192: 929826.42 | U192: 922273.95 | V192: 869242.35 | W192: 506228.72 | X192: 846587.66 | Y192: 1013196.12 | Z192: 624711.15 | AA192: 853360.37 | AF192: 1042753.03 | AG192: 1354540.26 | AI192: 443950.57 | AM192: 778860.65 | AN192: 1038480.87 | AO192: 855730.81 | AP192: 1005149.92 | AQ192: 856090.89 | AT192: 682688.29 | AU192: 1015905.2 | AW192: 838161.3
A193: Vehículosconmotordecombustióninterna1Empresarial2Pickupdoblecabina4x4MesZonaUrbana | B193: CI-Z1-EM-N2-V12-MU | C193: Vehículos con motor de combustión interna | D193: 1 | E193: Empresarial | F193: 2 | G193: Pick up doble cabina 4x4 | H193: Mes Zona Urbana | I193: 24048840.83 | J193: 19525170.76 | M193: 16367361.52 | N193: 19214489.57 | O193: 18773928.05 | R193: 12777366.14 | S193: 20456183.53 | U193: 15217520.15 | V193: 19222416.34 | W193: 15186861.45 | X193: 18624928.63 | Y193: 18878227.65 | Z193: 16242489.84 | AA193: 16213846.96 | AF193: 17875766.27 | AG193: 23027184.48 | AI193: 10164131.5 | AM193: 16931753.3 | AN193: 20769617.38 | AO193: 18826077.85 | AP193: 19185433.46 | AQ193: 18834004.17 | AT193: 15019142.44 | AU193: 20318103.96 | AW193: 18439547.37
A194: Vehículosconmotordecombustióninterna1Empresarial2Pickupdoblecabina4x4HoraZonaRural | B194: CI-Z1-EM-N2-V12-HR | C194: Vehículos con motor de combustión interna | D194: 1 | E194: Empresarial | F194: 2 | G194: Pick up doble cabina 4x4 | H194: Hora Zona Rural | I194: 499745.21 | J194: 128653.11 | M194: 383786.41 | N194: 174695.19 | O194: 170672.07 | R194: 158029.7 | S194: 180913.53 | U194: 99460.92 | V194: 174388.93 | W194: 63278.59 | X194: 152385.78 | Y194: 139463.47 | Z194: 129404.45 | AA194: 180605.37 | AF194: 128482.07 | AG194: 203181.04 | AI194: 91126.7 | AM194: 153514.56 | AN194: 155772.13 | AO194: 165441.29 | AP194: 109120.06 | AQ194: 171218.4 | AT194: 85336.04 | AU194: 191893.2 | AW194: 87229.01
A195: Vehículosconmotordecombustióninterna1Empresarial2Pickupdoblecabina4x4DíaZonaRural | B195: CI-Z1-EM-N2-V12-DR | C195: Vehículos con motor de combustión interna | D195: 1 | E195: Empresarial | F195: 2 | G195: Pick up doble cabina 4x4 | H195: Día Zona Rural | I195: 1998981.98 | J195: 1401467.18 | M195: 1580296.97 | N195: 1310213.95 | O195: 1280040.55 | R195: 952727.77 | S195: 1376238.87 | U195: 1085028.17 | V195: 1305214.68 | W195: 632785.89 | X195: 1241661.91 | Y195: 1215835.34 | Z195: 905831.16 | AA195: 1024032.44 | AF195: 1199165.99 | AG195: 1625448.32 | AI195: 577135.74 | AM195: 982041.69 | AN195: 1142328.96 | AO195: 1245944.06 | AP195: 1124425 | AQ195: 1284136.9 | AT195: 682688.29 | AU195: 1693175.33 | AW195: 963885.21
A196: Vehículosconmotordecombustióninterna1Empresarial2Pickupdoblecabina4x4MesZonaRural | B196: CI-Z1-EM-N2-V12-MR | C196: Vehículos con motor de combustión interna | D196: 1 | E196: Empresarial | F196: 2 | G196: Pick up doble cabina 4x4 | H196: Mes Zona Rural | I196: 31263493.65 | J196: 25163424.29 | M196: 20318103.96 | N196: 28824706.89 | O196: 28160892.08 | R196: 16027639.64 | S196: 30684274.17 | U196: 21158049.4 | V196: 29725386.09 | W196: 18983576.82 | X196: 23140062.84 | Y196: 22653873.19 | Z196: 23551610.27 | AA196: 19456616.35 | AF196: 20557131.21 | AG196: 27632621.38 | AI196: 13213370.95 | AM196: 26526413.5 | AN196: 22846579.11 | AO196: 28407524.61 | AP196: 23078754.24 | AQ196: 28563906.19 | AT196: 15019142.44 | AU196: 24833238.17 | AW196: 21205480.21
A197: Vehículosconmotordecombustióninterna1Empresarial2Pickupdoblecabina4x4HoraZonaDificilAcceso | B197: CI-Z1-EM-N2-V12-HDA | C197: Vehículos con motor de combustión interna | D197: 1 | E197: Empresarial | F197: 2 | G197: Pick up doble cabina 4x4 | H197: Hora Zona Dificil Acceso | I197: 576628.92 | J197: 147949.66 | M197: 383786.41 | N197: 192204.35 | O197: 187739.28 | R197: 259620.22 | S197: 198178.27 | U197: 129299.19 | V197: 191827.82 | W197: 79098.24 | X197: 169317.53 | Y197: 151085.42 | Z197: 148815.12 | AA197: 203181.04 | AF197: 141330.28 | AG197: 253976.3 | AI197: 118464.71 | AM197: 153514.56 | AN197: 171349.34 | AO197: 191683.7 | AP197: 108646.45 | AQ197: 188339.79 | AT197: 85336.04 | AU197: 451513.42 | AW197: 87229.01
A198: Vehículosconmotordecombustióninterna1Empresarial2Pickupdoblecabina4x4DíaZonaDificilAcceso | B198: CI-Z1-EM-N2-V12-DDA | C198: Vehículos con motor de combustión interna | D198: 1 | E198: Empresarial | F198: 2 | G198: Pick up doble cabina 4x4 | H198: Día Zona Dificil Acceso | I198: 2306517.93 | J198: 1611688.44 | M198: 1580296.97 | N198: 1441532.6 | O198: 1408044.6 | R198: 1806053.68 | S198: 1513863.55 | U198: 1174000.48 | V198: 1423845.99 | W198: 790982.37 | X198: 1467418.62 | Y198: 1317154.95 | Z198: 1041705.84 | AA198: 1109368.48 | AF198: 1319082.59 | AG198: 2031810.4 | AI198: 750276.47 | AM198: 982041.69 | AN198: 1256561.85 | AO198: 1370538.47 | AP198: 1155922.41 | AQ198: 1412550.71 | AT198: 682688.29 | AU198: 2821958.88 | AW198: 963885.21
A199: Vehículosconmotordecombustióninterna1Empresarial2Pickupdoblecabina4x4MesZonaDificilAcceso | B199: CI-Z1-EM-N2-V12-MDA | C199: Vehículos con motor de combustión interna | D199: 1 | E199: Empresarial | F199: 2 | G199: Pick up doble cabina 4x4 | H199: Mes Zona Dificil Acceso | I199: 36073261.81 | J199: 28937938.78 | M199: 21446887.51 | N199: 31713717.16 | O199: 30976981.29 | R199: 19132881.22 | S199: 33752701.81 | U199: 22893009.45 | V199: 29725386.09 | W199: 23729471.02 | X199: 27090805.27 | Y199: 24541695.95 | Z199: 27084351.81 | AA199: 21632685.28 | AF199: 22612844.33 | AG199: 34540776.72 | AI199: 17177382.24 | AM199: 26526413.5 | AN199: 25131237.03 | AO199: 31248277.07 | AP199: 22063248.47 | AQ199: 30966593.1 | AT199: 15019142.44 | AU199: 31605939.49 | AW199: 21205480.21
A200: Vehículosconmotordecombustióninterna2Empresarial1AutomóvilHoraZonaUrbana | B200: CI-Z2-EM-N1-V1-HU | C200: Vehículos con motor de combustión interna | D200: 2 | E200: Empresarial | F200: 1 | G200: Automóvil | H200: Hora Zona Urbana | I200: 176541.75 | J200: 70370.62 | M200: 112878.36 | N200: 72125.48 | O200: 67727.01 | P200: 97004.84 | Q200: 72481.45 | R200: 84658.77 | S200: 75190.53 | T200: 57793.72 | V200: 72006.46 | W200: 52302.83 | Y200: 78224.7 | Z200: 63494.07 | AA200: 135454.03 | AF200: 48537.69 | AG200: 110620.79 | AI200: 47747.54 | AM200: 68435.89 | AN200: 63494.07 | AO200: 70548.97 | AP200: 67272.74 | AQ200: 70696.84 | AT200: 74077.55 | AU200: 90302.68 | AW200: 62614.75 | BA200: 96673.54
... 923 more rows
